{"text_format":"1","workbook":"xlsx","n_sheets":6,"sheets":["Table of Contents","Program List","Data Dictionary","ProgPivot","Not-In-Scope","Non-CA programs"],"not_rendered":{"charts":0,"images":1,"macros":1,"external_links":0,"defined_names":7,"comments":2,"pivot_tables":1},"unopened":[],"bounds":{"document_bytes":16777216,"sheet_cells":100000,"rows_first":2000,"rows_last":500,"rows_between":2000,"halvings":0,"cell_chars":16384,"cell_head_chars":4096},"cells_cut":0,"cells_raw":0,"read":"whole","date_system":"1900"}

{"sheet":"Table of Contents","index":0,"n_rows":20,"n_cols":5,"rows_kept":20,"cut":false,"hidden":false,"merged":[[14,0,15,5],[12,1,12,4]]}
[]
[]
[]
[]
[]
[]
[]
[]
[]
[]
["Energy Efficiency and Demand Response Residential Behavior Market Characterization Study Data Collection and Calculations"]
["Prepared by:","Olivia Patterson, Alan Elliott, Paul Wasmund, and Mary Sutter"]
["Last Updated:","2015-04-14"]
[]
["This file contains the raw data collected on both California IOU residential behavioral programs and pilots, and those used for comparison that have been implimented outside of California. Additionally, there are several tables included, some of which are included in our report, to illustrate the performance of Califonria's programs, compared with those highlighted thorughout the rest of North America."]
[]
[]
[null,null,null,"Tab Name","Description"]
[null,null,1,"Complete Program List","Data collected on all California and Non-California programs for this study"]
[null,null,2,"Data Dictionary","Variable descriptions and assumptions"]

{"sheet":"Program List","index":1,"n_rows":145,"n_cols":74,"rows_kept":145,"cut":false,"hidden":false,"merged":[[0,0,2,3]]}
["Directions: This tab represents the 2013-2014 residential behavioral feedback efforts, both in and outside of California, included in the EE/DR Behavior Market Characterization Study. To review the data, we have created buttons to the right to filter this list by either clicking on the individual criteria, or by clicking and dragging to capture multiple different criteria. You can also the filter at the top of each column to search and filter its contents.  Please reference the Legend tab for information on specific data fields."]
[]
[]
[]
["ODCID","Program ID","IOU ID","Program Name","State","Description","Implementer","Case Study","Pilot?","Savings Reported as DR","Program Year","Beginning Year","Years in field","Opt-in/Opt-out Model","Other technology Involved","Expenditures (year-to-date)","Annual Budget","Entire Program Cycle Budget","Annual kWh Savings","Annual kW Savings/load reduction","Annual Therms Savings","Participants","Savings as a Percent (high)","Savings as a Percent (low)","kWh/\nParticipant","kW/\nParticipant","EE","DR ","HAN ","Pay as You Go ","In-home display ","Green Button ","Reports ","Game-Based","Thermostat","Analysis/\nSelf-Audit Tool/Survey","Electric Vehicles","Alerts","Commit-ment","Follow-through","Pledging","Energy Pricing","Framing","In-person Interactions","Social Norms","Activating Personal Norms","Competition","Legal","Financial Incentives","Leverage Sunk Cost","Rewards or Gifts","Feedback Only","CA vs. Non-CA Program","Funding Source","Program Administrator","AMI Enabled (Y/N)","Orig ID2","Unique Count Flag2","Potential Redundancy (with Unique ID Listed)3","Program Category2","Other2","Count of Intervention Strategies (does not include \"feedback only\"","Potential Case Study flag","More info available? ","Evaluation Found? (Y/N)","Evaluation Quality (H/M/L)","Confidence of Eval","Impact notes","Source_1","Source_2","Source_3","Targeted Participants2","Feedback Type2","xFilter"]
[1001,49,"n/a","Plug-in Hybrid EV/EV (incl. HAN-EV)","CA","The California Public Utilities Commission (CPUC) has directed Pacific Gas and Electric (PG&E), along with Southern California Edison and San Diego Gas and Electric, to implement a two-phased pilot program to develop the ability for residential and commercial customers to separately measure the electricity used by their electric vehicles (EV) through third-party or customer-owned submeters. This will allow PG&E customers to have their EV charges billed at a different rate than their residences or businesses.","IOU",null,"Y",null,2013,2010,4,"opt-in","none",65389,"see next column",3000000,"n/a","not found","n/a","not found","not found","not found","n/a","not found",0,1,0,0,0,0,0,0,0,0,1,0,0,0,0,0,0,0,0,0,0,0,0,0,0,1,"CA","DR","PG&E","Y",49,1,null,"DR",0,{"$f":"SUM(AM6:BI6)-AZ6","v":50},0,0,"not found","n/a","n/a","none","DR Progress Reports","DR Decision D.12-04-045","http://www.pge.com/electricvehicles/","Residential and Commercial Customers","Indirect",{"$f":"NOT(ISERROR(MATCH(ProgTable[[#This Row],[ODCID]],DD.Filter,0)))","v":true}]
[1003,150,"n/a","DR Emerging Technology","CA","PG&E’s Demand Response Emerging Technologies (DRET) program continues to explore new technologies and applications that have the potential to enable or enhance demand response (DR) capabilities and can include hardware, software, design tools, strategies, and services. Examples of some of the types of enabling technologies that have been investigated are advanced energy management control systems (EMCS), direct load controls, and advanced heating, ventilation, and air conditioning (HVAC) controls.","IOU",null,"N",null,2013,2005,9,"n/a","advanced controls (i.e. EMCS), various emerging technologies",523867.17,"see next column",3749238,"n/a","n/a","n/a","n/a","n/a","not found","n/a","not found",0,1,0,0,0,0,0,0,0,0,0,0,0,0,0,0,0,0,0,0,0,0,0,0,0,1,"CA","DR","PG&E","Y",150,1,null,"DR",0,151,0,0,"not found","n/a","n/a","none","DR Progress Reports","Emerging Markets & Technology Demand Response Projects 2013 Semiannual Report \nhttps://www.pge.com/regulation/DemandResponse2012-2014-Projects/Reports/PGE/2013/DemandResponse2012-2014-Projects_Report_PGE_20130930_287346.pdf","PG&E data request response","Residential Customers","None",{"$f":"NOT(ISERROR(MATCH(ProgTable[[#This Row],[ODCID]],DD.Filter,0)))","v":true}]
[1004,217,"n/a","Integrated Emerging Technology","CA","The objective of these activities was to assess technologies that have DR and EE capabilities. PG&E believes this work is important because technologies that provide both EE and DR benefits will provide customers the power to implement EE and DR strategies together and increase customers’ overall IDSM potential.","IOU",null,"N",null,2013,2012,2,"n/a","various emerging technologies",311271.66000000003,"see next column",440000,"n/a","n/a","n/a","n/a","n/a","not found","n/a","not found",1,1,0,0,0,0,0,0,0,0,0,0,0,0,0,0,0,0,0,0,0,0,0,0,0,1,"CA","DR","PG&E","Y",217,1,null,"DR",0,218,0,0,"not found","n/a","n/a","none","DR Progress Reports","Joint IOU \nIntegrated Demand Side Management  Quarterly Summary and Compliance Tracking Report 3rd Quarter 2013\n","PG&E data request response","Residential Customers","None",{"$f":"NOT(ISERROR(MATCH(ProgTable[[#This Row],[ODCID]],DD.Filter,0)))","v":true}]
[1005,389,"n/a","SmartRate","CA","SmartRate™ gives you a discount at 3¢ per kWh on your June through September monthly rate, or the equivalent of 23% off your Tier 1 usage. In exchange, you pay a surcharge of 60¢ per kWh for your 2-7PM usage for between 9 and 15 PG&E SmartDays™, May through October. With SmartRate automatic bill protection, your first summer is risk free.","IOU",null,"N",null,2013,2008,6,"opt-in","none","$8 million over last 3 years, $16 million since inception","see next column","not found","n/a",347000,"n/a",118577,"not found","not found","n/a",0.28000000000000003,0,1,0,0,0,0,0,0,0,0,0,1,0,0,0,0,0,0,0,0,0,0,1,0,0,0,"CA","DR","PG&E","Y",389,1,64,"DR",0,455,0,0,"not found","n/a","n/a","kW savings is sum of monthly ex-post load reduction; participants=enrolled service accounts as of Dec. 2013;","http://www.pge.com/en/myhome/saveenergymoney/plans/smartrate/index.page?WT.mc_id=Vanity_smartrate","PG&E data request response"," ","Residential Customers","Indirect",{"$f":"NOT(ISERROR(MATCH(ProgTable[[#This Row],[ODCID]],DD.Filter,0)))","v":true}]
[1008,46,"n/a","Peak Time Rebate / Save Power Day (PTR)","CA","Save Power Day (SPD) is a peak time rebate program for residential customers. In 2012, residential customers with smart meters were defaulted onto SPD. Customers on the program receive a rebate for reducing load during peak periods when events are called. Customers who do not reduce load during peak periods when events are called are neither rewarded nor penalized","IOU",null,"N",null,2013,2012,2,"opt-in","none",645978.22999999986,"see next column",4707515,"n/a",313000,"n/a",804790,"not found","not found","n/a",3.277505E-2,0,1,0,0,0,0,0,0,0,0,0,1,0,0,0,0,0,0,0,0,0,0,1,0,0,0,"CA","DR","SCE","Y",46,1,null,"DR",0,48,0,0,"not found","n/a","n/a","kW savings is sum of monthly ex-post load reduction; participants=enrolled service accounts as of Dec. 2013","DR Progress Reports","DR Decision D.12-04-045"," ","Residential Customers","Indirect",{"$f":"NOT(ISERROR(MATCH(ProgTable[[#This Row],[ODCID]],DD.Filter,0)))","v":true}]
[1009,46,"n/a","Bring Your Own Thermostat Pilot","CA","part of PTR; SCE customers with a wireless thermostat from Alarm.com, Radio Thermostat Company of America, Vivint, Ingersoll Rand: Nexia Home Intelligence, Trane, American Standard and Nest can receive a $1.25 bill credit for every kilowatt-hour saved during peak days, $0.50 more than customers without a two-way thermostat can earn. ","IOU",1,"Y",null,2013,2013,1,"opt-in","none","not found","not found","n/a","not found","not found","not found","not found","not found","not found","not found","not found",0,1,0,0,0,0,0,0,1,0,0,1,0,0,0,0,0,0,0,0,0,0,1,0,0,0,"CA","DR","SCE","Y",46.01,1,null,"DR",0,48.01,0,0,"not found","n/a","n/a","none","http://www.greentechmedia.com/articles/read/sce-rolls-out-bring-your-own-thermostat","http://www.esource.com/email/ENEWS/2013/Thermostats-for-DR"," ","Residential Customers","Direct",{"$f":"NOT(ISERROR(MATCH(ProgTable[[#This Row],[ODCID]],DD.Filter,0)))","v":true}]
[1010,182,"n/a","Emerging Markets & Technologies (Third Party PCT Study)","CA","To help realize the benefits of DR—greater grid security and improved use of generating resources—the Emerging Markets & Technology (EM&T) program at SCE executes projects to explore innovative and cost effective DR technologies.\nThe Third Party PCT study was the only project under the Demand Response EM&T Program that was a pilot/study with the relevant data requested. (from SCE data request response). \n\nFrom EMT report: SCE targeted third‐party vendors whose customers are also SCE customers. These vendors entered into agreements with OCST‐owning customers that authorized the vendor to remotely adjust the OCST to reduce energy use during peak hours on Save PowerDays. The agreements included other important provisions. For example, vendors were required to notify customers that they would be adjusting the OCST by 2:30 pmon the day before the Save PowerDay, and customers were provided the ability to manually override the remote adjustment at any time.  ","IOU",null,"N",null,2013,2013,1,"opt-in","various emerging technologies",2282495.4500000011,"see next column",7303969,"n/a",1000,"n/a",1344,"not found","not found","n/a","not found",0,1,0,0,0,0,0,0,1,0,0,0,0,0,0,0,0,0,0,0,0,0,0,0,0,1,"CA","DR","SCE","Y",182,1,null,"DR",0,183,0,0,"not found","n/a","n/a","none","DR Progress Reports","Emerging Markets & Technology Demand Response 2013 Q3-Q4 report","SCE data request response","Residential Customers","None",{"$f":"NOT(ISERROR(MATCH(ProgTable[[#This Row],[ODCID]],DD.Filter,0)))","v":true}]
[1011,16,"n/a","Emerging Technologies (ET)","CA","The Emerging Technologies (ET) Program supports increased energy efficiency market demand and technology supply by contributing to the development and deployment of new and under-utilized energy efficiency (EE) measures (i.e., technologies, practices, and tools). The ET Program facilitates the use of new measures in achieving California’s aggressive energy and demand savings goals","IOU",null,"N","not found",2013,2012,2,"n/a","various emerging technologies",460152,"see next column",2111000,"n/a","n/a","n/a","n/a","n/a","n/a","n/a","n/a",1,1,0,0,0,0,0,0,0,0,0,0,0,0,0,0,0,0,0,0,0,0,0,0,0,1,"CA","DR","SDG&E","Y",16,1,null,"DR",0,17,0,0,"not found","n/a","n/a","none","DR Progress Reports","DR Decision D.12-04-045","SDG&E DR Emerging Technologies 2013 Q3-Q4 Semi-Annual Report","Residential Customers","None",{"$f":"NOT(ISERROR(MATCH(ProgTable[[#This Row],[ODCID]],DD.Filter,0)))","v":true}]
[1012,51,"PGE21001","Residential Energy Advisor (formerly HEES)","CA","The Energy Advisor subprogram will utilize interactive tools designed to engage customers and encourage participation in innovative initiatives. These initiatives are designed to help customers understand and empower them to manage their energy use, and will guide them, where appropriate, towards advancing whole-house energy solutions. Although the IOUs share similar Energy Advisor subprogram theory, design, and goals, they may implement subprogram logistics differently because of their different service territories.","IOU",null,"N"," ",2013,"not found","not found","opt-in","none",11047027,"see next column",24555666,"see sub-activities below","see sub-activities below","see sub-activities below","not found","not found","not found","not found","not found",1,1,0,0,0,0,0,0,0,1,0,0,0,0,0,0,0,0,0,0,0,0,0,0,0,null,"CA","EE","PG&E","Y",51,0,"40.01, 40.02, 40.03, 51.01, 66","EE",0,51,0,0,"not found","n/a","n/a","none","CALSPREE PIPs","Q:\\8120-CPUC DNV Residential\\Behavior Study\\Evaluation Activities\\Secondary Materials\\201314ResidentialFactSheet.pdf","EESTATS Dec 2013","Residential Customers","Indirect",{"$f":"NOT(ISERROR(MATCH(ProgTable[[#This Row],[ODCID]],DD.Filter,0)))","v":true}]
[1013,44,"n/a","Bring Your Own Thermostat Pilot","CA","part of PTR; San Diego Gas & Electric is offering Alarm.com customers who have that company's wireless thermostat an increased credit within the Reduce Your Use program. \nSDG&E website indicates that they are also offering ecobee thermostats","IOU",1,"Y","not found",2013,2013,1,"opt-in","none","not found","not found","n/a","not found","not found","not found","not found","not found","not found","not found","not found",1,1,0,0,0,0,0,0,1,0,0,1,0,0,0,0,0,0,0,0,0,0,1,0,0,0,"CA","DR","SDG&E","Y",44.01,1,null,"DR",0,46.01,0,0,"not found","n/a","n/a","none","http://www.greentechmedia.com/articles/read/sdge-teams-up-with-alarm.com","https://www.alarm.com/productservices/energy_management.aspx#monitoring"," ","Residential Customers","Indirect",{"$f":"NOT(ISERROR(MATCH(ProgTable[[#This Row],[ODCID]],DD.Filter,0)))","v":true}]
[1014,51,"n/a","REA Behavioral Sub-activity--Online Buyers Guide","CA","Sub-activity of REA; The Online Buyer’s Guide (released in 2012) web capability will assist consumers and program participants in making the best energy efficiency purchase decisions. The statewide utilities will continue to collaborate and share best practices on the online buyers guide in 2013-2014.","IOU",null,"N"," ",2013,2012,2,"opt-in","none","part of REA","see next column","part of REA","n/a","n/a","n/a",46000,"n/a","not found","n/a","n/a",0,0,0,0,0,0,0,0,0,1,0,0,0,0,0,0,0,0,0,0,0,0,1,0,0,0,"CA","EE","PG&E","N",51.03,1,null,"EE",0,53.03,0,0,"not found","n/a","n/a","participants=unique visitors","CALSPREE PIPs"," "," ","Residential Customers","Indirect",{"$f":"NOT(ISERROR(MATCH(ProgTable[[#This Row],[ODCID]],DD.Filter,0)))","v":true}]
[1015,281,"n/a","Plug Load and Appliances","CA","The Plug Load and Appliances subprogram merges the previous Home Energy Efficiency Rebate (HEER), Business Consumer Electronics (BCE) and Appliance Recycling subprograms. This subprogram will develop and build upon existing retailer relationships and will include recycling strategies and whole house solutions, plug load efficiency, performance standards, and opportunities for integration with local government, water agencies, Publically Owned Utilities (POUs), and the Demand Side Management (DSM) subprogram.\n\nManage research into new and advanced cost-effective innovations to reduce energy use in existing homes. California IOUs will work collaboratively to promote the commercialization of home energy management tools, including Advance Metering Infrastructure (AMI)-based monitoring and display tools (from PIP)","IOU",1,"N",null,2013,"not found","not found","opt-in","none",18615907,"see next column",34396160.343211845,47145842.144313224,9642.16149176,118831.52769999996,"not found","not found","not found","not found","not found",1,0,0,0,1,0,0,0,1,0,0,0,0,0,0,0,0,0,0,0,0,0,1,0,0,0,"CA","EE","PG&E","Y",281,1,null,"EE",0,283,0,0,"not found","n/a","n/a","none","CALSPREE PIPs","EESTATS Dec 2013","PG&E data request response","Residential Customers","Direct",{"$f":"NOT(ISERROR(MATCH(ProgTable[[#This Row],[ODCID]],DD.Filter,0)))","v":true}]
[1016,42,"ET11PGE1071","ET Home Energy Management Lab Tech Assessment Smart Thermostats","CA","First phase of four phase project (Lab TA, Field TA, SFP-A, SFP-B) to track customer interaction, satisfaction, and energy savings from normative / behavioral messaging via mobile app and web portal as it relates to customers programmable communicating thermostat. The proposed lab technology assessment aims to evaluate the performance of a Wi-Fi enabled Honeywell programmable thermostat combined with OPower behavioral software, which can be accessed via the internet or a smartphone. This assessment will give us an understanding of the technologies' ability to communicate to devices, level of performance, and identify interference issues that may arise in customers' homes. The insights from this lab assessment would allow PG&E to explore how smart thermostat technologies play a role in to reducing energy consumption through behavior based programs combined with an enabled technology.","IOU",1,"N/A",null,2013,2011,1,"opt-in","mobile app","not found",14530,"n/a","not found","not found",10,"n/a","not found","not found",125,"n/a",1,0,0,0,0,0,0,0,1,0,0,0,0,0,0,0,0,0,0,0,0,0,0,0,0,1,"CA","ETP","PG&E","Y",391.01,1,42,"ETP",0,434.01,0,0,"not found","n/a","n/a","participation=Smart Thermostat in homes","ETP Sheet","Findings from the Opower/Honeywell Smart Thermostat Field Assessment (report)"," ","Residential Customers","None",{"$f":"NOT(ISERROR(MATCH(ProgTable[[#This Row],[ODCID]],DD.Filter,0)))","v":true}]
[1017,51,"n/a","REA Behavioral Sub-activity--HEES","CA","Sub-activity of REA","IOU",null,"N"," ",2013,2000,14,"opt-in","none","part of REA","see next column","part of REA","not found","not found","not found","not found","not found","not found","not found","not found",1,0,0,0,0,0,0,0,0,1,0,0,0,0,0,0,0,0,0,0,0,0,0,0,0,1,"CA","EE","PG&E","N",51.02,1,null,"EE",0,52.02,0,0,"not found","n/a","n/a","none","CALSPREE PIPs"," "," ","Residential Customers","Indirect",{"$f":"NOT(ISERROR(MATCH(ProgTable[[#This Row],[ODCID]],DD.Filter,0)))","v":true}]
[1018,35,"n/a","REA Behavioral Pilot--Comparative Home Energy Report Trial","CA","Sub-activity of REA; PG&E, SCE, and SDG&E will continue to evaluate the benefits of a behavior-based energy efficiency outreach utilizing a neighbor comparison approach as authorized by the CPUC in Decision D.09-09-047 (p. 304) for the 2013-2014 transition period. Known as the “home energy reports” initiative, it involves mailing selected residential customers customized reports at scheduled intervals that compare the energy use of a specific report recipient household to a similar set of households. The home energy report concept is aligned with the IOU’s energy efficiency education and outreach goals under the Energy Advisor (EA) program. The program is designed to increase customer awareness and understanding of their energy usage, and to provide beneficial information on how customers can reduce their energy usage. The demonstrated benefits associated with this behavioral paradigm may serve as an appropriate resource to influence customers to reduce their energy consumption and to increase participation in existing and future energy efficiency programs. In 2013-2014, the Home Energy Report Initiative will be part of the strategy to reach at least 5% of the utility customer base. A full description of the initiative with objectives, targets, and savings information can be found in Attachment 1 of this PIP. SCG also will be pursing Home Energy Report pilots, however they will be implemented through their advanced meter initiative.","IOU",null,"Y"," ",2013,2012,2,"opt-out","none","part of REA","see next column","part of REA","not found","not found","not found",1000000,"not found","not found","not found","not found",1,0,0,0,0,0,1,0,0,0,0,0,0,0,0,0,0,0,1,0,0,0,0,0,0,0,"CA","EE","SCE","Y",35.01,1,null,"EE",0,37.01,0,0,"not found","n/a","n/a","survey completes","ETCC Q3 Quarterly Meeting Presentation","Oct 2014 Res Energy Advisor Monthly Metrics Report"," ","Residential Customers","Indirect",{"$f":"NOT(ISERROR(MATCH(ProgTable[[#This Row],[ODCID]],DD.Filter,0)))","v":true}]
[1019,35,"n/a","REA Behavioral Pilot--HEES Enhancement Energy Report","CA","Sub-activity of REA; The SCE Home Energy Efficiency Survey (HEES) Enhancement as an experimental design is currently under development.  It will modify the existing mail-in survey (HEES) delivery an experimental component of additional treatment in terms of comparative energy usage information and messaging.  The HEES Enhancement aims to test additional behavior theories to motivate residential response to reduce energy usage.","IOU",null,"Y"," ",2013,"not found","not found","opt-in","none","part of REA","see next column","part of REA","not found","not found","not found","not found","not found","not found","not found","not found",1,0,0,0,0,0,1,0,0,1,0,0,0,0,0,0,0,0,1,0,0,0,0,0,0,0,"CA","EE","SCE","N",35.020000000000003,1,null,"EE",0,37.020000000000003,0,0,"not found","n/a","n/a","none","ETCC Q3 Quarterly Meeting Presentation"," "," ","Residential Customers","Indirect",{"$f":"NOT(ISERROR(MATCH(ProgTable[[#This Row],[ODCID]],DD.Filter,0)))","v":true}]
[1020,35,"n/a","REA Behavioral Sub-activity--Budget Assistant","CA","Sub-activity of REA; \"Managing your energy spending is simple with our free* and easy-to-use Budget Assistant tool. Just set a spending goal. We will track your costs online in close to real-time and send you alerts (email, phone or text) on how your projected bill compares to that goal. Prevent any high bill surprises by making changes before you receive your next bill. It’s that easy!\"","IOU",null,"N"," ",2013,"not found","not found","opt-in","none","part of REA","see next column","part of REA","not found","not found","not found","not found","not found","not found","not found","not found",1,0,0,0,0,0,0,0,0,1,0,0,0,0,0,1,0,0,0,0,0,0,0,0,0,0,"CA","EE","SCE","N",35.04,1,null,"EE",0,37.04,0,0,"not found","n/a","n/a","none","ETCC Q3 Quarterly Meeting Presentation","https://www.sce.com/wps/portal/home/residential/my-account/budget-assistant-and-you/!ut/p/b1/hc9Pb4JAEAXwz-KBo-xjl-ja25AS3I2RKNbiXhpo6EqCrEFa0m9fary06Z-5vcnvJTPMsJyZtnirbdHXri2az2xmT1rdU5CEXKWaYlA4j1b8YScWEiM4jAC_DOG__iMzVxLIhJYqg5KRiKEipGvaErJ9-B0k2zmH0vt4lUYBh-Q3sEgQL3U6gt1GQIkN1hmRAGY38MeRmhnbuPL68IHaUkjLTFe9VF3V-a_duD72_fly58HDMAy-dc42lf_sTh5-qhzdpWf5V8nOpxy1mpryfZh8ACfqiOo!/dl4/d5/L2dBISEvZ0FBIS9nQSEh/"," ","Residential Customers","Direct",{"$f":"NOT(ISERROR(MATCH(ProgTable[[#This Row],[ODCID]],DD.Filter,0)))","v":true}]
[1021,35,"n/a","REA Behavioral Sub-activity--Online Buyers Guide","CA","Sub-activity of REA; The Online Buyer’s Guide (released in 2012) web capability will assist consumers and program participants in making the best energy efficiency purchase decisions. The statewide utilities will continue to collaborate and share best practices on the online buyers guide in 2013-2014.","IOU",null,"N"," ",2013,2012,2,"opt-in","none","part of REA","see next column","part of REA","not found","not found","not found","not found","not found","not found","not found","not found",1,0,0,0,0,0,0,0,0,1,0,0,0,0,0,0,0,0,0,0,0,0,1,0,0,0,"CA","EE","SCE","N",35.06,1,null,"EE",0,37.06,0,0,"not found","n/a","n/a","none","SCE data request response"," "," ","Residential Customers","Indirect",{"$f":"NOT(ISERROR(MATCH(ProgTable[[#This Row],[ODCID]],DD.Filter,0)))","v":true}]
[1022,280,"n/a","Plug Load and Appliances","CA","The Plug Load and Appliances subprogram merges the previous Home Energy Efficiency Rebate (HEER), Business Consumer Electronics (BCE) and Appliance Recycling subprograms. This subprogram will develop and build upon existing retailer relationships and will include recycling strategies and whole house solutions, plug load efficiency, performance standards, and opportunities for integration with local government, water agencies, Publically Owned Utilities (POUs), and the Demand Side Management (DSM) subprogram.","IOU",1,"N"," ",2013,"Not found","not found","opt-in","none",11501794,"see next column",28591225.395493232,36916999,7593,"not tracked","not found","not found","not found","not found","not found",1,0,0,0,1,0,0,0,1,0,0,0,0,0,0,0,0,0,0,0,0,0,1,0,0,0,"CA","EE","SCE","Y",280,1,null,"EE",0,282,0,0,"not found","n/a","n/a","none","CALSPREE PIPs","EESTATS Dec 2013"," ","Residential Customers","Direct",{"$f":"NOT(ISERROR(MATCH(ProgTable[[#This Row],[ODCID]],DD.Filter,0)))","v":true}]
[1024,35,"SCE-13-SW-001a","Energy Advisor Program (formerly HEES)","CA","The Energy Advisor subprogram will utilize interactive tools designed to engage customers and encourage participation in innovative initiatives. These initiatives are designed to help customers understand and empower them to manage their energy use, and will guide them, where appropriate, towards advancing whole-house energy solutions. Although the IOUs share similar Energy Advisor subprogram theory, design, and goals, they may implement subprogram logistics differently because of their different service territories.","IOU",null,"N",null,2013,"not found","not found","opt-in","none",3488175,"see next column",6819399,12001042,5674,"not tracked","Behavior: 223,200 ","not found","not found","cannot calculate (not apples to apples)","not found",1,0,0,0,0,0,0,0,0,1,0,0,0,0,0,0,0,0,0,0,0,0,0,0,0,null,"CA","EE","SCE","Y",35,0,null,"EE",0,35,0,0,"exists but not found","n/a","n/a","not sure which sub-activities the \"behavior\" participation numbers refer to","CALSPREE PIPs","Q:\\8120-CPUC DNV Residential\\Behavior Study\\Evaluation Activities\\Secondary Materials\\201314ResidentialFactSheet.pdf","EESTATS Dec 2013, SCE Data request","Residential Customers","Indirect",{"$f":"NOT(ISERROR(MATCH(ProgTable[[#This Row],[ODCID]],DD.Filter,0)))","v":true}]
[1025,35,"n/a","REA Behavioral Sub-activity--Home Energy Advisor aka Universal Audit Tool","CA","Sub-activity of REA; The on-line Home Energy Advisor/ Universal Audit Tool is an on-line behavior based program that includes comparative energy usage, ongoing customer engagement, goal setting and other behavior and maintenance components.  The recommendations provided in this program integrate all aspects of energy management including EE, DR, and DG opportunities.  This program has the potential to expand its capability to include other behavior engagement tools such as dynamic pricing tools.  ","IOU",null,"N"," ",2013,2009,5,"opt-in","none","part of REA","see next column","part of REA","not found","not found","not found",9749,"not found","not found","not found","not found",1,0,0,0,0,0,0,0,0,1,0,0,0,0,0,0,0,0,0,0,0,0,0,0,0,1,"CA","EE","SCE","Y",35.03,1,null,"EE",0,36.03,0,0,"not found","n/a","n/a","survey completes","ETCC Q3 Quarterly Meeting Presentation","2010-12 UAT Evaluation","Oct 2014 Res Energy Advisor Monthly Metrics Report","Residential and SMB Customers","Indirect",{"$f":"NOT(ISERROR(MATCH(ProgTable[[#This Row],[ODCID]],DD.Filter,0)))","v":true}]
[1026,35,"n/a","REA Behavioral Sub-activity--HEES","CA","Sub-activity of REA","IOU",null,"N",null,2013,2000,14,"opt-in","none","part of REA","see next column","part of REA; This program works in collaboration with the On-Line Buyer's Guide and Community Language Energy Outreach programs to provide comprehensive and integrated outreach efforts to use energy audits to promote comprehensive retrofits to achieve deep energy reduction in the residential sector. This program goal is consistent with the Strategic Plan and IDSM (Integrated Demand Side Management Program) implementation strategies. The HEES Program is used to reach out to customers in multiple languages through different delivery channels to perform a variety of energy surveys.","not found","not found","not found",262126,"not found","not found","not found","not found",1,0,0,0,0,0,0,0,0,1,0,0,0,0,0,0,0,0,0,0,0,0,0,0,0,1,"CA","EE","SCE","N",35.049999999999997,1,null,"EE",0,36.049999999999997,0,0,"not found","n/a","n/a","participation split into the online and mail-in survey: Online: 13,170; Mail-in: 248,956","SCE data request response"," "," ","Residential Customers","Indirect",{"$f":"NOT(ISERROR(MATCH(ProgTable[[#This Row],[ODCID]],DD.Filter,0)))","v":true}]
[1027,34,"n/a","REA Behavioral Pilot--HEES Enhancement Energy Report","CA","Sub-activity of REA; Home Energy Efficiency Survey (HEES) Enhancement as an experimental design is currently under development.  It will modify the existing mail-in survey (HEES) delivery an experimental component of additional treatment in terms of comparative energy usage information and messaging.  The HEES Enhancement aims to test additional behavior theories to motivate residential response to reduce energy usage.","IOU",null,"Y"," ",2013,"not found","not found","opt-in","none","part of REA","see next column","part of REA","not found","not found","not found",50000,"not found","not found","not found","not found",1,0,0,0,0,0,1,0,0,1,0,0,0,0,0,0,0,0,1,0,0,0,0,0,0,0,"CA","EE","SCG","N",34.01,1,null,"EE",0,36.01,0,0,"not found","n/a","n/a","none","CALSPREE PIPs"," "," ","Residential Customers","Indirect",{"$f":"NOT(ISERROR(MATCH(ProgTable[[#This Row],[ODCID]],DD.Filter,0)))","v":true}]
[1028,34,"n/a","REA Behavioral Pilot--Comparative Home Energy Report Trial","CA","Sub-activity of REA","IOU",null,"Y"," ",2013,2013,1,"opt-out","none","part of REA","see next column","part of REA","not found","not found","not found",50000,"not found","not found","not found","not found",1,0,0,0,0,0,1,0,0,0,0,0,0,0,0,0,0,0,1,0,0,0,0,0,0,0,"CA","EE","SCG","Y",34.020000000000003,1,null,"EE",0,36.020000000000003,0,0,"not found","n/a","n/a","none","CALSPREE PIPs","Oct 2014 Res Energy Advisor Monthly Metrics Report"," ","Residential Customers","Indirect",{"$f":"NOT(ISERROR(MATCH(ProgTable[[#This Row],[ODCID]],DD.Filter,0)))","v":true}]
[1029,34,"n/a","REA Behavioral Sub-activity--Online Buyers Guide","CA","Sub-activity of REA; The Online Buyer’s Guide (released in 2012) web capability will assist consumers and program participants in making the best energy efficiency purchase decisions. The statewide utilities will continue to collaborate and share best practices on the online buyers guide in 2013-2014.","IOU",null,"N"," ",2013,2012,2,"opt-in","none","part of REA","see next column","part of REA","not found","not found","not found",75764,"not found","not found","not found","not found",1,0,0,0,0,0,0,0,0,1,0,0,0,0,0,0,0,0,0,0,0,0,1,0,0,0,"CA","EE","SCG","N",34.049999999999997,1,null,"EE",0,36.049999999999997,0,0,"not found","n/a","n/a","participation=visits","CALSPREE PIPs"," "," ","Residential Customers","Indirect",{"$f":"NOT(ISERROR(MATCH(ProgTable[[#This Row],[ODCID]],DD.Filter,0)))","v":true}]
[1030,34,"n/a","REA Behavioral Weekly Bill Tracker Alerts","CA","Sub-activity of REA","IOU",null,"N"," ",2013,2013,1,"opt-in","none","part of REA","see next column","part of REA","not found","not found","not found",38981,"not found","not found","not found","not found",1,0,0,0,0,0,0,0,0,0,0,1,0,0,0,1,0,0,0,0,0,0,0,0,0,0,"CA","EE","SCG","N",34.06,1,null,"EE",0,36.06,0,0,"not found","n/a","n/a","part=active subscriptions","Oct 2014 Res Energy Advisor Monthly Metrics Report"," ",null,"Residential Customers","Indirect",{"$f":"NOT(ISERROR(MATCH(ProgTable[[#This Row],[ODCID]],DD.Filter,0)))","v":true}]
[1031,282,"SCG3702","Plug Load and Appliances","CA","The Plug Load and Appliances subprogram merges the previous Home Energy Efficiency Rebate (HEER), Business Consumer Electronics (BCE) and Appliance Recycling subprograms. This subprogram will develop and build upon existing retailer relationships and will include recycling strategies and whole house solutions, plug load efficiency, performance standards, and opportunities for integration with local government, water agencies, Publically Owned Utilities (POUs), and the Demand Side Management (DSM) subprogram.","IOU",1,"N"," ",2013,"not found","not found","opt-in","none",4366030.342560309,"see next column",11269368.725400001,1718043.5408734004,1143.9991375326417,1329043.7404257501,"N/A","not found","not found","not found","not found",1,0,0,0,1,0,0,0,1,0,0,0,0,0,0,0,0,0,0,0,0,0,1,0,0,0,"CA","EE","SCG","Y",282,1,null,"EE",0,284,0,0,"not found","n/a","n/a","none","CALSPREE PIPs","EESTATS Dec 2013"," ","Residential Customers","Direct",{"$f":"NOT(ISERROR(MATCH(ProgTable[[#This Row],[ODCID]],DD.Filter,0)))","v":true}]
[1032,34,"SCG3701-SW-CALS-Energy Advisor","Energy Advisor (formerly HEES)","CA","The Energy Advisor subprogram will utilize interactive tools designed to engage customers and encourage participation in innovative initiatives. These initiatives are designed to help customers understand and empower them to manage their energy use, and will guide them, where appropriate, towards advancing whole-house energy solutions. Although the IOUs share similar Energy Advisor subprogram theory, design, and goals, they may implement subprogram logistics differently because of their different service territories.","IOU",null,"N"," ",2013,"not found","not found","opt-in","none",166635,"see next column",1510990.53,"not tracked","not tracked","not tracked","125,803/6,923","not found","not found","not found","not found",1,0,0,0,0,0,0,0,0,1,0,0,0,0,0,0,0,0,0,0,0,0,0,0,0,null,"CA","EE","SCG","Y",34,0,null,"EE",0,34,0,0,"not found","n/a","n/a","participation: customers using online web tools/completed action plans","CALSPREE PIPs","Q:\\8120-CPUC DNV Residential\\Behavior Study\\Evaluation Activities\\Secondary Materials\\201314ResidentialFactSheet.pdf","EESTATS Dec 2013","Residential Customers","Indirect",{"$f":"NOT(ISERROR(MATCH(ProgTable[[#This Row],[ODCID]],DD.Filter,0)))","v":true}]
[1033,34,"n/a","REA Behavioral Sub-activity--Home Energy Advisor, includes Universal Audit Tool","CA","Sub-activity of REA; The on-line Home Energy Advisor/ Universal Audit Tool is an on-line behavior based program that includes comparative energy usage, ongoing customer engagement, goal setting and other behavior and maintenance components.  The recommendations provided in this program integrate all aspects of energy management including EE, DR, and DG opportunities.  This program has the potential to expand its capability to include other behavior engagement tools such as dynamic pricing tools.  ","IOU",null,"N"," ",2013,2012,2,"opt-in","none","part of REA","see next column","part of REA","not found","not found","not found",5725,"not found","not found","not found","not found",1,0,0,0,0,0,0,0,0,1,0,0,0,0,0,0,0,0,0,0,0,0,0,0,0,1,"CA","EE","SCG","Y",34.03,1,null,"EE",0,35.03,0,0,"not found","n/a","n/a","survey completes","CALSPREE PIPs","Oct 2014 Res Energy Advisor Monthly Metrics Report"," ","Residential and SMB Customers","Indirect",{"$f":"NOT(ISERROR(MATCH(ProgTable[[#This Row],[ODCID]],DD.Filter,0)))","v":true}]
[1034,34,"n/a","REA Behavioral Sub-activity--HEES","CA","Sub-activity of REA","IOU",null,"N"," ",2013,"not found","not found","opt-in","none","part of REA","see next column","part of REA","not found","not found","not found","not found","not found","not found","not found","not found",1,0,0,0,0,0,0,0,0,1,0,0,0,0,0,0,0,0,0,0,0,0,0,0,0,1,"CA","EE","SCG","N",34.04,1,null,"EE",0,35.04,0,0,"not found","n/a","n/a","none","CALSPREE PIPs"," "," ","Residential Customers","Indirect",{"$f":"NOT(ISERROR(MATCH(ProgTable[[#This Row],[ODCID]],DD.Filter,0)))","v":true}]
[1035,59,"n/a","REA Behavioral Pilot--Comparative Home Energy Report Trial","CA","Sub-activity of REA; The on-line Home Energy Advisor/ Universal Audit Tool is an on-line behavior based program that includes comparative energy usage, ongoing customer engagement, goal setting and other behavior and maintenance components.  The recommendations provided in this program integrate all aspects of energy management including EE, DR, and DG opportunities.  This program has the potential to expand its capability to include other behavior engagement tools such as dynamic pricing tools.  ","IOU",null,"Y","not found",2013,2013,1,"opt-out","none","part of REA","see next column","part of REA","not found","not found","not found","~200,000","not found","not found","not found","not found",1,0,0,0,0,0,1,0,0,0,0,0,0,0,0,0,0,0,1,0,0,0,0,0,0,0,"CA","EE","SDG&E","N",59.02,1,null,"EE",0,61.02,0,0,"not found","n/a","n/a","none","CALSPREE PIPs","SDG&E Data request response"," ","Residential Customers","Indirect",{"$f":"NOT(ISERROR(MATCH(ProgTable[[#This Row],[ODCID]],DD.Filter,0)))","v":true}]
[1036,59,"n/a","REA Behavioral Sub-activity--Online Buyers Guide","CA","Sub-activity of REA; The Online Buyer’s Guide (released in 2012) web capability will assist consumers and program participants in making the best energy efficiency purchase decisions. The statewide utilities will continue to collaborate and share best practices on the online buyers guide in 2013-2014.","IOU",null,"N","not found",2013,2012,2,"opt-in","none","part of REA","see next column","part of REA","not found","not found","not found","n/a","not found","not found","not found","not found",1,0,0,0,0,0,0,0,0,1,0,0,0,0,0,0,0,0,0,0,0,0,1,0,0,0,"CA","EE","SDG&E","N",59.04,1,null,"EE",0,61.04,0,0,"not found","n/a","n/a","none","CALSPREE PIPs","SDG&E Data request response"," ","Residential Customers","Indirect",{"$f":"NOT(ISERROR(MATCH(ProgTable[[#This Row],[ODCID]],DD.Filter,0)))","v":true}]
[1037,59,"n/a","Manage-Act-Save","CA","Manage-Act-Save is a residential energy efficiency program that is intended to help SDG&E residential customers reduce their energy consumption. By providing participants with easy to understand and engaging information on their personal consumption, participants have the tools to MANAGE their consumption. Based on energy consumption profiles and participant preferences the Manage-Act-Save program provides participants with relevant information and programs that can help them to reduce consumption. Additionally it encourages customers to ACT by providing prizes and rewards based on their actions. All together, the program aims to empower customers to SAVE. You can earn points in two ways:\ni. Saving against your baseline\nYou can earn up to 100 Manage-Act-Save points per day for saving energy. Your daily score is calculated by comparing your actual usage for any given day against your ‘expected usage’, and then ranking that amongst your neighbors. \nii. Completing tips and participating in select SDG&E programs\n","IOU",null,"Y","not found",2013,2013,1,"opt-out","none","part of REA","see next column","part of REA","not found","not found","not found","~374,236",4.4999999999999998E-2,4.4999999999999998E-2,"not found","not found",1,0,0,0,0,0,0,1,0,1,0,0,0,0,0,0,0,0,0,0,0,0,0,0,1,0,"CA","EE","SDG&E","Y",59.05,1,null,"EE",0,61.05,0,0,"not found","n/a","n/a","Savings % from market actor interview","SDG&E data request","https://www.sdgeactsave.com/","SDG&E data request response; market actor interviews","Residential Customers","Indirect",{"$f":"NOT(ISERROR(MATCH(ProgTable[[#This Row],[ODCID]],DD.Filter,0)))","v":true}]
[1038,293,"SDGE3203","Plug Load and Appliances","CA","The Plug Load and Appliances subprogram merges the previous Home Energy Efficiency Rebate (HEER), Business Consumer Electronics (BCE) and Appliance Recycling subprograms. This subprogram will develop and build upon existing retailer relationships and will include recycling strategies and whole house solutions, plug load efficiency, performance standards, and opportunities for integration with local government, water agencies, Publically Owned Utilities (POUs), and the Demand Side Management (DSM) subprogram.","IOU",1,"N","not found",2013,"not found","not found","opt-in","none",1265374,"see next column",4810669.51,2910760.9893820146,430.43754344387958,149283.85981322944,53059,"not found","not found",54.858949271226649,8.1124322630256804E-3,1,0,0,0,1,0,0,0,1,0,0,0,0,0,0,0,0,0,0,0,0,0,1,0,0,0,"CA","EE","SDG&E","Y",293,1,null,"EE",0,295,0,0,"not found","n/a","n/a","none","CALSPREE PIPs","EESTATS Dec 2013","SDG&E Data request response","Residential Customers","Direct",{"$f":"NOT(ISERROR(MATCH(ProgTable[[#This Row],[ODCID]],DD.Filter,0)))","v":true}]
[1039,398,"SDGE3261","Residential & Small Business Behavior Change Program","CA","This program will leverage comparative energy use reports delivered to residential customers by U.S. Mail, email, web portal or any combination of the three channels in order to achieve greater customer awareness and energy savings. In addition, SDG&E will pilot energy use reports with a small sub-set of small commercial customers to examine the potential for increased energy awareness and behavior change demonstrated by energy savings.  This program will also be leveraged to deliver energy efficiency and demand response program offers to the participating customers. ","IOU",null,"Y","not found",2013,2013,1,"opt-in","none","not found",706010,"n/a","not found","not found","not found","not found","not found","not found","not found","not found",1,0,0,0,0,0,1,0,0,0,0,0,0,0,0,0,0,0,1,0,0,0,0,0,0,0,"CA","EE","SDG&E","N",398,1,null,"EE",0,400,0,0,"not found","n/a","n/a","none","IDSM PIP"," "," ","Residential and Small Commercial","Indirect",{"$f":"NOT(ISERROR(MATCH(ProgTable[[#This Row],[ODCID]],DD.Filter,0)))","v":true}]
[1040,59,"SDGE3201","Energy Advisor (formerly HEES)","CA","The Energy Advisor subprogram will utilize interactive tools designed to engage customers and encourage participation in innovative initiatives. These initiatives are designed to help customers understand and empower them to manage their energy use, and will guide them, where appropriate, towards advancing whole-house energy solutions. Although the IOUs share similar Energy Advisor subprogram theory, design, and goals, they may implement subprogram logistics differently because of their different service territories.","IOU",null,"N","not found",2013,"not found","not found","opt-in","none",360038,"see next column",820111.63,"not tracked","not tracked","not tracked","see sub-activities below","not found","not found","not found","not found",1,0,0,0,0,0,0,0,0,1,0,0,0,0,0,0,0,0,0,0,0,0,0,0,0,null,"CA","EE","SDG&E","Y",59,0,null,"EE",0,59,0,0,"not found","n/a","n/a","none","CALSPREE PIPs","Q:\\8120-CPUC DNV Residential\\Behavior Study\\Evaluation Activities\\Secondary Materials\\201314ResidentialFactSheet.pdf","EESTATS Dec 2013, SDG&E Data request","Residential Customers","Indirect",{"$f":"NOT(ISERROR(MATCH(ProgTable[[#This Row],[ODCID]],DD.Filter,0)))","v":true}]
[1041,59,"n/a","REA Behavioral Sub-activity--Home Energy Advisor aka Universal Audit Tool","CA","Sub-activity of REA","IOU",null,"N","not found",2013,2012,2,"opt-in","none","part of REA","see next column","part of REA","not found","not found","not found",4030,"not found","not found","not found","not found",1,0,0,0,0,0,0,0,0,1,0,0,0,0,0,0,0,0,0,0,0,0,0,0,0,1,"CA","EE","SDG&E","Y",59.01,1,null,"EE",0,60.01,0,0,"not found","n/a","n/a","part=completed surveys","CALSPREE PIPs","Oct 2014 Res Energy Advisor Monthly Metrics Report"," ","Residential and SMB Customers","Indirect",{"$f":"NOT(ISERROR(MATCH(ProgTable[[#This Row],[ODCID]],DD.Filter,0)))","v":true}]
[1042,59,"n/a","REA Behavioral Sub-activity--HEES","CA","Sub-activity of REA","IOU",null,"N","not found",2013,"not found","not found","opt-in","none","part of REA","see next column","part of REA","not found","not found","not found",14249,"not found","not found","not found","not found",1,0,0,0,0,0,0,0,0,1,0,0,0,0,0,0,0,0,0,0,0,0,0,0,0,1,"CA","EE","SDG&E","N",59.03,1,null,"EE",0,60.03,0,0,"not found","n/a","n/a","none","CALSPREE PIPs","SDG&E Data request response"," ","Residential Customers","Indirect",{"$f":"NOT(ISERROR(MATCH(ProgTable[[#This Row],[ODCID]],DD.Filter,0)))","v":true}]
[1043,391,"ET13PGE1111","Zema Good Trial","CA","Zema Good is an engagement and behavior-based IT product that uses virtual currency from casual social games to engage, educate and reward users for becoming more energy efficient. The goal of this project is to launch a trial with 2,000 PG&E residential customers to educate, incentivize, persuade and track energy saving activities taken by the customer. Ultimately, if the trial is successful a larger scale implementation can be funded to launch a pilot of at least 10K customers and track actual energy savings in a similar methodology as Home Energy Reports..","IOU",null,"N/A",null,2013,2013,1,"opt-in","mobile app","not found",150000,"n/a","not found","not found",0.1,1200,"not found","not found",3.2,"n/a",1,0,0,0,0,0,0,1,0,0,0,0,0,0,0,0,0,0,1,0,1,0,1,0,1,0,"CA","ETP","PG&E","N",391.07,1,null,"ETP",0,396.07,0,0,"not found","n/a","n/a","participation=Residential customer","ETP Sheet","IOU Res Behavioral Presentation June 2013"," ","Residential Customers","Indirect",{"$f":"NOT(ISERROR(MATCH(ProgTable[[#This Row],[ODCID]],DD.Filter,0)))","v":true}]
[1044,391,"ET11PGE4081","Home Energy Management Insight Behavioral Research Smart Homes","CA","This project was designed to evaluate consumer preferences and attitudes towards home energy management and \"Smart Homes\" through qualitative focus groups.","IOU",null,"N/A",null,2013,2012,1,"opt-in","none","not found",150000,"n/a","not found","not found",210,"not found","not found","not found",3529,"n/a",1,0,1,0,0,0,0,0,0,0,0,0,0,0,0,0,0,0,0,0,0,0,0,0,0,1,"CA","ETP","PG&E","Y",391.05,1,null,"ETP",0,392.05,0,0,"not found","n/a","n/a","none","ETP Sheet"," "," ","Residential Customers","None",{"$f":"NOT(ISERROR(MATCH(ProgTable[[#This Row],[ODCID]],DD.Filter,0)))","v":true}]
[1045,42,"ET11PGE1072","ET Home Energy Management Field Tech Assessment Smart Thermostats","CA","Second phase of four phase project (Lab TA, Field TA, SFP-A, SFP-B) to track customer interaction, satisfaction, and energy savings from normative / behavioral messaging via mobile app and web portal as it relates to customers programmable communicating thermostat. Basic technical functionality will be tested in the lab. Usability, energy savings and technical functionality will be tested with a representative population. Alpha Test of the Opower/Honeywell Smart Thermostat Trial; which includes smart thermostat testing in PG&E employee homes. The proposed assessment aims to evaluate the customer experience from a Wi-Fi enabled Honeywell programmable thermostat combined with OPower behavioral software, which can be accessed via the internet or a smartphone. This assessment will give us an understanding of customer experiences and attitudes with the technology in order for the technology to be assessed through a larger scale field placement.","IOU",1,"N/A",null,2013,2012,1,"opt-in","mobile app","not found",89000,"n/a","not found","not found",10,17,"not found","not found",125,"n/a",1,0,0,0,0,0,0,0,1,0,0,0,0,0,0,0,0,0,0,0,0,0,0,0,0,1,"CA","ETP","PG&E","Y",391.02,1,42,"ETP",0,434.02,0,0,"not found","n/a","n/a","participation=Smart Thermostat in homes","ETP Sheet","Findings from the Opower/Honeywell Smart Thermostat Field Assessment (report)"," ","Residential Customers","Indirect",{"$f":"NOT(ISERROR(MATCH(ProgTable[[#This Row],[ODCID]],DD.Filter,0)))","v":true}]
[1046,42,"ET11PGE3073","ET Home Energy Management Scaled Field Placement (Phase A) Smart Thermostats","CA","Third phase of four phase project (Lab TA, Field TA, SFP-A, SFP-B) to track customer interaction, satisfaction, and energy savings from normative / behavioral messaging via mobile app and web portal as it relates to customers programmable communicating thermostat. Usability, energy savings and technical functionality will be tested with a representative population in PG'E's service territory.","IOU",1,"N/A",null,2013,2012,1,"opt-in","mobile app","not found",886247,"n/a","not found","not found",10,1000,"not found","not found",125,"n/a",1,0,0,0,0,0,0,0,1,0,0,0,0,0,0,0,0,0,0,0,0,0,0,0,0,1,"CA","ETP","PG&E","Y",391.03,1,42,"ETP",0,434.03,0,0,"not found","n/a","n/a","participation=Smart Thermostat in homes","ETP Sheet","Findings from the Opower/Honeywell Smart Thermostat Field Assessment (report)"," ","Residential Customers","Indirect",{"$f":"NOT(ISERROR(MATCH(ProgTable[[#This Row],[ODCID]],DD.Filter,0)))","v":true}]
[1047,42,"ET11PGE3074","ET Home Energy Management Scaled Field Placement Smart Thermostats (Phase 4)","CA","Final phase of four phase project (Lab TA, Field TA, SFP-A, SFP-B) to track customer interaction, satisfaction, and energy savings from normative / behavioral messaging via mobile app and web portal as it relates to customers programmable communicating thermostat. This is a scaled field placement of the technology in customers' homes. Usability, energy savings and technical functionality will be tested with a representative population.","IOU",1,"N/A",null,2013,2012,2,"opt-in","mobile app","not found",40000,"n/a","not found","not found",12.15,505,"not found","not found",129.16,4.7E-2,1,1,0,0,0,0,1,0,1,0,0,1,0,0,0,0,0,0,0,0,0,0,0,0,0,1,"CA","ETP","PG&E","Y",391.04,1,42,"ETP",0,434.04,0,0,"not found","n/a","n/a","participation=Smart Thermostat in homes","ETP Sheet","Findings from the Opower/Honeywell Smart Thermostat Field Assessment (report)"," ","Residential Customers","Indirect",{"$f":"NOT(ISERROR(MATCH(ProgTable[[#This Row],[ODCID]],DD.Filter,0)))","v":true}]
[1049,391,"ET12PGE1141","Optimization/Learning Thermostat Assessment Phase 1","CA","The a lab assessment for the EcoFactor smart thermostat solution to confirm the technical capability from algorithm based programmable communicating thermostat that optimizes control of residential HVAC based on continuous learning / optimization of the software embedded within the PCT. The lab technology assessment aims to evaluate the performance of a Wi-Fi enabled Honeywell programmable thermostat combined with EcoFactor algorithm software, which can be accessed via the internet or a smartphone. This assessment will give us an understanding of the technology's ability to communicate with devices, level of performance, and identify interference issues that may arise in future customers' homes.","IOU",1,"N/A",null,2013,2012,1,"opt-in","none","not found",17000,"n/a","not found","not found",10,"n/a","not found","not found",125,"n/a",1,1,0,0,0,0,0,0,1,0,0,0,0,0,0,0,0,0,0,0,0,0,0,0,0,1,"CA","ETP","PG&E","Y",391.06,1,null,"ETP",0,392.06,0,0,"not found","n/a","n/a","participation=Smart Thermostat in homes","ETP Sheet"," "," ","Residential Customers","None",{"$f":"NOT(ISERROR(MATCH(ProgTable[[#This Row],[ODCID]],DD.Filter,0)))","v":true}]
[1050,391,"ET13PGE1461","Smart / Learning Thermostats EM&V Study","CA","EE / DR EM&V Market Validation. Conduct comprehensive Smart Thermostat evaluation to determine the energy savings potential for a vendor agnostic residential incentive program. PG&E will leverage customer data from NEST and EnergyHub. Additionally, the report will assist with matching features to EE benefits.","IOU",1,"N/A",null,2014,2014,1,"opt-in","none","not found",190000,"n/a","not found","not found",12.15,3000,"not found","not found",129.16,4.7E-2,1,1,1,0,0,1,0,0,1,0,0,0,0,0,0,0,0,0,0,0,0,0,0,0,0,1,"CA","ETP","PG&E","Y",391.08,1,null,"ETP",0,392.08,0,0,"not found","n/a","n/a","participation=Residential Thermostats","ETP Sheet"," "," ","Residential Customers","None",{"$f":"NOT(ISERROR(MATCH(ProgTable[[#This Row],[ODCID]],DD.Filter,0)))","v":true}]
[1051,391,"ET13PGE1462","Smart Thermostats Lab Testing","CA","Smart Thermostats Lab Testing","IOU",1,"N/A",null,2014,2014,1,"opt-in","none","not found",80000,"n/a","not found","not found",12.15,"not found","not found","not found",129.16,4.7E-2,1,1,0,0,0,0,0,0,1,0,0,0,0,0,0,0,0,0,0,0,0,0,0,0,0,1,"CA","ETP","PG&E","Y",391.09,1,null,"ETP",0,392.09,0,0,"not found","n/a","n/a","none","ETP Sheet"," "," ","Residential Customers","None",{"$f":"NOT(ISERROR(MATCH(ProgTable[[#This Row],[ODCID]],DD.Filter,0)))","v":true}]
[1052,391,"ET13PGE1463","Optimization Thermostats EM&V Study","CA","State-wide collaboration on optimization thermostats","IOU",1,"N/A",null,2013,2013,1,"opt-in","none","not found",100000,"n/a","not found","not found",12.15,45000,"not found","not found",129.16,4.7E-2,1,1,0,0,0,0,0,0,1,0,0,0,0,0,0,0,0,0,0,0,0,0,0,0,0,1,"CA","ETP","PG&E","Y",391.1,1,null,"ETP",0,392.1,0,0,"not found","n/a","n/a","participation=Residential Tstats","ETP Sheet"," "," ","Residential Customers","None",{"$f":"NOT(ISERROR(MATCH(ProgTable[[#This Row],[ODCID]],DD.Filter,0)))","v":true}]
[1053,393,"ET11SCE4030","Consumer Behavior Change via Online Integrated Demand-Side Management Leveraging Casual Social Games","CA","Zema Good is a platform and online Integrated Demand Side Management service that incents consumers to conserve energy by leveraging social networks and social gaming.  The internet-based platform enables social gaming (and other internet-based) companies to gain new revenue streams by trading their in-game currency for payments from utilities for verifiable energy usage reductions and energy efficiency activities. The payments flow from the utilities to the game companies through Zema's proprietary service, with the game companies connecting via Application Programming Interface. \n \nThis project is a Phase 1 to scope the interest of specific age groups through qualitative and quantitative studies before the actual creation of the software platform.  Qualitative study will require couple focus groups that can be utilized to lay out the questions to be included in the quantitative study through an online survey. \nDELIVERABLE: The final deliverable will be a report with the findings.","IOU",null,"N/A",null,2013,"not found","not found","opt-in","mobile app","not found",50080,"n/a","not found","not found","not found","n/a","not found","not found","n/a","n/a",1,0,0,0,0,0,0,1,0,0,0,0,0,0,0,0,0,0,1,0,1,0,1,0,1,0,"CA","ETP","SCE","N",393.01,1,null,"ETP",0,398.01,0,0,"not found","n/a","n/a","none","ETP Sheet"," "," ","Residential Customers","Indirect",{"$f":"NOT(ISERROR(MATCH(ProgTable[[#This Row],[ODCID]],DD.Filter,0)))","v":true}]
[1054,393,"ET11SCE4070","Future Outlook for Residential Energy Management","CA","Conduct a market study, an adjunct to a main study, within SCE service territory to understand significant developments and trends in the Connected Home market by investigating consumer and manufacturers attitudes towards residential energy management in a connected home. A connected home can consist of distinct platforms or components that run independently within an home “ecosystem”. With the advancements in technology consumers will purchase and connect more and more devices in their homes to suit their practical needs. In the end, all devices or connections will constitute a building block infrastructure of a connected home. \n \nThe approach consisted of a two-pronged research study including a web survey among residential customers, and twelve in-depth telephone interviews among industry decision-makers and thought-leaders. \n \nDELIVERABLE: The final deliverable will be a report with the findings \n","IOU",1,"N/A",null,2013,2011,1,"opt-in","none","not found",47000,"n/a","not found","not found","not found","n/a","not found","not found","n/a","n/a",1,0,1,0,0,0,0,0,0,0,0,0,0,0,0,0,0,0,0,0,0,0,0,0,0,1,"CA","ETP","SCE","Y",393.02,1,null,"ETP",0,394.02,0,0,"not found","n/a","n/a","none","ETP Sheet"," "," ","Residential Customers","None",{"$f":"NOT(ISERROR(MATCH(ProgTable[[#This Row],[ODCID]],DD.Filter,0)))","v":true}]
[1055,393,"ET12SCE2010","Impact of Smart Grid on Connected Homes","CA","The Connected Home Market is a fast evolving segment that is being influenced by a number of emerging industry trends. There are uncertainties with regard to which technologies will remain current and adaptable to emerging changes in home area networks (HANS) requirements, energy dynamics as well as Smart Grid infrastructure deployment. To help clarify some of this uncertainty, the consultant – with support from SCE and numerous stakeholders nationwide and internationally – will produce a report outlining changing business models, technology commercialization prospects in the event of Smart Grid deployment, changes to communication standards, and time to market, amongst others. \n \nDELIVERABLE: Deliverable will be a report outlining changing business models, technology commercialization prospects in the event of Smart Grid deployment, changes to communication standards, and time to market, amongst others. \n","IOU",1,"N/A",null,2013,"not found","not found","opt-in","none","not found",3000,"n/a","not found","not found","not found","n/a","not found","not found","n/a","n/a",1,0,1,0,0,0,0,0,0,0,0,0,0,0,0,0,0,0,0,0,0,0,0,0,0,1,"CA","ETP","SCE","Y",393.03,1,null,"ETP",0,394.03,0,0,"not found","n/a","n/a","none","ETP Sheet"," "," ","Residential Customers","None",{"$f":"NOT(ISERROR(MATCH(ProgTable[[#This Row],[ODCID]],DD.Filter,0)))","v":true}]
[1056,393,"ET13SCE7060","Analysis of Next Generation HAN/BAN Systems","CA","This project involves research into current commercially available and upcoming home and building energy management systems products with network connectivity, Energy Efficiency, Fault Detection and Diagnostics (FDD) and Demand Response (DR) support functionality. Information about currently available next generation commercial products will be collected through research of existing installations and information from vendors. The expected outcome of this project is an assessment of products technology and functional characteristics as well as supported services such as energy management, security and entertainment. In addition, the project team will identify EMS products for future field evaluations to assess their effectiveness in implementing EE and DR measures.  \nDELIVERABLE: Final deliverable of this project will be a report with characterization of both existing and upcoming energy management system technologies for residential and small-commercial applications with an assessment of home/building area network connectivity; and support for EE, DR and FDD.","IOU",1,"N/A",null,2013,2012,2,"opt-in","advanced controls (i.e. EMCS)","not found",65156,"n/a","not found","not found","not found",0,"not found","not found",4,3.3,1,1,1,0,0,0,0,0,0,0,0,0,0,0,0,0,0,0,0,0,0,0,0,0,0,1,"CA","ETP","SCE","Y",393.04,1,null,"ETP",0,394.04,0,0,"not found","n/a","n/a","participation=Energy management system per air conditioner","ETP Sheet"," "," ","Residential and Commercial Customers","None",{"$f":"NOT(ISERROR(MATCH(ProgTable[[#This Row],[ODCID]],DD.Filter,0)))","v":true}]
[1057,393,"ET13SCE7220","Game Based Energy Efficiency Programs","CA","This project will look at \"Gamification\" to motivate people to use less energy, either by changing their behavior or by purchasing energy-efficient appliances, equipment, or buildings.   Gamification is “approaching problems from the perspective of a game designer to tap into the psychology of motivation.”  \n \nDELIVERABLE: The deliverable for this study will be a report with findings including a catalog of game types that provide insight for energy efficiency programs considering gamification. ","IOU",null,"N/A",null,2013,2013,1,"opt-in","none","not found",15000,"n/a","not found","not found","not found","n/a","not found","not found","not found","not found",1,0,0,0,0,0,0,1,0,0,0,0,0,0,0,0,0,0,0,0,1,0,0,0,0,0,"CA","ETP","SCE","N",393.07,1,null,"ETP",0,395.07,0,0,"not found","n/a","n/a","none","ETP Sheet"," "," ","Residential Customers","Indirect",{"$f":"NOT(ISERROR(MATCH(ProgTable[[#This Row],[ODCID]],DD.Filter,0)))","v":true}]
[1058,393,"ET13SCE7150","Field Testing of HAN/BAN systems with FDD","CA","This project will leverage the efforts from ET13SCE7060 (Analysis of Next-Generation Home/Building Energy Management Systems) to conduct laboratory and field evaluations of currently available home/building area network systems. This activity will assess the systems’ effectiveness in implementing utility DR programs, as well as evaluate their ability to collect, display, and communicate system fault detection and diagnostics (FDD) information when linked with residential and light commercial HVAC systems. In addition, the project team will explore network system control and automation functionality to determine the potential for automatic response to FDD signals as a means to optimize HVAC system performance. DELIVERABLE: Report with results and analysis from proof-of-concept laboratory tests and field demonstration of energy management systems with FDD and DR functionality to enable assessment of their performance under real-life conditions. \n\nThrough market research, the project team identified two HVAC systems that offer advanced FDD functionality and communications with HAN/BAN systems as candidates for laboratory and field\nassessment. Both HVAC systems are new to the market, and results from market research and discussions with the FDD system manufacturers suggest that additional technology development is\nneeded to effectively communicate FDD signals to networked systems as well as to service providers via cloud‐based communication technologies. The team initiated a proof‐of‐concept\nlaboratory test in Q4 2013 to evaluate two advanced FDD systems. The test involved a residential AC system communicating FDD information to local and remote cloud‐based communications\nsystems available on smart phone and PC platforms.  (Emerging Markets & Technology Demand Response 2013 Q3-Q4 report)","IOU",1,"N/A",null,2013,2012,2,"opt-in","advanced controls (i.e. EMCS)","not found",100000,"n/a","not found","not found","not found","n/a","not found","not found",4237,3.3,1,1,1,0,0,0,0,0,0,0,0,0,0,0,0,0,0,0,0,0,0,0,0,0,0,1,"CA","ETP","SCE","Y",393.05,1,null,"ETP",0,394.05,0,0,"not found","n/a","n/a","participation=Energy management system per air conditioner","ETP Sheet","Emerging Markets & Technology Demand Response 2013 Q3-Q4 report"," ","Residential and Commercial Customers","None",{"$f":"NOT(ISERROR(MATCH(ProgTable[[#This Row],[ODCID]],DD.Filter,0)))","v":true}]
[1060,395,"ET13SCG0017","NEST Thermostat Scaled Field Testing with PoF Navigant","CA","Performance test NEST thermostats in SFR homes ","IOU",1,"N/A"," ",2013,2013,1,"opt-in","none","not found",500000,"n/a","not found","not found",24.700000000000003,"not found","not found","not found",3619.5779601406807,0,1,1,1,0,0,0,0,0,1,0,0,0,0,0,0,0,0,0,0,0,0,0,0,0,0,1,"CA","ETP","SCG","Y",395.01,1,null,"ETP",0,396.01,0,0,"not found","n/a","n/a","none","ETP Sheet","https://nest.com/"," ","Residential Customers","Indirect",{"$f":"NOT(ISERROR(MATCH(ProgTable[[#This Row],[ODCID]],DD.Filter,0)))","v":true}]
[1061,395,"ET13SCG0018","Advanced Thermostat Scaled Field Testing with EPRI","CA","Savings and performance test several smart thermostats in SFR homes ","IOU",1,"N/A"," ",2013,2013,1,"opt-in","none","not found",70000,"n/a","not found","not found",24.700000000000003,"not found","not found","not found",3619.5779601406807,0,1,1,0,0,0,0,0,0,1,0,0,0,0,0,0,0,0,0,0,0,0,0,0,0,0,1,"CA","ETP","SCG","Y",395.02,1,null,"ETP",0,396.02,0,0,"not found","n/a","n/a","none","ETP Sheet","Local Government Commission SoCalGas Emerging Technologies Program PPT (Nov 2014)"," ","Residential Customers","Direct",{"$f":"NOT(ISERROR(MATCH(ProgTable[[#This Row],[ODCID]],DD.Filter,0)))","v":true}]
[1062,395,"ET14SCG0007","Earth Networks optimization service","CA","Cloud based services using advanced thermostats and weather forecast models, led by PGE and managed by Nexant","IOU",1,"N/A"," ",2014,2014,1,"opt-in","mobile app","not found",84000,"n/a","not found","not found",24.700000000000003,"not found","not found","not found",3619.5779601406807,0,1,1,0,0,0,1,0,0,1,0,0,0,0,0,0,0,0,0,0,0,0,0,0,0,0,1,"CA","ETP","SCG","Y",395.03,1,null,"ETP",0,396.03,0,0,"not found","n/a","n/a","none","ETP Sheet","http://www.earthnetworks.com/"," ","Residential Customers","Direct",{"$f":"NOT(ISERROR(MATCH(ProgTable[[#This Row],[ODCID]],DD.Filter,0)))","v":true}]
[1063,397,"ET13SDG1031","Residential Load Disaggregation ","CA","From ETP sheet: Evaluate several methods of residential load disaggregation for accuracy at up to 10 homes. \n\nFrom report: The focus of this case study of non-intrusive load monitoring (NILM) algorithms by four vendors at 11 non-randomly selected homes in the SDG&E region was to evaluate the rough accuracy of each algorithm in an effort to better understand the state of that industry. Whole building electrical power and energy use data was granted to the vendors at four approximate frequencies of 10-seconds, 1-minute, 15-minutes, and 1-hour. There were three data sources for this whole building data: two Rainforest Automation Eagle gateways obtaining high frequency data from the utility electricity smart meter, different only in firmware; and SDG&E Green Button Connect data. The average sampling and recording rate of the Eagle gateways was 10-seconds and the researchers also up-sampled this data to 1-minute and 15-minute intervals. The Green Button data was at 1-hour intervals for most homes and 15-minute intervals at two homes based on the homes’ electricity rate schedule. ","IOU",1,"N/A","not found",2013,2013,1,"opt-in","disaggregation tech","not found",100000,"n/a","not found","not found",0,"not found","not found","not found","not found","not found",1,0,1,0,1,0,0,0,0,0,0,0,0,0,0,0,0,0,0,0,0,0,0,0,0,1,"CA","ETP","SDG&E","Y",397.01,1,null,"ETP",0,398.01,0,0,"not found","n/a","n/a","none","ETP Sheet","SDG&E Residential Disaggregation Final Report"," ","Residential Customers","Direct",{"$f":"NOT(ISERROR(MATCH(ProgTable[[#This Row],[ODCID]],DD.Filter,0)))","v":true}]
[1064,397,"ET14SDG1041","Smart Home Scorecard","CA","Field Evaluation of a software application which uses green button data and weather data to score building envelope characteristics for homes","IOU",null,"N/A","not found",2014,2014,1,"opt-in","software application","not found",40000,"n/a","not found","not found",0,"not found","not found","not found","not found","not found",1,0,0,0,0,1,0,0,0,0,0,0,0,0,0,0,0,0,0,0,0,0,0,0,0,1,"CA","ETP","SDG&E","Y",397.02,1,null,"ETP",0,398.02,0,0,"not found","n/a","n/a","none","ETP Sheet"," "," ","Residential Customers","Indirect",{"$f":"NOT(ISERROR(MATCH(ProgTable[[#This Row],[ODCID]],DD.Filter,0)))","v":true}]
[1065,397,"ET14SDG1081","Interactive Home Energy Monitoring and Management System","CA","Field Evaluation of a new plug load and lighting controls and monitoring system focused on energy usage and conservation which is approaching an attractive price-point and is plug-and-play with a good user interface","IOU",1,"N/A","not found",2014,2014,1,"opt-in","advanced controls","not found",60000,"n/a","not found","not found",0,"not found","not found","not found","not found","not found",1,0,1,0,0,0,0,0,0,0,0,0,0,0,0,0,0,0,0,0,0,0,0,0,0,1,"CA","ETP","SDG&E","Y",397.03,1,null,"ETP",0,398.03,0,0,"not found","n/a","n/a","none","ETP Sheet"," "," ","Residential Customers","Direct",{"$f":"NOT(ISERROR(MATCH(ProgTable[[#This Row],[ODCID]],DD.Filter,0)))","v":true}]
[1109,399,"n/a","BayREN Residential Behavioral Pilot","CA","BKi worked with BAYREN and Home Energy Analytics, to provide feedback from smart meter data to Alameda county residents (about 300 participants). This effort was innovative because it provides feedback for specific energy use categories. The feedback shows what loads are driving use. In this respect, the pilot found that it was important to disaggregate participants (sometimes messaging is based on cultural predispositions -- on this case every use pattern (i.e. AC use). The messaging and content of the message is customized to use on two-week period, and used a variety of intervention strategies: goal setting, commitment, stacked intervention styles.","REN",1,"N/A","not found",2013,2013,1,"opt-in","disaggregation tech","not found","not found","not found","not found","not found","not found","~300",7.3999999999999996E-2,7.3999999999999996E-2,"not found","not found",1,0,0,0,0,0,1,0,0,0,0,0,1,0,0,0,0,0,0,0,0,0,0,0,0,0,"CA","Non-IOU","BayREN","Y",399,1,null,"Non-IOU",0,401,0,0,"not found","n/a","n/a","Impact results suggest 7.4% per HH savings for electric and 13% per HH for gas","BECC 2014 Session 2F: Getting to Gold Medal Utility Programs"," "," ","Residential Customers","Indirect",{"$f":"NOT(ISERROR(MATCH(ProgTable[[#This Row],[ODCID]],DD.Filter,0)))","v":true}]
[1110,404,"n/a","Home Energy Reports","CA","Compare your energy use with similar homes; See when you use energy and find ways to save; Create a Home Energy Report account online to see your detailed energy use, track energy saving goals, and update your home information to personalize your energy saving tips.","MU",null,"N/A","not found",2013,2013,1,"opt-out","none","not found","not found","not found",2000000,"not found","not found",25000,"not found","not found",{"$f":"S66/V66","v":80},"not found",1,0,0,0,0,0,1,0,0,0,0,0,0,0,0,1,0,0,1,0,0,0,0,0,0,0,"CA","Non-IOU","BWP","Y",404,1,null,"Non-IOU",0,407,0,0,"not found","n/a","n/a","estimates from website","http://www.burbankwaterandpower.com/incentives-for-residents/home-energy-report"," "," ","Residential Customers","Indirect",{"$f":"NOT(ISERROR(MATCH(ProgTable[[#This Row],[ODCID]],DD.Filter,0)))","v":true}]
[1111,405,"n/a","Uview Home Frame","CA","Uview Frame by CEIVA. Provides you with a digital photo frame that, in addition to displaying personal photographs, will provide information on household energy and water usage, BWP programs, and conservation tips.","MU",null,"N/A","not found",2013,2012,2,"opt-in","none","not found","not found","not found","not found","not found","not found",50,"not found","not found","not found","not found",1,0,0,0,1,0,0,0,0,0,0,0,0,0,0,1,0,0,0,0,0,0,0,0,0,0,"CA","Non-IOU","BWP","Y",405,1,null,"Non-IOU",0,407,0,0,"not found","n/a","n/a","none","http://www.burbankwaterandpower.com/2013-02-11-21-03-43/residential-rebates-and-services/uview-home-frame","market actor interview"," http://articles.burbankleader.com/2012-07-08/news/tn-blr-0708-electronic-picture-frames-will-track-utility-costs_1_burbank-residents-frames-glendale-water-power","Residential Customers","Indirect",{"$f":"NOT(ISERROR(MATCH(ProgTable[[#This Row],[ODCID]],DD.Filter,0)))","v":true}]
[1112,406,"n/a","Electric Vehicle Time of Use Rate","CA","The Time Of Use (TOU) electric rate is available only to EV owners at this time. This rate offers different electric costs at different times of day.","MU",null,"N/A","not found",2013,"not found","not found","opt-in","none","not found","not found","not found","not found","not found","not found","not found","not found","not found","not found","not found",0,0,0,0,0,0,0,0,0,0,1,0,0,0,0,1,0,0,0,0,0,0,0,0,0,0,"CA","Non-IOU","BWP","Y",406,1,null,"Non-IOU",0,408,0,0,"not found","n/a","n/a","none","http://www.burbankwaterandpower.com/incentives-for-residents/ev-charging-station-rebate"," "," ","Residential Customers","Indirect",{"$f":"NOT(ISERROR(MATCH(ProgTable[[#This Row],[ODCID]],DD.Filter,0)))","v":true}]
[1113,408,"n/a","Energy Insider/Home Energy Reports ","CA","Opower reports; Our customers receive a quarterly report that provides information to help them understand their home's energy usage and find smart ways to make their home more efficient; more information about your energy use with easy and helpful tips to help you so you can make informed choices and save money; compares to neighbors; Online portal with similar to Home Energy Reports, offered by Opower\n","MU",null,"N/A","not found",2009,"not found","not found","opt-out","none","not found","not found","not found",{"$f":"5787000/5","v":1157400},"not found","not found","not found","not found","not found","not found","not found",1,0,0,0,0,0,1,0,0,0,0,0,0,0,0,1,0,0,1,0,0,0,0,0,0,0,"CA","Non-IOU","GWP","Y",408,1,null,"Non-IOU",0,411,0,0,"not found","n/a","n/a","bill savings of 4%/year; \"to-date\" kWh savings is 5,787,000…I averaged over 5 years ( 2009 start year)","http://www.glendaleca.gov/government/city-departments/glendale-water-and-power/utility-modernization/online-tools-programs","http://www.glendaleca.gov/home-energy-reports"," http://opower.com/company/news-press/press_releases/14","Residential Customers","Indirect",{"$f":"NOT(ISERROR(MATCH(ProgTable[[#This Row],[ODCID]],DD.Filter,0)))","v":true}]
[1114,407,"n/a","CEIVA Homeview Pilot","CA","In home display brought to us by CEIVA Home View. This digital frame is connected to your digital meter and displays your real time energy usage information and daily water usage. By simply switching on and off appliances you can immediately see the price per hour for your energy change. These unique frames will also display your personal photos that you or your family members upload to your frame and also include two GWP and one City channel that gives you up to date information on what is happening at GWP and in Glendale","MU",null,"N/A","not found",2013,2012,2,"opt-in","none","not found","not found","not found","not found","not found","not found",45,0.09,0.08,"not found","not found",1,0,0,0,1,0,0,0,0,0,0,0,0,0,0,1,0,0,0,0,0,0,0,0,0,0,"CA","Non-IOU","GWP","Y",407,1,null,"Non-IOU",0,{"$f":"SUM(AM70:BI70)-AZ70","v":409},0,0,"not found","n/a","n/a","savings estimates from market actor","http://www.glendaleca.gov/government/city-departments/glendale-water-and-power/utility-modernization/online-tools-programs"," http://articles.burbankleader.com/2012-07-08/news/tn-blr-0708-electronic-picture-frames-will-track-utility-costs_1_burbank-residents-frames-glendale-water-power","Homeview presentation","Residential Customers","Indirect",{"$f":"NOT(ISERROR(MATCH(ProgTable[[#This Row],[ODCID]],DD.Filter,0)))","v":true}]
[1115,411,"n/a","Residential L-1-B Time-of-Use Service Rate","CA","Residential TOU rate","MU",null,"N/A","not found",2013,"not found","not found","opt-in","none","not found","not found","not found","not found","not found","not found","not found","not found","not found","not found","not found",0,1,0,0,0,0,0,0,0,0,0,0,0,0,0,1,0,0,0,0,0,0,0,0,0,0,"CA","Non-IOU","GWP","Y",411,1,null,"Non-IOU",0,413,0,0,"not found","n/a","n/a","none"," http://www.glendaleca.gov/government/departments/glendale-water-and-power/rates/residential-electric-rates"," "," ","Residential Customers","Indirect",{"$f":"NOT(ISERROR(MATCH(ProgTable[[#This Row],[ODCID]],DD.Filter,0)))","v":true}]
[1116,412,"n/a","My Energy Tool","CA","To help you determine what energy improvements can be made on your home and what the cost savings of implementing these measures could be, we’ve created this simple online tool to help you evaluate your options and maximize your investment. The tool will help you develop an energy action plan customized to your needs. Once you’re ready to go forward with your energy upgrade plan, our online tool can link you to qualified contractors and rebates and incentives.\n","CCA",null,"N/A","not found",2013,null,null,"opt-in","none","not found","not found","not found","not found","not found","not found","not found","not found","not found","not found","not found",1,0,0,0,0,0,0,0,0,1,0,0,0,0,0,0,0,0,0,0,0,0,0,0,0,1,"CA","Non-IOU","MCE","N",412,1,null,"Non-IOU",0,413,0,0,"not found","n/a","n/a","none","http://myenergytool.mcecleanenergy.com/"," "," ","Residential Customers","Indirect",{"$f":"NOT(ISERROR(MATCH(ProgTable[[#This Row],[ODCID]],DD.Filter,0)))","v":true}]
[1117,413,"n/a","HAN Pilot","CA","\"non-Commission regulated IDSM activity\"","CCA",null,"N/A","not found",2013,"not found","not found","opt-in","none","not found","not found","not found","not found","not found","not found","not found","not found","not found","not found","not found",1,0,1,0,0,0,0,0,0,0,0,0,0,0,0,0,0,0,0,0,0,0,0,0,0,1,"CA","Non-IOU","MCE","N",413,1,null,"Non-IOU",0,414,0,1,"not found","n/a","n/a","none","email from Olivia 1/26/15"," ",null,"Residential Customers","Indirect",{"$f":"NOT(ISERROR(MATCH(ProgTable[[#This Row],[ODCID]],DD.Filter,0)))","v":true}]
[1118,400,"n/a","SmartSacremento","CA","This study focuses on evaluating the timing and magnitude of changes in residential customers’ peak demand patterns due to exposure to varying combinations of enabling technology, different recruitment methods (i.e., opt-in vs. opt-out), and several time-based rates. SMUD is also interested in learning about customer acceptance of the different time-based rates under the alternative recruitment methods. Control/information technology treatments include the deployment of IHDs. SMUD is offering IHDs to all opt-out customers in any given treatment group and to more than half of the opt-in customers in the treatment group. All participating customers receive web portal access, customer support and a variety of education materials.","MU",null,"N/A","not found",2013,2012,1,"opt-out","none","not found","not found","n/a","not found","not found","not found","~57000","not found","not found","not found","not found",0,1,0,0,1,0,0,0,0,0,0,1,0,0,0,1,0,0,0,0,0,0,1,0,0,0,"CA","Non-IOU","SMUD","Y",400,1,null,"Non-IOU",0,403,0,0,"exists but not found","n/a","n/a","none","SGIG Consumer Behavior Study Analysis (LBNL-6248E)","https://www.smartgrid.gov/sites/default/files/pdfs/cbs/smud-cbs-description-2012-03-09.pdf"," ","Residential and Commercial Customers","Indirect",{"$f":"NOT(ISERROR(MATCH(ProgTable[[#This Row],[ODCID]],DD.Filter,0)))","v":true}]
[1119,401,"n/a","Home Energy Analysis","CA","Home Energy Calculator will provide you with estimates of energy use costs based on your inputs and will allow you to perform energy saving scenarios to pinpoint your opportunities for savings. Site includes several additional calculators and interactive are also available for whole home, appliance, or EV specific needs\n","MU",null,"N/A","not found",2013,"not found","not found","opt-in","none","not found","not found","not found","not found","not found","not found","not found","not found","not found","not found","not found",1,0,0,0,0,0,0,0,0,1,0,0,0,0,0,1,0,0,0,0,0,0,0,0,0,0,"CA","Non-IOU","SMUD","N",401,1,null,"Non-IOU",0,403,0,0,"not found","n/a","n/a","none","http://c03.apogee.net/clients/default.aspx?utilityid=smud&hostheader=smud&apptype=res"," "," ","Residential Customers","Indirect",{"$f":"NOT(ISERROR(MATCH(ProgTable[[#This Row],[ODCID]],DD.Filter,0)))","v":true}]
[1120,414,"n/a","Communicating Thermostat Usability Study","CA","A simultaneous, multi-user, paired comparison test of communicating thermostats for task efficiency, preference, and perceived usefulness of advanced features","MU",null,"N/A","not found",2013,2013,1,"opt-in","none","not found","not found","not found","not found","not found","not found",163,"not found","not found","not found","not found",1,1,0,0,0,0,0,0,1,0,0,0,0,0,0,0,0,0,0,0,0,0,0,0,0,1,"CA","Non-IOU","SMUD","Y",414,1,null,"Non-IOU",0,415,0,0,"Y","TBD","TBD","none","Herter Energy Usability Study Feb 2014"," "," ","Residential Customers","Indirect",{"$f":"NOT(ISERROR(MATCH(ProgTable[[#This Row],[ODCID]],DD.Filter,0)))","v":true}]
[1121,417,"n/a","Plug-in Electric Vehicle Submetering Pilot","CA","The California Public Utilities Commission will launch a pilot program to help electric vehicle owners optimize charging their electric vehicles at home and at work. Residential and commercial Plug-In Electric Vehicle (PEV) customers of Pacific Gas & Electric (PG&E), Southern California Edison (SCE), and San Diego Gas & Electric (SDG&E), including Net Energy Metering customers, are eligible. The pilot intends to improve customer choice and value by using energy meters specifically for PEV charging to help drivers save on fuel costs and avoid upgrading their electrical infrastructure.","IOU",null,"Y","not found",2014,2014,1,"opt-in","none","not found","not found","n/a","not found","not found","not found","not found","not found","not found","not found","not found",0,1,0,0,0,0,0,0,0,0,1,0,0,0,0,1,0,0,0,0,0,0,0,0,0,0,"CA","Other","PG&E","Y",417,1,null,"Other",0,419,0,0,"not found","n/a","n/a","none","http://www.cpuc.ca.gov/PUC/energy/altvehicles/Plug-In+Electric+Vehicle+Submetering.htm"," ",null,"Residential and Commercial Customers","Indirect",{"$f":"NOT(ISERROR(MATCH(ProgTable[[#This Row],[ODCID]],DD.Filter,0)))","v":true}]
[1122,415,"n/a","OhmConnect Pilot","CA","Partnership between OhmConnect and SDG&E","IOU",null,"Y","not found",2015,2015,1,"opt-in","none","not found","not found","n/a","not found","not found","not found","not found","not found","not found","not found","not found",0,1,0,0,0,0,0,0,0,0,0,1,0,0,0,0,0,0,0,0,0,0,1,0,0,0,"CA","Other","SCE","Y",415,1,null,"Other",0,417,0,0,"not found","n/a","n/a","none","Q:\\8120-CPUC DNV Residential\\Behavior Study\\_Deliverables\\Reporting\\Additional Info and Context for Report\\RE  Ohmconnect's Q1 2015 update - taking charge of our energy sources","https://www.ohmconnect.com/index"," ","Residential Customers","Indirect",{"$f":"NOT(ISERROR(MATCH(ProgTable[[#This Row],[ODCID]],DD.Filter,0)))","v":true}]
[1123,418,"n/a","Plug-in Electric Vehicle Submetering Pilot","CA","The California Public Utilities Commission will launch a pilot program to help electric vehicle owners optimize charging their electric vehicles at home and at work. Residential and commercial Plug-In Electric Vehicle (PEV) customers of Pacific Gas & Electric (PG&E), Southern California Edison (SCE), and San Diego Gas & Electric (SDG&E), including Net Energy Metering customers, are eligible. The pilot intends to improve customer choice and value by using energy meters specifically for PEV charging to help drivers save on fuel costs and avoid upgrading their electrical infrastructure.","IOU",null,"Y","not found",2014,2014,1,"opt-in","none","not found","not found","n/a","not found","not found","not found","not found","not found","not found","not found","not found",0,1,0,0,0,0,0,0,0,0,1,0,0,0,0,1,0,0,0,0,0,0,0,0,0,0,"CA","Other","SCE","Y",418,1,null,"Other",0,420,0,0,"not found","n/a","n/a","none","http://www.cpuc.ca.gov/PUC/energy/altvehicles/Plug-In+Electric+Vehicle+Submetering.htm"," ",null,"Residential and Commercial Customers","Indirect",{"$f":"NOT(ISERROR(MATCH(ProgTable[[#This Row],[ODCID]],DD.Filter,0)))","v":true}]
[1124,416,"n/a","OhmConnect Pilot","CA","Partnership between OhmConnect and SCE","IOU",null,"Y","not found",2015,2015,1,"opt-in","none","not found","not found","n/a","not found","not found","not found","not found","not found","not found","not found","not found",0,1,0,0,0,0,0,0,0,0,0,1,0,0,0,0,0,0,0,0,0,0,1,0,0,0,"CA","Other","SDG&E","Y",416,1,null,"Other",0,418,0,0,"not found","n/a","n/a","none","Q:\\8120-CPUC DNV Residential\\Behavior Study\\_Deliverables\\Reporting\\Additional Info and Context for Report\\RE  Ohmconnect's Q1 2015 update - taking charge of our energy sources","https://www.ohmconnect.com/index",null,"Residential and Commercial Customers","Indirect",{"$f":"NOT(ISERROR(MATCH(ProgTable[[#This Row],[ODCID]],DD.Filter,0)))","v":true}]
[1125,419,"n/a","Plug-in Electric Vehicle Submetering Pilot","CA","The California Public Utilities Commission will launch a pilot program to help electric vehicle owners optimize charging their electric vehicles at home and at work. Residential and commercial Plug-In Electric Vehicle (PEV) customers of Pacific Gas & Electric (PG&E), Southern California Edison (SCE), and San Diego Gas & Electric (SDG&E), including Net Energy Metering customers, are eligible. The pilot intends to improve customer choice and value by using energy meters specifically for PEV charging to help drivers save on fuel costs and avoid upgrading their electrical infrastructure.","IOU",null,"Y","not found",2014,2014,1,"opt-in","none","not found","not found","n/a","not found","not found","not found","not found","not found","not found","not found","not found",0,1,0,0,0,0,0,0,0,0,1,0,0,0,0,1,0,0,0,0,0,0,0,0,0,0,"CA","Other","SDG&E","Y",419,1,null,"Other",0,421,0,0,"not found","n/a","n/a","none","http://www.cpuc.ca.gov/PUC/energy/altvehicles/Plug-In+Electric+Vehicle+Submetering.htm"," ",null,"Residential and Commercial Customers","Indirect",{"$f":"NOT(ISERROR(MATCH(ProgTable[[#This Row],[ODCID]],DD.Filter,0)))","v":true}]
[1126,40,"n/a","My Energy Web Tools: My Usage","CA","Sub-activity of My Energy Web Tools","IOU",null,"N",null,2013,2011,3,"opt-in","none","part of My Energy Web tools","part of My Energy Web tools","n/a","part of My Energy Web tools","part of My Energy Web tools","part of My Energy Web tools",1900000,"not found","not found","not found","not found",1,0,0,0,0,0,0,0,0,1,0,0,0,0,0,1,0,0,0,0,0,0,0,0,0,0,"CA","Other","PG&E","Y",40.01,1,51,"SGDP",0,93.009999999999991,0,0,"not found","n/a","n/a","participation=visits","PG&E data request response"," "," ","Residential Customers","Indirect",{"$f":"NOT(ISERROR(MATCH(ProgTable[[#This Row],[ODCID]],DD.Filter,0)))","v":true}]
[1127,21,"n/a","Energy Alerts","CA","The PG&E Energy Alerts program notifies customers when their energy consumption crosses into higher rate Tiers or is forecasted to cross into higher rate Tiers by the end of a billing period. This program is currently being offered to residential customers with electric SmartMeters™ and who are on electric Rate Schedules E1, E6, E7 and E8.","IOU",null,"N",null,2013,2010,4,"opt-in","none",100000,"n/a","n/a",7064000,"n/a","not found",113000,"not found","not found",62.513274336283189,"n/a",1,0,0,0,0,0,0,0,0,0,0,1,0,0,0,1,0,0,0,0,0,0,0,0,0,0,"CA","AMI","PG&E","Y",21,1,null,"SGDP",0,23,0,0,"not found","n/a","n/a","PG&E said MORE THAN 113,000","Smart Grid Annual Report","PG&E data request response"," ","Residential Customers","Direct",{"$f":"NOT(ISERROR(MATCH(ProgTable[[#This Row],[ODCID]],DD.Filter,0)))","v":true}]
[1128,29,"n/a","HAN Enablement Program – Phase 1 & Phase 2","CA","PG&E’s HAN Enablement program is an infrastructure that allows customers to register and commission a standards compliant device with PG&E’s AMI network to receive near real-time data from their SmartMeter™. In HAN Phase 1 (Initial Deployment), which ran from March 1, 2012 through April 30, 2013, PG&E installed and supported 430 In Home Displays (IHDs) with residential customers. Starting in January 2013, PG&E launched HAN as a platform, making the capability to register a device and received near real time usage information from a customer’s electric SmartMeter™ available to all eligible customers across its service territory. Phase 2 of the HAN Enablement Program provides customers with a list of five PG&E validated devices that can be purchased through retail channels. As part of this project, PG&E issued a Request for Information (RFI) to the retail market to identify devices and technologies (IHDs, gateways, and repeaters) that are interoperable with PG&E’s SmartMeter™. After purchasing a validated HAN device, customers will be able to self-register their device through PG&E’s My Energy (self-registration launching at the beginning of 2014) and receive near real-time usage information directly from their SmartMeter.","IOU",1,"N",null,2013,2012,2,"opt-in","none",2060000,"Not found","n/a","n/a","n/a","not found",1120,5.6000000000000001E-2,5.6000000000000001E-2,"not found","not found",1,0,1,0,1,0,0,0,0,0,0,0,0,0,0,1,0,0,0,0,0,0,0,0,0,0,"CA","AMI","PG&E","Y",29,1,null,"SGDP",0,31,0,1,"not found","n/a","n/a","% is %kWh savings for Phase 1 IHDs participants; participation defined as devices connected","Smart Grid Annual Report","PG&E data request response"," ","Residential Customers","Direct",{"$f":"NOT(ISERROR(MATCH(ProgTable[[#This Row],[ODCID]],DD.Filter,0)))","v":true}]
[1129,40,"n/a","My Energy Web Tools: Ways to Save","CA","Sub-activity of My Energy Web Tools","IOU",null,"N",null,2013,2011,3,"opt-in","none","part of My Energy Web tools","part of My Energy Web tools","n/a","part of My Energy Web tools","part of My Energy Web tools","part of My Energy Web tools",200000,"not found","not found","not found","not found",1,0,0,0,0,0,0,0,0,1,0,0,0,0,0,1,0,0,0,0,0,0,0,0,0,0,"CA","Other","PG&E","Y",40.020000000000003,1,51,"SGDP",0,93.02000000000001,0,0,"not found","n/a","n/a","participation=visits","PG&E data request response"," "," ","Residential Customers","Indirect",{"$f":"NOT(ISERROR(MATCH(ProgTable[[#This Row],[ODCID]],DD.Filter,0)))","v":true}]
[1130,40,"n/a","My Energy Web Tools: Home Energy Check-up","CA","Sub-activity of My Energy Web Tools","IOU",null,"N",null,2013,2011,3,"opt-in","none","part of My Energy Web tools","part of My Energy Web tools","n/a",7600000,"part of My Energy Web tools","part of My Energy Web tools",26000,"not found","not found",{"$f":"S86/V86","v":292.30769230769232},"not found",1,0,0,0,0,0,0,0,0,1,0,0,0,0,0,1,0,0,0,0,0,0,0,0,0,0,"CA","Other","PG&E","Y",40.03,1,51,"SGDP",0,93.03,0,0,"not found","n/a","n/a","participation=completions","PG&E data request response"," "," ","Residential Customers","Indirect",{"$f":"NOT(ISERROR(MATCH(ProgTable[[#This Row],[ODCID]],DD.Filter,0)))","v":true}]
[1131,42,"ET11PGE3074","Opower/Honeywell Smart Thermostat Assessment /Pilot","CA","PG&E is conducting a Smart Thermostat Pilot with OPower and Honeywell to evaluate the energy benefits that accrue to customers who utilize internet-enabled thermostats, when exposed to behavioral energy saving messaging. This trial is a component of the Energy Efficiency Portfolio’s Emerging Technologies Program, and will include a pilot group of approximately 500 residential customers","IOU",0,"Y",null,2013,2012,2,"opt-in","none",390000,1100000,"n/a",0,0,0,505,"not found","not found",0,"not found",1,1,0,0,0,0,1,0,1,0,0,1,0,0,0,0,0,0,1,0,0,0,0,0,0,0,"CA","ETP","PG&E","Y",42,0,"391.01, 391.02, 391.03, 391.04","SGDP",0,43,0,0,"not found","n/a","n/a","savings not statistically significant; The Trial results were inconclusive, therefore PG&E will be pursuing other Emerging Technology trials to study Smart Thermostats further.","Smart Grid Annual Report; PG&E data request response","http://www.pge.com/myhome/saveenergymoney/smartthermostattrial/","Findings from the Opower/Honeywell Smart Thermostat Field Assessment (report); BECC 2014 presentation \"Final Savings Estimates and Key Learnings from a Behavioral Messaging Thermostat Trial”, Lucy Morris, PG&E\"","Residential Customers","Indirect",{"$f":"NOT(ISERROR(MATCH(ProgTable[[#This Row],[ODCID]],DD.Filter,0)))","v":true}]
[1132,51,"n/a","Home Energy Reports","CA","Home Energy Reports is a behavior-based energy efficiency initiative, under the Residential Energy Advisor (EA) program, that provides customers with normative neighborhood comparisons to similar households and personalized energy saving recommendations. The key features of the report include raising awareness of customer energy usage, using social norms to influence customer behaviors, and motivating customers to further engage with PG&E programs and resources such as registering to use My Energy Web Tools and the Universal Audit Tool.","IOU",null,"Y",null,2013,2011,3,"opt-out","none",5500000,8295000,26356800,82700000,12300,2495700,1200000,"not found","not found","cannot calculate (not apples to apples)","not found",1,0,0,0,0,0,1,0,0,0,0,0,0,0,0,0,0,0,1,0,0,0,0,0,0,0,"CA","EE","PG&E","Y",51.01,1,51,"SGDP",0,104.00999999999999,0,0,"not found","n/a","n/a","therm savings are initial estimates, to be refined by DNV Kema ","Smart Grid Annual Report","PG&E data request response"," ","Residential Customers","Indirect",{"$f":"NOT(ISERROR(MATCH(ProgTable[[#This Row],[ODCID]],DD.Filter,0)))","v":true}]
[1133,66,"n/a","Universal Audit Tools (UAT)","CA","PG&E provides the Home Energy Checkup and Business Energy Checkup (Universal Audit Tools) for residential and small and medium business customers through My Energy. These tools utilize SmartMeter™ data along with other customer insights to make it easy for our customers to find energy savings ideas that are particular to how they use energy. The tools are progressive in nature, continually learning based on the information the customer provides, and include recommendations across energy efficiency, demand response, distributed generation, and behavioral changes","IOU",null,"N",null,2013,2012,2,"opt-in","none",3700000,"Not found","n/a","not found","not found","not found","not found","not found","not found","not found","not found",1,0,0,0,0,0,0,0,0,1,0,0,0,0,0,0,0,0,0,0,0,0,0,0,0,1,"CA","EE","PG&E","Y",66,1,51,"SGDP",0,118,0,0,"not found","n/a","n/a","none","Smart Grid Annual Report","PG&E data request response"," ","Residential and SMB Customers","Indirect",{"$f":"NOT(ISERROR(MATCH(ProgTable[[#This Row],[ODCID]],DD.Filter,0)))","v":true}]
[1134,197,"n/a","Home Area Network (HAN) Demand Response (DR) Integration Pilot Project.","CA","PG&E’s HAN DR Integration Project builds upon the HAN IT infrastructure by delivering price signals and load control messaging to expand the DR opportunities for residential and Small & Medium Business (SMB) customers. This pilot evaluation project will involve approximately 2,000 residential and SMB SmartRate™ and Peak Day Pricing (PDP) customers, allowing PG&E to identify issues, obtain feedback, and learn from its customers. It will include HAN devices that provide real- time energy prices and respond to DR notifications of critical pricing events.","IOU",null,"Y",null,2013,2012,2,"opt-in","none",11940000,"Not found","n/a",536000,"not found","not found",2000,"not found","not found",268,"not found",0,1,1,0,1,0,0,0,0,0,0,0,0,0,0,1,0,0,0,0,0,0,0,0,0,0,"CA","DR","PG&E","Y",197,1,null,"SGDP",0,199,0,0,"not found","n/a","n/a","estimates not just residential, includes SMB","Smart Grid Annual Report","PG&E data request response"," ","Residential and SMB Customers","Indirect",{"$f":"NOT(ISERROR(MATCH(ProgTable[[#This Row],[ODCID]],DD.Filter,0)))","v":true}]
[1135,23,"n/a","Green Button Connect (GBC) Beta","CA","With Green Button Connect (GBC) Beta, PG&E gives customers greater control over SmartMeter™ enabled energy usage data. Green Button Connect is a software interface that allows PG&E customers to easily share their energy usage data with other energy service providers. These developers can then “mash up” the data in unique ways to provide valuable insights to customers.","IOU",null,"N",null,2013,2012,2,"opt-in","mobile app",540000,540000,"n/a","not tracked","not tracked","not tracked",83815,"not found","not found","not found","not found",1,0,0,0,0,1,0,0,0,0,0,0,0,0,0,0,0,0,0,0,0,0,0,0,0,1,"CA","Other","PG&E","Y",23,1,null,"SGDP",0,24,0,0,"not found","n/a","n/a","participation defined as requests for data (tracked as requests sent in by vendors for data / not by individual customer); 2012=319 requests for data","Smart Grid Annual Report","PG&E data request response","CALMAC Study PGE0332.01","Residential Customers","Indirect",{"$f":"NOT(ISERROR(MATCH(ProgTable[[#This Row],[ODCID]],DD.Filter,0)))","v":true}]
[1136,62,"n/a","The Green Button Initiative","CA","In PG&E’s Green Button Initiative, the Green Button tool provides customers with a means of easily accessing and downloading their energy use online in a standardized format that can be shared with energy service providers.","IOU",null,"N",null,2013,2011,3,"opt-in","none",0,"Not found","n/a","not tracked","not tracked","not tracked",240300,"not found","not found","not found","not found",1,0,0,0,0,1,0,0,0,0,0,0,0,0,0,0,0,0,0,0,0,0,0,0,0,1,"CA","Other","PG&E","Y",62,1,null,"SGDP",0,63,0,0,"not found","n/a","n/a","participation defined as downloads (2012=157,400)","Smart Grid Annual Report","PG&E data request response"," ","Residential Customers","Indirect",{"$f":"NOT(ISERROR(MATCH(ProgTable[[#This Row],[ODCID]],DD.Filter,0)))","v":true}]
[1137,44,"n/a","Peak Time Rebate (PTR) aka Reduce Your Use","CA","Save enough electricity between 11 a.m. and 6 p.m. on a Reduce Your UseSM Rewards day and you’ll earn a credit on your SDG&E bill. To earn rewards, set up an alert and we’ll let you know when to expect a Reduce Your Use day.","IOU",null,"N","not found",2013,2012,2,"opt-in","none",130445,"see next column",6885000,"n/a",33721.905272717697,"n/a",1207533,"not found","not found","n/a",2.30335895545962E-3,0,1,0,0,0,0,0,0,0,0,0,1,0,0,0,0,0,0,0,0,0,0,1,0,0,0,"CA","DR","SDG&E","Y",44,1,53,"DR",0,99,0,0,"not found","n/a","n/a","kW savings is sum of monthly ex-post load reduction; participants=enrolled service accounts as of Dec. 2013","DR Progress Reports","DR Decision D.12-04-045"," ","Residential Customers","Indirect",{"$f":"NOT(ISERROR(MATCH(ProgTable[[#This Row],[ODCID]],DD.Filter,0)))","v":true}]
[1138,6,"n/a","Edison SmartConnect Field Trials – HAN Real-time Cost Pilot (RTCP)","CA","The RTCP, implemented pursuant to D.11-07-056, leveraged the IHS Phase 1 project. The only difference was that 250 of the 500 customers received a HAN device that was capable of calculating near real-time cost using SCE’s daily cost/price HAN text message. The purpose of the RTCP was to determine how SCE can convey cost information to customers and gain insight as to how customer’s value cost information relative to energy usage information. This rate saves the customer an additional $0.50 for each kWh reduced during a Save Power Day demand response event on top of the $0.75 per kWh\nreduction that customers on the standard Peak Time Rebate (PTR) rate earn. Based on the \"HAN Third Party Limited Launch\" description, this also included enrollment in Save Power Day","IOU",1,"Y",null,2013,2012,2,"opt-in","none",10000,"TBD from SCE","n/a","2.18 kWh per day","not tracked","not found",220,"not found","not found","cannot calculate (not apples to apples)","not found",1,1,1,0,1,0,0,0,0,0,0,0,0,0,0,1,0,0,0,0,0,0,1,0,0,0,"CA","AMI","SCE","Y",6,1,null,"SGDP",0,9,0,0,"Y","TBD","TBD","none","Smart Grid Annual Report","SCE data request response"," ","Residential Customers","Direct",{"$f":"NOT(ISERROR(MATCH(ProgTable[[#This Row],[ODCID]],DD.Filter,0)))","v":true}]
[1139,8,"n/a","Edison SmartConnect Field Trials – HAN Third Party Limited Launch","CA","This pilot enabled customers to purchase SCE-compatible HAN devices via a retail provider or service provider. The pilot included the same features as the IHS Phase 1 project, including enrollment in Save Power Day Incentive Plus and daily cost/price messages sent to the HAN devices. SCE evaluated customer experiences with SCE and third parties to adjust the processes and customer education materials appropriately for the next HAN project (HAN with Load Control).","IOU",1,"Y",null,2013,2012,2,"opt-in","none",0,0,"n/a","0.98 kWh per day","not tracked","not found",45,"not found","not found","cannot calculate (not apples to apples)","not found",1,1,1,0,1,0,0,0,0,0,0,0,0,0,0,1,0,0,0,0,0,0,0,0,0,0,"CA","AMI","SCE","Y",8,1,null,"SGDP",0,10,0,0,"not found","n/a","n/a","none","Smart Grid Annual Report","SCE data request response"," ","Residential Customers","Indirect",{"$f":"NOT(ISERROR(MATCH(ProgTable[[#This Row],[ODCID]],DD.Filter,0)))","v":true}]
[1140,12,"n/a","Edison SmartConnect Field Trials – Interim HAN Solution (IHS) Phase 1","CA","The Interim HAN Solution was a limited launch to 500 eligible residential, SmartConnect, “program ready” customers. Eligible customers were invited by email and enrolled using a simple form on sce.com. Participation included enrollment in the Save Power Day Incentive Plus (PTR-ET) program, receiving a free SEP 1.0 in-home display device and the customer calling SCE to register the device. Registered HAN devices displayed near real-time energy information from the meter, daily bill-to-date, bill forecast and price and tier text messages and Save Power Day event notifications. This project implemented a new Advanced Load Control system for device registration, which will be leveraged in the future for HAN load control using programmable communicating thermostats.","IOU",1,"Y",null,2013,2011,1,"opt-in","load control tech",20000,"TBD from SCE","n/a","0.98 kWh per day","not tracked","not found",202,"not found","not found","cannot calculate (not apples to apples)","not found",1,1,1,0,1,0,0,0,0,0,0,0,0,0,0,1,0,0,0,0,0,0,0,0,0,0,"CA","AMI","SCE","Y",12,1,null,"SGDP",0,14,0,0,"not found","n/a","n/a","none","Smart Grid Annual Report","SCE data request response"," ","Residential Customers","Direct",{"$f":"NOT(ISERROR(MATCH(ProgTable[[#This Row],[ODCID]],DD.Filter,0)))","v":true}]
[1141,14,"n/a","Edison SmartConnect Field Trials – Long Beach Field Trial","CA","Through this pilot program, SCE installed two different in-home display devices in customer homes to learn how customers interact with the devices, how they value the information, and what features they feel are important to effectively manage their energy usage. The devices were deployed to 38 customer homes and customers completed surveys to provide feedback.","IOU",1,"Y",null,2013,2010,1,"opt-in","none","TBD from SCE","TBD from SCE","n/a","not tracked","not tracked","not found",37,"not found","not found","not found","not found",1,0,0,0,1,0,0,0,0,0,0,0,0,0,0,1,0,0,0,0,0,0,0,0,0,0,"CA","AMI","SCE","Y",14,1,null,"SGDP",0,16,0,0,"not found","n/a","n/a","none","Smart Grid Annual Report","SCE data request response"," ","Residential Customers","Direct",{"$f":"NOT(ISERROR(MATCH(ProgTable[[#This Row],[ODCID]],DD.Filter,0)))","v":true}]
[1142,10,"n/a","Edison SmartConnect Field Trials – HAN with Load Control (LC)","CA","HAN with LC involved upgrading systems and automating processes from IHS Phase 1 to enable self-registration of HAN devices via sce.com My Account. Customers have been able to purchase HAN devices through retailers and service providers and register the devices through the web. Customers who register a new HAN device are eligible to receive a HAN device rebate ($25 for IHDs, dongles or gateways, $125 for PCTs ($50 towards the device purchase and $75 for the installation). This project also included a limited launch of 500 programmable communicating thermostats that were provided by SCE and installed by an SCE contractor. Customers who choose to participate are enrolled in the Summer Discount Plan (SDP) program and have the capability to override the load control event on the thermostat (depending on the SDP option they choose). This limited launch enables SCE to evaluate the technology and processes before offering this option to a broader set of customers.","IOU",1,"Y",null,2013,2012,2,"opt-in","load control tech",9500000,951720,"n/a","not tracked","not tracked","not found",430,"not found","not found","not found","not found",1,1,1,0,1,0,0,0,1,0,0,0,0,0,0,0,0,0,0,0,0,0,0,0,0,1,"CA","AMI","SCE","Y",10,1,null,"SGDP",0,11,0,0,"not found","n/a","n/a","Technical Difficulties resulted in low participation, unable to accurately determine load reduction","Smart Grid Annual Report","SCE data request response"," ","Residential Customers","Indirect",{"$f":"NOT(ISERROR(MATCH(ProgTable[[#This Row],[ODCID]],DD.Filter,0)))","v":true}]
[1143,27,"n/a","Green Button Initiative","CA","In September 2011, the White House challenged utilities to enable customers to download their usage data in a consistent format by clicking a “Green Button” on the utility’s website ","IOU",null,"N",null,2013,2011,3,"opt-in","none",3010000,3480000,"n/a","n/a","n/a","not found","n/a","not found","not found","not found","not found",1,0,0,0,0,1,0,0,0,0,0,0,0,0,0,0,0,0,0,0,0,0,0,0,0,1,"CA","AMI","SCE","Y",27,1,null,"SGDP",0,28,0,0,"not found","n/a","n/a","none","Smart Grid Annual Report","SCE data request response"," ","Residential Customers","Indirect",{"$f":"NOT(ISERROR(MATCH(ProgTable[[#This Row],[ODCID]],DD.Filter,0)))","v":true}]
[1145,32,"n/a","HAN Projects: Reduce Your Use IHD Pilot","CA","The objective of this pilot is to study the impact of customer energy savings during Reduce Your Use events when provided with an IHD.","IOU",1,"Y","not found",2013,2010,4,"opt-in","none","part of HAN Projects","part of HAN Projects","n/a","not found","not found","not found",650,0.08,0.06,"not found","not found",1,1,1,0,1,0,0,0,0,0,0,1,0,0,0,0,0,0,0,0,0,0,1,0,0,0,"CA","Other","SDG&E","Y",32.01,1,null,"SGDP",0,34.01,0,0,"not found","n/a","n/a","none","Smart Grid Annual Report"," "," ","Residential Customers","Direct",{"$f":"NOT(ISERROR(MATCH(ProgTable[[#This Row],[ODCID]],DD.Filter,0)))","v":true}]
[1146,47,"n/a","PEV Rate Experiment (Study)","CA","The objective of this project is to examine PEV consumer TOU charging preferences, the use of smart-charging enabling technology, and other relevant factors through a study that includes the use of CPUC approved experimental PEV rates. SDG&E is conducting this research in collaboration with ECOtality’s EV Project and Nissan during the introduction of the Leaf PEV to the greater San Diego region, which began in December 2010. This study will examine the price elasticity of demand for electricity by time-of-day among PEV vehicle consumers as an indicator of the sensitivity of electricity demanded to its change in price.\n\nStudy participants were SDG&E customers who qualified for the EV Project - were randomly assigned to one of three experimental rates; all customers drove a Nissan Leaf and had Level 2 home charging units (from PPT)","IOU",null,"N","not found",2013,2010,4,"opt-in","none",252000,"Not found","n/a","not found","not found","not found",">400","not found","not found","not found","not found",0,0,0,0,0,0,0,0,0,0,1,0,0,0,0,1,0,0,0,0,0,0,0,0,0,0,"CA","Other","SDG&E","Y",47,1,null,"SGDP",0,49,0,0,"not found","n/a","n/a","none","Smart Grid Annual Report","The PEV Rate and Technology Experiment PPT (DR folder)"," ","Residential Customers","Indirect",{"$f":"NOT(ISERROR(MATCH(ProgTable[[#This Row],[ODCID]],DD.Filter,0)))","v":true}]
[1149,24,"n/a","Green Button Connect My Data","CA","Energy Services Provider Interface (ESPI – CEN Phase 3a) - Green Button Connect My Data is the automated sending of Green Button data to third parties (per customer request/consent) via a standard interface (NAESB/ESPI). Customers’ data will be sent using one of two models: One and done (one-time data transmission of up to 13 months of customer consumption depending on customer data availability) and Ongoing (customer data to be transmitted on an ongoing basis as long as customer is enrolled with third party).","IOU",null,"N","not found",2013,2012,2,"opt-in","mobile app",1127000,"Not found","n/a","not found","not found","not found","not found","not found","not found","not found","not found",1,0,0,0,0,1,0,0,0,0,0,0,0,0,0,0,0,0,0,0,0,0,0,0,0,1,"CA","Other","SDG&E","Y",24,1,null,"SGDP",0,{"$f":"SUM(AM102:BI102)-AZ102","v":25},0,0,"not found","n/a","n/a","none","Smart Grid Annual Report"," "," ","Residential Customers","Indirect",{"$f":"NOT(ISERROR(MATCH(ProgTable[[#This Row],[ODCID]],DD.Filter,0)))","v":true}]
[1150,26,"n/a","Green Button Download My Data","CA","SDG&E’s Green Button allows customers to download their electricity usage data in a standard format through SDG&E’s secure My Account website. This functionality was developed in response to a challenge issued by the White House to give customers timely access to their energy data with the click of a single button. By using the Green Button customers can download up to 13 months of their electricity usage data, and developers and third parties can receive electricity usage data from customers in a machine-readable format.","IOU",null,"N","not found",2012,2011,3,"opt-in","none",100000,"Not found","n/a","not found","not found","not found","not found","not found","not found","not found","not found",1,0,0,0,0,1,0,0,0,0,0,0,0,0,0,0,0,0,0,0,0,0,0,0,0,1,"CA","Other","SDG&E","Y",26,1,null,"SGDP",0,27,0,0,"not found","n/a","n/a","none","Smart Grid Annual Report"," "," ","Residential Customers","Indirect",{"$f":"NOT(ISERROR(MATCH(ProgTable[[#This Row],[ODCID]],DD.Filter,0)))","v":true}]
[1151,32,"n/a","HAN Projects\n","CA","DRCA Phase 1: The first phase implementation of a HAN Demand Response Control Application (HAN DRCA) will achieve the functionality required by resolution (R.)E-4527 and will allow customers to provision a HAN device to their Smart Meter. Reduce Your Use IHD Pilot: The objective of this pilot is to study the impact of customer energy savings during Reduce Your Use events when provided with an IHD. DRCA/HAN Pilot & Study: The objective of this project was to implement a back-office system (DRCA) to manage and control HAN devices, study the HAN technology and customer's response to the technology. Demand Response Signaling: Provide an interim solution to send demand response signals to ZigBee enabled thermostats connected to Smart Meters in support of the demand response programs deploying thermostats.","IOU",null,"Y","not found",2013,2010,4,"opt-in","none",868000,"Not found","n/a","see sub-activities below","see sub-activities below","see sub-activities below","see sub-activities below","see sub-activities below","not found","see sub-activities below","see sub-activities below",1,0,1,0,1,0,0,0,1,0,0,0,0,0,0,0,0,0,0,0,0,0,0,0,0,null,"CA","Other","SDG&E","Y",32,0,null,"SGDP",0,32,0,0,"not found","n/a","n/a","none","Smart Grid Annual Report"," "," ","Residential Customers","Direct",{"$f":"NOT(ISERROR(MATCH(ProgTable[[#This Row],[ODCID]],DD.Filter,0)))","v":true}]
[1152,32,"n/a","HAN Projects: DRCA/HAN Pilot & Study","CA","The objective of this project was to implement a back-office system (DRCA) to manage and control HAN devices, study the HAN technology and customer's response to the technology. A total of 715 customers were enrolled and had varying HAN devices installed in their home.","IOU",1,"Y","not found",2013,2010,2,"opt-in","none","part of HAN Projects","part of HAN Projects","n/a","not found","not found","not found",715,"not found","not found","not found","not found",1,0,1,0,1,0,0,0,0,0,0,0,0,0,0,0,0,0,0,0,0,0,0,0,0,1,"CA","Other","SDG&E","Y",32.020000000000003,1,null,"SGDP",0,33.020000000000003,0,0,"exists but not found","n/a","n/a","none","Smart Grid Annual Report"," "," ","Residential Customers","Direct",{"$f":"NOT(ISERROR(MATCH(ProgTable[[#This Row],[ODCID]],DD.Filter,0)))","v":true}]
[1153,55,"n/a","Smart Pricing Program (Dynamic Pricing)","CA","Pilot: Approximately 25,000 residential and commercial customers received a weekly email notification containing daily electric usage and gas energy usage information, and charts showing the rising usage from tier 1-4, over a five-month period. This information is delivered weekly to those customers who elected to receive the email on an ongoing basis.","IOU",null,"Y","not found",2013,2010,4,"opt-in","none",17580000,"Not found","n/a","not found","not found","not found","~25,000","not found","not found","not found","not found",1,0,0,0,0,0,1,0,0,0,0,0,0,0,0,0,0,0,0,0,0,0,0,0,0,1,"CA","Other","SDG&E","Y",55,1,null,"SGDP",0,56,0,0,"not found","n/a","n/a","none","Smart Grid Annual Report"," "," ","Residential and Commercial Customers","Indirect",{"$f":"NOT(ISERROR(MATCH(ProgTable[[#This Row],[ODCID]],DD.Filter,0)))","v":true}]
[1154,40,"n/a","My Energy Web Tools","CA","PG&E’s customer website – My Energy – allows residential, small and medium business, and small agricultural customers to view usage, price and cost, and take advantage of various rate analysis tools. The usage information is displayed in a variety of formats including year to year comparison, peak/off peak, hourly and 15 minute interval data (depending on the granularity of the SmartMeter™ data), bill to date and monthly bill forecast. The “My Energy” website will also include a rate calculator which will calculate the customer bill under a variety of available rate plans","IOU",null,"N",null,2013,2011,3,"opt-in","none",65389,8168000,"n/a",23010000,"not found","not found","varies by tool, see impact notes","not found","not found","292.31 (kWh per HEC complete)","not found",1,0,0,0,0,0,0,0,0,1,0,0,0,0,0,1,1,0,0,0,0,0,0,0,0,null,"CA","Other","PG&E","Y",40,0,null,"SGDP",0,42,0,0,"not found","n/a","n/a","Savings:  HEC=7.6 GWh\nParticipation 2014 YTD thru November:\nMy Usage: 1.9M unique visitors\nWays to Save: 0.2M unique visitors\nHome Energy Checkup: 26,000 completions","Smart Grid Annual Report","PG&E data request response"," ","Residential, SMB, Agriculture","Indirect",{"$f":"NOT(ISERROR(MATCH(ProgTable[[#This Row],[ODCID]],DD.Filter,0)))","v":true}]
[1076,502,"n/a","Energy Efficiency Reports","UT","Since 2010 Payson City Power (Utah) has been partnering with Enerlyte to provide energy use and efficiency information on its residential customer energy bills. The information provided on the customer’s bill can be customized; and typically includes a graphic display of current energy use with comparisons to previous usage, neighbor’s usage, and efficient use. Customers are directed to an interactive web portal dedicated to further educating and motivating customers to take action to save energy, including setting goals and creating challenge groups, with progress updates included on the customer’s bill.",null,null,"N",null,2011,2010,1,"opt-out","cell phone app that sends info about peak usage periods",0,0,null,726000,0,0,5000,2.4E-2,"",145.19999999999999,null,1,1,0,0,0,0,1,0,0,1,0,1,1,0,0,0,0,0,1,1,1,0,0,0,0,0,"Non-CA","n/a","Payson City Power","N",502,1,null,"n/a",0,null,0,0,null,null,null,"Participants receive home energy reports that are opt-out; they may also use the program online interface, which is opt-in.","Q:\\8120-CPUC DNV Residential\\Behavior Study\\Evaluation Activities\\IOU behavioral programs\\Secondary Data on Behavior Programs\\Programs from Literature Reviews\\2013 June Cross-Cutting Behavioral Program Evaluation Final Integrated Report June 2013.pdf","Q:\\8120-CPUC DNV Residential\\Behavior Study\\Evaluation Activities\\IOU behavioral programs\\Secondary Data on Behavior Programs\\Programs from Literature Reviews\\BBEE_Res_Profiles_Dec_2011 - BPA.pdf",null,"Y","indirect",{"$f":"NOT(ISERROR(MATCH(ProgTable[[#This Row],[ODCID]],DD.Filter,0)))","v":true}]
[1077,503,"n/a","Energy Saver Program","IL","The Illinois Citizens Utility Board (CUB) has been offering the Energy Saver program to customers of Commonwealth Edison and People’s Gas since June of 2010. The CUB Energy Saver program provides participants with tools and information developed and administered by Efficiency 2.0 to encourage energy efficiency related behavior change. Through Recyclebank participants can redeem points earned by saving energy for discounts on purchases from national and local merchants. CUB recently initiated a related 100 home direct response (DR) pilot with Efficiency 2.0 using Greenlet Technologies’ plug-in appliance DR product to dispatch washers, dryers and air conditioning units.  Paper reports are sent out to the entire program population and online reports and rewards are opt-in.","Efficiency 2.0",null,"Y",null,2011,2010,1,"opt-in",null,0,400000,null,1890000,0,0,2925,5.2999999999999999E-2,"",646.15384615384619,null,1,0,1,0,0,0,1,1,0,0,0,0,0,0,0,0,0,0,0,0,1,0,0,0,1,0,"Non-CA","n/a","Illinois Citizens Utility Board","N",503,1,null,"n/a",0,null,0,0,null,null,null,"Participants receive home energy reports that are opt-out; the bulk of the program (on-line reports and rewards) is opt-in, represents inception-to-date, budget listsed is for 2014","Q:\\8120-CPUC DNV Residential\\Behavior Study\\Evaluation Activities\\IOU behavioral programs\\Secondary Data on Behavior Programs\\Programs from Literature Reviews\\2013 June Cross-Cutting Behavioral Program Evaluation Final Integrated Report June 2013.pdf","Q:\\8120-CPUC DNV Residential\\Behavior Study\\Evaluation Activities\\IOU behavioral programs\\Secondary Data on Behavior Programs\\Programs from Literature Reviews\\BBEE_Res_Profiles_Dec_2011 - BPA.pdf","https://www2.illinois.gov/ipa/Documents/Appendix%20C-4%20-%20IPA%20Program%20Detail.pdf","Y","indirect",{"$f":"NOT(ISERROR(MATCH(ProgTable[[#This Row],[ODCID]],DD.Filter,0)))","v":true}]
[1078,504,"n/a","Home Electricity Reports","WA","Bi-monthly personalized home electricity reports mailed to 40,000 residential customers with normative messaging. Participants are given the option of setting a savings goal on the associated web platform.  This goal and their progress toward it then shows up on their paper report.  Again on the web platform participants are given a series of tips that they can click to show that they are doing them or plan to do them.  Each report acts as a prompt to remind participants to continue their efficient behavior.","Opower",null,"N",null,2013,2009,5,"opt-out","two-way feedback technology",0,0,null,16747814,0,0,50000,null,"",334.95627999999999,null,1,0,0,0,0,0,1,0,0,0,0,0,1,1,1,0,1,0,1,1,0,0,0,0,0,0,"Non-CA","n/a","Seattle City Light","N",504,1,null,"n/a",0,null,0,0,null,null,null,"Evaluated by DNV GL, savings are just for 2013 (32,170,323 kWh for 2012 and 2013)","Q:\\8120-CPUC DNV Residential\\Behavior Study\\Evaluation Activities\\IOU behavioral programs\\Secondary Data on Behavior Programs\\Programs from Literature Reviews\\2014_CEE_Behavior_Program_Summary_-_Public.xlsx","Q:\\8120-CPUC DNV Residential\\Behavior Study\\Evaluation Activities\\Task1d-Market Characterization\\Secondary Program Information\\SLC_HER_Report_July2014.pdf",null,"Y","indirect",{"$f":"NOT(ISERROR(MATCH(ProgTable[[#This Row],[ODCID]],DD.Filter,0)))","v":true}]
[1082,505,"n/a","Home Energy Reports-Puget Sound","WA","Puget Sound Energy (PSE) implemented the Home Energy Reports (HER) Program in 2008. The HER Program delivers customized information on energy consumption to participating households and compares the household’s energy consumption to that of similar neighboring homes. The program was structured as a randomized controlled trial wherein the initial eligible population was randomly assigned to the treatment and control groups. All households in the treatment group received the report either monthly or quarterly for two years.","Opower",null,"N",null,2013,2007,5,"opt-in",null,0,0,null,7114917.4000000004,0,346126.80000000005,25018,0.03,"",284.39193380765852,null,1,0,0,0,0,0,1,0,0,0,0,0,0,0,0,0,0,0,1,1,0,0,0,0,0,0,"Non-CA","n/a","Puget Sound Energy","N",505,1,null,"n/a",0,null,0,0,null,null,null," used diff-in-diff model to estimate. including 8,324 suspended participants. Per person electric savings estimated at 334.3 kWh (+/-53.4) for current participants and 184.3(+/-70.9) for suspended participants. Therms savings estimated at 14.8(+/-3.2) and 11.9(+/-4.0) respectively","Q:\\8120-CPUC DNV Residential\\Behavior Study\\Evaluation Activities\\Task1d-Market Characterization\\Secondary Program Information\\PSE_HER_Report_April2014.pdf",null,null,"N","indirect",{"$f":"NOT(ISERROR(MATCH(ProgTable[[#This Row],[ODCID]],DD.Filter,0)))","v":true}]
[1084,506,"n/a","In-Home Display Pilot: SHEMP phase 1","MA","The Smart Home Energy Monitoring Pilot (SHEMP) is implemented by Cape Light Compact (CLC). CLC’s SHEMP is an opt-in pilot that offers an integrated in-home monitoring and feedback system for customers on their household energy usage. Through this pilot, customers have access to near-real-time data on their electric energy use based on the theory that, in response to this information, they will reduce their consumption. Customers receive the information through a website where they can set goals and update their profile based on their home characteristics and any relevant household changes. SHEMP is made up of two primary cohorts: (1) “Legacy” households that are using the iCES platform, originally developed by Grounded Power; and (2) “Energize” households that are treated with the Energize platform developed by Tendril (who acquired Grounded Power).","Tendril",null,"Y",null,2012,2009,3,"opt-in",null,0,0,null,0,0,0,80,0.11700000000000001,"","NA",null,1,1,0,0,1,0,0,0,0,0,0,0,0,0,0,0,0,0,1,0,0,0,0,0,0,0,"Non-CA","n/a","Cape Light Compact","Y",506,1,null,"n/a",0,null,1,1,null,null,"H","savings estimated to be 11.7% per household","Q:\\8120-CPUC DNV Residential\\Behavior Study\\Evaluation Activities\\IOU behavioral programs\\Secondary Data on Behavior Programs\\Programs from Literature Reviews\\2013 June Cross-Cutting Behavioral Program Evaluation Final Integrated Report June 2013.pdf","Q:\\8120-CPUC DNV Residential\\Behavior Study\\Evaluation Activities\\Task1d-Market Characterization\\Secondary Program Information\\CLC-SHEMP_Evaluation_Final-2013.pdf","Q:\\8120-CPUC DNV Residential\\Behavior Study\\Evaluation Activities\\IOU behavioral programs\\Secondary Data on Behavior Programs\\Programs from Literature Reviews\\BBEE_Res_Profiles_Dec_2011 - BPA.pdf","\"Legacy\" customers must be year-round cape or Martha's Vineyard residents, lived in their home for a year or more, have high-speed internet that is always on, free ethernet port on their router, and a power outletimmediately adjacent to meter.","direct",{"$f":"NOT(ISERROR(MATCH(ProgTable[[#This Row],[ODCID]],DD.Filter,0)))","v":true}]
[1089,507,"n/a","Smart Home Energy Monitoring Pilot: SHEMP phase 2","MA","Phase 2 of the Smart Home Energy Monitoring Pilot (SHEMP) is implemented by Cape Light Compact (CLC) and includes only \"Legacy\" customers. CLC’s SHEMP is an opt-in pilot that offers an integrated in-home monitoring and feedback system for customers on their household energy usage. Through this pilot, customers have access to near-real-time data on their electric energy use based on the theory that, in response to this information, they will reduce their consumption. Customers receive the information through a website where they can set goals and update their profile based on their home characteristics and any relevant household changes. SHEMP is made up of two primary cohorts: (1) “Legacy” households that are using the iCES platform, originally developed by Grounded Power; and (2) “Energize” households that are treated with the Energize platform developed by Tendril (who acquired Grounded Power).",null,null,"Y",null,2012,2011,1,"opt-in",null,0,0,null,0,0,0,277,2.3E-2,"","NA",null,1,1,0,0,1,0,0,0,0,0,0,0,0,0,0,0,0,0,1,0,0,0,0,0,0,0,"Non-CA","n/a","Cape Light Compact","Y",507,1,null,"n/a",0,null,1,1,null,null,"H","savings estimated to be 2.3% per household","Q:\\8120-CPUC DNV Residential\\Behavior Study\\Evaluation Activities\\IOU behavioral programs\\Secondary Data on Behavior Programs\\Programs from Literature Reviews\\2013 June Cross-Cutting Behavioral Program Evaluation Final Integrated Report June 2013.pdf",null,null,"\"Energize\" customers must be year-round cape or Martha's Vineyard residents, lived in their home for a year or more, have high-speed internet that is always on, free ethernet port on their router, and a power outlet 6 ft from meter.","direct",{"$f":"NOT(ISERROR(MATCH(ProgTable[[#This Row],[ODCID]],DD.Filter,0)))","v":true}]
[1074,509,"n/a","C3 Western Mass Saves! Program (2010-2011)","MA","The C3 WMS program is comprised of two primary elements: (1) an online web platform available to all WMECo customers; and (2) Energy Savings Reports (ESRs) distributed by mail to randomly assigned treatment customers. In addition, the program uses community-based outreach to help further drive participation, though this represents a minor portion of its work. Program participants fall into two classes: (1) “passive” participants that receive the ESR but do not use the web portal; and (2) “activated” participants that actively opt-in to the web portal (either through the ESR or other marketing and outreach activities).",null,null,"N",null,2011,2010,1,"opt-out",null,0,150000,null,1740000,0,0,24617,2.5000000000000001E-2,"",70.682861437218179,null,1,1,0,0,1,0,0,0,0,1,0,0,0,0,0,0,0,1,0,0,1,0,0,0,0,0,"Non-CA","n/a","Western Massachusetts Electric Company","N",509,1,null,"n/a",0,null,0,1,null,null,null,0,"Q:\\8120-CPUC DNV Residential\\Behavior Study\\Evaluation Activities\\IOU behavioral programs\\Secondary Data on Behavior Programs\\Programs from Literature Reviews\\2013 June Cross-Cutting Behavioral Program Evaluation Final Integrated Report June 2013.pdf","Q:\\8120-CPUC DNV Residential\\Behavior Study\\Evaluation Activities\\IOU behavioral programs\\Secondary Data on Behavior Programs\\Programs from Literature Reviews\\BBEE_Res_Profiles_Dec_2011 - BPA.pdf",null,"N","indirect",{"$f":"NOT(ISERROR(MATCH(ProgTable[[#This Row],[ODCID]],DD.Filter,0)))","v":true}]
[1083,511,"n/a","In Home Displays","NV","The objective of the IHD program is to enable customers to monitor real-time electricity usage in their home to encourage them to use the information to reduce their energy consumption.",null,null,"N",null,2010,2008,4,"opt-in",null,109712,1000000,null,304263,0,0,1697,null,"",179.29463759575722,null,1,1,0,0,1,0,0,0,0,0,0,0,0,0,0,1,0,0,0,0,0,0,0,0,0,0,"Non-CA","n/a","NV Energy","Y",511,1,null,"n/a",0,null,0,0,null,null,null,"all impact numbers from 2010 evaluation. Majority of IHDs installed in 4th quarter of 2009/1st quarter of 2010","Q:\\8120-CPUC DNV Residential\\Behavior Study\\Evaluation Activities\\IOU behavioral programs\\Secondary Data on Behavior Programs\\Programs from Literature Reviews\\2014_CEE_Behavior_Program_Summary_-_Public.xlsx","Q:\\8120-CPUC DNV Residential\\Behavior Study\\Evaluation Activities\\Task1d-Market Characterization\\Secondary Program Information\\NV PUC_2010_annual_dsm_report.pdf",null,"N","direct",{"$f":"NOT(ISERROR(MATCH(ProgTable[[#This Row],[ODCID]],DD.Filter,0)))","v":true}]
[1085,512,"n/a","M-Power","AZ","This AMI enabled program allows customers pre-pay for their electricity. SRP set up an ATM-like system with 70 locations where customers can add credits to \"smart cards.\"  These cards function like debit cards. Customers can view their balance--in terms of dollars and time, but not energy units--on a simple in-home display. If a customer runs out of credit during the night or on a weekend, a \"Friendly Credit\" system give them a loan--enough credit to last until the morning of the next business day. SRP then subtracts the cost of the energy used during this lag time the next time the customer adds value to the card.",null,null,"N",null,2009,2000,10,"opt-in",null,0,0,null,109800000,0,0,77909,0.12,"",1409.3365336482307,null,1,0,0,1,1,0,0,0,0,0,0,0,1,0,0,0,0,0,0,0,0,0,0,0,0,0,"Non-CA","n/a","Salt River Project","Y",512,1,null,"n/a",0,null,1,1,null,null,"H","Targeted general population of customers; participants need an AMI meter, which can be installed during program participation. Note that this program included a larger number of lower-income participants compared with other programs, as many participants signed up for the M-Power program due to being in arrears on the SRP bills.","Q:\\8120-CPUC DNV Residential\\Behavior Study\\Evaluation Activities\\IOU behavioral programs\\Secondary Data on Behavior Programs\\Programs from Literature Reviews\\ACEEE Case Studies of Behavioral Programs 2010e108.pdf","Q:\\8120-CPUC DNV Residential\\Behavior Study\\Evaluation Activities\\IOU behavioral programs\\Secondary Data on Behavior Programs\\Programs from Literature Reviews\\2013 June Cross-Cutting Behavioral Program Evaluation Final Integrated Report June 2013.pdf","Q:\\8120-CPUC DNV Residential\\Behavior Study\\Evaluation Activities\\Task1d-Market Characterization\\Secondary Program Information\\MPower_Program Review_2010.pdf","pre-paid billing customers","direct",{"$f":"NOT(ISERROR(MATCH(ProgTable[[#This Row],[ODCID]],DD.Filter,0)))","v":true}]
[1086,513,"n/a","Real Time Monitoring Pilot","ON","Pilot project launched in 2004, which provided IHDs to customers. The objective of the pilot was to assess whether real-time feedback is effective and to determine, from change in usage data, if behavior of the participants could be quantified as energy savings.",null,null,"Y",null,2005,2004,1,"opt-in",null,0,0,null,0,0,0,500,6.5000000000000002E-2,"","NA",null,1,0,0,0,1,0,0,0,0,0,0,0,0,0,0,0,0,0,0,0,0,0,0,0,0,1,"Non-CA","n/a","Hyrdo One","Y",513,1,null,"n/a",0,null,1,1,null,null,null,"Pilot program found an average of 6.5% kWh reduction per participating household","Q:\\8120-CPUC DNV Residential\\Behavior Study\\Evaluation Activities\\IOU behavioral programs\\Secondary Data on Behavior Programs\\Programs from Literature Reviews\\ACEEE Case Studies of Behavioral Programs 2010e108.pdf",null,null,"N","direct",{"$f":"NOT(ISERROR(MATCH(ProgTable[[#This Row],[ODCID]],DD.Filter,0)))","v":true}]
[1081,515,"n/a","Home Energy Reports-DTE Energy","MI","The Opt-Out Program will mail Home Energy Reports to 50,000 residential customers with both gas and electric service.  The target customers are selected to equally represent multiple customer segments along with DTE Energy's combo geographic territory.","Navigant",null,"N",null,2012,2011,1,"opt-out",null,0,0,null,23106000,0,0,258000,null,"",89.558139534883722,null,1,0,0,0,0,0,1,0,0,0,0,0,0,0,0,0,0,0,1,1,0,0,0,0,0,0,"Non-CA","n/a","DTE Energy","N",515,1,null,"n/a",0,null,0,0,null,null,null,"kWh from CEE Study represents savings goals (not actual program savings)","Q:\\8120-CPUC DNV Residential\\Behavior Study\\Evaluation Activities\\IOU behavioral programs\\Secondary Data on Behavior Programs\\Programs from Literature Reviews\\2014_CEE_Behavior_Program_Summary_-_Public.xlsx",null,null,"Y, to be representative of population","indirect",{"$f":"NOT(ISERROR(MATCH(ProgTable[[#This Row],[ODCID]],DD.Filter,0)))","v":true}]
[1087,516,"n/a","Smart Currents","MI","Smart Currents is a Dynamic Peak Pricing (DPP) pilot program  involved deployment of distribution automation (DA) assets on 55 circuits, an advanced metering infrastructure (AMI) system to support 725,000 meters, a meter data management system (MDMS), a distribution management system (DMS), and various customer systems, including a new web portal, in-home displays, and programmable communicating thermostats. It also consists of a three-tiered Time of Use (TOU) rate for weekdays overlaid by a Critical Peak Pricing (CPP) rate ($1/kWh) on a maximum of 20 event days per year. The event days are announced to customer s a day in advance via various communication means. ",null,null,"Y",1,2013,2012,1,"opt-in",null,135118211,167657756,null,0,0,0,688717,0.126,0.11799999999999999,"NA",null,0,1,1,0,1,0,0,0,1,0,0,1,0,0,0,1,0,0,0,0,0,0,0,0,0,0,"Non-CA","n/a","DTE Energy","Y",516,1,null,"n/a",0,null,1,1,null,null,null,"This is a pilot program set up as an experiment with 4 different treatment groups receiving differenet combinations of technology and education. As a result, treatment effects (savings) vary widely depeneding on treatment group, peak vs. non-peak, and hot vs. cold weather days. Expenditures represent residential and commerical and include AMI, IHD, smart appliances, and communication networks. Participant number listed is the total number of smart meters provided to DTE customers (636,571 are residential customers and 52,146 are commercial).","Q:\\8120-CPUC DNV Residential\\Behavior Study\\Evaluation Activities\\Task1d-Market Characterization\\Secondary Program Information\\DTE-SmartCurrents_FINAL_Report_08152014.pdf","Q:\\8120-CPUC DNV Residential\\Behavior Study\\Evaluation Activities\\Task1d-Market Characterization\\Secondary Program Information\\Detroit-Edison-Project-Description_20140311.pdf","https://www.smartgrid.gov/project/detroit_edison_company_smartcurrents/latest_data",null,"direct",{"$f":"NOT(ISERROR(MATCH(ProgTable[[#This Row],[ODCID]],DD.Filter,0)))","v":true}]
[1096,517,"n/a","Smart Currents-Pay As You Go Pilot","MI","As part of the Smart Energy Rewards program, a pre-pay billing option was permitted for up to 200 customers (branded as Pay As You Go). This options required enrollment in on-line or electronic billing, and at least two communication methods. Customers also were required to have standard residential service or the dynamic peak pricing rate. Customers did not necessarily need to have AMI to participate, though many were on the dynamic pricing rate, which is enabled through AMI.",0,null,"Y",null,2013,2012,1,"opt-in",0,0,0,null,0,0,0,123,0.11,0.01,0,null,1,0,0,1,0,0,0,0,0,0,0,0,0,0,0,0,0,0,0,0,0,0,0,0,0,1,"Non-CA","n/a","DTE Energy","N",517,1,null,"n/a",0,null,0,0,"Y","M",null,"limited sample size. The savings are overall consumption of 23 customers where year over year comparision was available. The high savings are for low usage customers (<450 kWh per month) and the low savings are for medium usage customers (450 kWh-900 kWh per month)","https://efile.mpsc.state.mi.us/efile/docs/16457/0007.pdf","Q:\\8120-CPUC DNV Residential\\Behavior Study\\Evaluation Activities\\Task1d-Market Characterization\\Secondary Program Information\\DTE-SmartCurrents_FINAL_Report_08152014.pdf",0,0,"direct",{"$f":"NOT(ISERROR(MATCH(ProgTable[[#This Row],[ODCID]],DD.Filter,0)))","v":true}]
[1073,518,"n/a","PeakRewards: DPP only","MD","The PeakRewardsSM program is designed by BGE to help ease the \"peak\" demand for electricity in the Mid-Atlantic region. It is part of the BGE Smart Energy Savers Program®, which helps you conserve energy, save money and protect the environment. When you participate in the program, you will help offset air conditioner demand during periods of \"peak\" electricity usage, thus helping to reduce the likelihood of power outages. As a reward for joining, you can save with bill credits this summer and every summer during which you remain enrolled. By participating in the program, customers give permission for BGE to temporarily modify the settings on their air conditioner or water heater.","Opower",null,"Y",1,2008,2007,7,"opt-in","BGE installs a switch or a specific programmable thermostat that enables control of household AC.",0,0,null,0,null,0,148,0.20100000000000001,1.7999999999999999E-2,"NA",null,0,1,0,0,0,0,0,0,0,0,0,1,1,1,0,1,0,0,0,1,0,0,0,0,0,0,"Non-CA","n/a","Baltimore Gas and Electric","N",518,1,null,"n/a",0,null,1,1,null,null,null,"1375 total participants in pilot (354 customers were control group and 531 with an in-home display or no technology and no DPP rate). 148 in this group were those with only dynamic peak pricing (no additional technology)","Q:\\8120-CPUC DNV Residential\\Behavior Study\\Evaluation Activities\\Task1d-Market Characterization\\Secondary Program Information\\BGE_SmartEnergyPricingPilot_ImpactEvaluation_28Apr2009.pdf","http://peakrewards.bgesmartenergy.com/",null,"residnetial customers with central AC or electric heat pumps","indirect",{"$f":"NOT(ISERROR(MATCH(ProgTable[[#This Row],[ODCID]],DD.Filter,0)))","v":true}]
[1088,519,"n/a","Smart Energy Rewards","MD","As part of the Smart Energy Rewards program, customers received personalized analysis and information about their energy usage during peak times. By taking simple steps to save energy — such as delaying the use of energy-intensive appliances like the dishwasher, washer, and dryer until after 7 PM, and raising the thermostat by 3-4 degrees — on designated “Energy Savings Days,” customers could trim their peak demand and earn rebates from their utility. For every kilowatt-hour of energy (about equivalent to running a dishwasher load) saved during a peak event, a BGE customer could earn a $1.25 rebate.","Opower",null,"Y",1,2013,2011,3,"opt-out",null,7590157,0,null,16000000,284000,0,315000,0.23,0.05,"NA",null,0,1,0,0,0,0,1,0,0,0,0,1,0,0,0,1,1,0,1,1,0,0,1,0,1,0,"Non-CA","n/a","Baltimore Gas and Electric","Y",519,1,null,"n/a",0,null,1,1,null,null,null,"According to Opower, (on average) 5% reduction in consumption for those without a direct load control device and 23% for those that did","Q:\\8120-CPUC DNV Residential\\Behavior Study\\Evaluation Activities\\Task1d-Market Characterization\\Secondary Program Information\\Programs in Sheet\\BGE Quarterly Report.pdf","Q:\\8120-CPUC DNV Residential\\Behavior Study\\Evaluation Activities\\Task1d-Market Characterization\\Secondary Program Information\\Programs in Sheet\\BGE_Phase4CommunicationsPlan-Noappendix.pdf","Q:\\8120-CPUC DNV Residential\\Behavior Study\\Evaluation Activities\\Task1d-Market Characterization\\Secondary Program Information\\Programs in Sheet\\Smart Energy Savers Program_BGE2014.pdf","AMI customers and PeakRewards customers","direct",{"$f":"NOT(ISERROR(MATCH(ProgTable[[#This Row],[ODCID]],DD.Filter,0)))","v":true}]
[1066,520,"n/a","Peaksaver Plus","ON","participants are eligible to receive a free programmable thermostat or switch, including installation. Participants also receive access to price and real-time consumption information on an In Home Display (“IHD”). LDCs were given the choice to continue to offer the standard load control program (programmable communicating thermostat or switch with a $25 bill credit) for the first 8 months of 2011 (referred to as peaksaver®Extension). After August 2011, the Extension ended and the program (including marketing) ceased until new IHD product were available","LDCs",null,"N",1,2012,null,null,"opt-in",null,0,0,null,0,77000,0,174490,0.17,"","NA",null,1,1,0,0,1,0,0,0,1,0,0,0,0,0,0,0,0,0,0,1,0,0,0,0,0,0,"Non-CA","n/a","Ontario Power Authority","Y",520,1,null,"n/a",0,null,1,1,null,null,null,"Participation number is total number of activated devices in 2012 for residential only. % impacts are for 7 event days in the summer of 2012.","Q:\\8120-CPUC DNV Residential\\Behavior Study\\Evaluation Activities\\Task1d-Market Characterization\\Secondary Program Information\\2012-peaksaverPLUS-Evaluation.pdf","http://www.miltonhydro.com/peaksaver/","Q:\\8120-CPUC DNV Residential\\Behavior Study\\Evaluation Activities\\Task1d-Market Characterization\\Secondary Program Information\\Milton_2011_Annual_CDM_Report.pdf","residential and small commercial","direct",{"$f":"NOT(ISERROR(MATCH(ProgTable[[#This Row],[ODCID]],DD.Filter,0)))","v":true}]
[1079,521,"n/a","Home Energy Reports-AEP Ohio","OH","The purpose of the Home Energy Reports (HER) Program is to provide feedback to residential participants that will help them change energy use habits to save energy. This occurs through the use of a personalized report delivered to participating households either bi-monthly or quarterly. The information included in the report shows the energy use pattern of the household relative to their peers and offers particular actions a participant can take to reduce their household’s metered electricity usage. To implement this program, AEP Ohio contracted with Opower, Inc. to develop and distribute the program.","Opower",null,"N",null,2012,null,null,"opt-out",null,0,0,null,71344000,9275,0,197646,null,"",360.9686004270261,null,1,0,0,0,0,0,1,0,0,0,0,0,0,0,0,0,0,0,1,0,1,0,0,0,0,0,"Non-CA","n/a","AEP Ohio","N",521,1,null,"n/a",0,null,1,1,null,null,null,"these are ex-post impacts combined for high-use customers, low-income customers, and customers with AMI. ","Q:\\8120-CPUC DNV Residential\\Behavior Study\\Evaluation Activities\\Task1d-Market Characterization\\Secondary Program Information\\AEP Ohio HER_2012.pdf",null,null,null,"indirect",{"$f":"NOT(ISERROR(MATCH(ProgTable[[#This Row],[ODCID]],DD.Filter,0)))","v":true}]
[1072,522,"n/a","iChoose","WI","In April 2011, Cool Choices and Miron Construction launched iChoose, an environmental sustainability  game for Miron employees. Two hundred and twenty of about 330 Miron employees played the iChoose  game between May and November 2011. Players competed both individually and as members of teams  by earning points for sustainable actions they took in their personal lives and reported to Cool Choices.  Participants had 58 pre-determined sustainable actions available to them, as well as an opportunity to  create their own sustainable activities, educate themselves about sustainable issues, or earn bonuses for  documenting their activities. The actions spanned the broad themes of household energy (encompassing  both electricity and natural gas), transportation, water, waste, and indoor environmental quality. ","Cool Choices and Miron Construction",null,"N",null,2012,2012,1,"opt-in",null,0,0,null,88000,0,0,220,0.01,"",400,null,1,1,0,0,0,0,0,1,0,0,0,0,0,0,0,0,0,0,0,0,1,0,0,0,0,0,"Non-CA","n/a","Cool Choices","N",522,1,null,"n/a",0,null,0,0,null,null,null,"kWh impacts come from a billing analysis that found, on average, a per participant reduction of 400 kWh. Based on post-game interviews, evaluators estimated between 700 and 900 kWh reduction per person.","Q:\\8120-CPUC DNV Residential\\Behavior Study\\Evaluation Activities\\Task1d-Market Characterization\\Secondary Program Information\\ECW_Cool Choices Impacts_2013.pdf",null,null,"employees of Miron Construction","indirect",{"$f":"NOT(ISERROR(MATCH(ProgTable[[#This Row],[ODCID]],DD.Filter,0)))","v":true}]
[1080,523,"n/a","Home Energy Reports-CL&P","CT","The purpose of the Home Energy Reports (HER) Program is to provide feedback to residential participants that will help them change energy use habits to save energy. This occurs through the use of a personalized report delivered to participating households either bi-monthly or quarterly. The information included in the report shows the energy use pattern of the household relative to their peers and offers particular actions a participant can take to reduce their household’s metered electricity usage. To implement this program, CL&P contracted with Opower, Inc. to develop and distribute the program.","Opower",null,"Y",null,2012,2011,1,"opt-out",null,0,0,null,34668,0,0,107,1.7000000000000001E-2,"",324,null,1,0,0,0,0,0,1,0,0,0,0,0,0,0,0,0,0,0,1,0,1,0,0,0,0,0,"Non-CA","n/a","Connecticut Light and Power","N",523,1,null,"n/a",0,null,1,1,null,null,null,"Participation are only those in the treatment group. Savings values are presented as \"average daily energy of treatment group as compared to control.\" This was estimated to be 0.85 kWh per customer per day. This is about 1.7% less energy than the control group. kWh impacts calculated based on 1,005,280,502 kWh usage (over 27 months) for 23,717 customers in the control group. This comes to 1,570 per HH per month, less 1.7% is 1,543 kWh (or 27 kWh per HH per month in savings).","Q:\\8120-CPUC DNV Residential\\Behavior Study\\Evaluation Activities\\Task1d-Market Characterization\\Secondary Program Information\\CL&P HER Program Pilot Eval_2012.pdf",null,null,null,"indirect",{"$f":"NOT(ISERROR(MATCH(ProgTable[[#This Row],[ODCID]],DD.Filter,0)))","v":true}]
[1091,524,"n/a","Prepaid Account Management System","OK","Pay-as-you go option for customers to prepay their electricity costs. Employs TOU rates at $0.15 on peak days and $0.073 on off-peak days.","Exceleron Software",null,"N",null,2011,2006,6,"opt-in","meter data management system and customer information system platform",0,0,null,0,0,0,5000,0.11,"",null,null,1,0,0,1,1,0,0,0,0,0,0,0,1,0,0,1,0,0,0,0,0,0,0,0,0,0,"Non-CA","n/a","Oklahoma Electric Cooperative","Y",524,1,null,"n/a",0,null,1,1,null,null,"M","The \"participation\" number is simply those included in the study. Not sure how many OEC customers choose pre-pay option, as this is not a \"program\" in the same way others on this list are, but a payment option for electrical service.","Q:\\8120-CPUC DNV Residential\\Behavior Study\\Evaluation Activities\\Task1d-Market Characterization\\Secondary Program Information\\The-Effect-of-Prepayment-on-Energy-Use_OEC_2013.pdf","Q:\\8120-CPUC DNV Residential\\Behavior Study\\Evaluation Activities\\Task1d-Market Characterization\\Secondary Program Information\\OEC_case study_2009.pdf",null,"low-income/multi-family","direct",{"$f":"NOT(ISERROR(MATCH(ProgTable[[#This Row],[ODCID]],DD.Filter,0)))","v":true}]
[1092,525,"n/a","Time of Use Rate Program_#1","ON","Standard TOU program with low-, mid-, and high-peak rates based on hourly smart meter data. For LDCs to participate, they needed to deploy AMI to all of their residential and general-service customers.",null,null,"N",1,2012,2011,1,"opt-in",null,0,0,null,0,0,0,0,3.3000000000000002E-2,"",null,null,0,1,0,0,0,0,0,0,0,0,0,0,0,0,0,1,0,0,0,0,0,0,0,0,0,0,"Non-CA","n/a","LDC#1","Y",525,1,null,"n/a",0,null,0,0,null,null,null,"percent based on peak load reduction for OPA Peak Demand Period (June, July, August 1-7pm)","Q:\\8120-CPUC DNV Residential\\Behavior Study\\Evaluation Activities\\Task1d-Market Characterization\\Secondary Program Information\\Impact_Evaluation_of_Ontario's_Time-of-Use_Rates-First_Year_Analysis_Faruqui_et_al_Nov_26_2013.pdf",null,null,null,"direct",{"$f":"NOT(ISERROR(MATCH(ProgTable[[#This Row],[ODCID]],DD.Filter,0)))","v":true}]
[1093,525,"n/a","Time of Use Rate Program_#2","ON","Standard TOU program with low-, mid-, and high-peak rates based on hourly smart meter data. For LDCs to participate, they needed to deploy AMI to all of their residential and general-service customers.",null,null,"N",1,2012,2011,1,"opt-in",null,0,0,null,0,0,0,0,2.3E-2,"",null,null,0,1,0,0,0,0,0,0,0,0,0,0,0,0,0,1,0,0,0,0,0,0,0,0,0,0,"Non-CA","n/a","LDC#2","Y",525,1,null,"n/a",0,null,0,0,null,null,null,"percent based on peak load reduction for OPA Peak Demand Period (June, July, August 1-7pm)","Q:\\8120-CPUC DNV Residential\\Behavior Study\\Evaluation Activities\\Task1d-Market Characterization\\Secondary Program Information\\Impact_Evaluation_of_Ontario's_Time-of-Use_Rates-First_Year_Analysis_Faruqui_et_al_Nov_26_2013.pdf",null,null,null,"direct",{"$f":"NOT(ISERROR(MATCH(ProgTable[[#This Row],[ODCID]],DD.Filter,0)))","v":true}]
[1094,525,"n/a","Time of Use Rate Program_#3","ON","Standard TOU program with low-, mid-, and high-peak rates based on hourly smart meter data. For LDCs to participate, they needed to deploy AMI to all of their residential and general-service customers.",null,null,"N",1,2012,2011,1,"opt-in",null,0,0,null,0,0,0,0,1.2999999999999999E-2,"",null,null,0,1,0,0,0,0,0,0,0,0,0,0,0,0,0,1,0,0,0,0,0,0,0,0,0,0,"Non-CA","n/a","LDC#3","Y",525,1,null,"n/a",0,null,0,0,null,null,null,"percent based on peak load reduction for OPA Peak Demand Period (June, July, August 1-7pm)","Q:\\8120-CPUC DNV Residential\\Behavior Study\\Evaluation Activities\\Task1d-Market Characterization\\Secondary Program Information\\Impact_Evaluation_of_Ontario's_Time-of-Use_Rates-First_Year_Analysis_Faruqui_et_al_Nov_26_2013.pdf",null,null,null,"direct",{"$f":"NOT(ISERROR(MATCH(ProgTable[[#This Row],[ODCID]],DD.Filter,0)))","v":true}]
[1095,525,"n/a","Time of Use Rate Program_#4","ON","Standard TOU program with low-, mid-, and high-peak rates based on hourly smart meter data. For LDCs to participate, they needed to deploy AMI to all of their residential and general-service customers.",null,null,"N",1,2012,2011,1,"opt-in",null,0,0,null,0,0,0,0,5.6000000000000001E-2,"",null,null,0,1,0,0,0,0,0,0,0,0,0,0,0,0,0,1,0,0,0,0,0,0,0,0,0,0,"Non-CA","n/a","LDC#4","Y",525,1,null,"n/a",0,null,0,0,null,null,null,"percent based on peak load reduction for OPA Peak Demand Period (June, July, August 1-7pm)","Q:\\8120-CPUC DNV Residential\\Behavior Study\\Evaluation Activities\\Task1d-Market Characterization\\Secondary Program Information\\Impact_Evaluation_of_Ontario's_Time-of-Use_Rates-First_Year_Analysis_Faruqui_et_al_Nov_26_2013.pdf",null,null,null,"direct",{"$f":"NOT(ISERROR(MATCH(ProgTable[[#This Row],[ODCID]],DD.Filter,0)))","v":true}]
[1075,529,"n/a","Conservation Behavior","AZ","Direct mail normative messaging program to ~100,000 customers designed to modify residential customer behavior.","Opower",null,"N",null,2012,2010,3,"opt-in",null,0,871396,null,23543000,3900,0,77900,null,"",302.22079589216946,null,1,0,0,0,0,0,1,0,0,0,0,0,0,0,0,0,1,0,1,1,0,0,0,0,0,0,"Non-CA","n/a","Arizona Public Service Company","N",529,1,null,"n/a",0,null,0,0,null,null,null,"targets LI and multi-family residential customers","Q:\\8120-CPUC DNV Residential\\Behavior Study\\Evaluation Activities\\IOU behavioral programs\\Secondary Data on Behavior Programs\\Programs from Literature Reviews\\2014_CEE_Behavior_Program_Summary_-_Public.xlsx","Q:\\8120-CPUC DNV Residential\\Behavior Study\\Evaluation Activities\\Task1d-Market Characterization\\Secondary Program Information\\APS_DSM_Report_2012.pdf",null,"low-income/multi-family","indirect",{"$f":"NOT(ISERROR(MATCH(ProgTable[[#This Row],[ODCID]],DD.Filter,0)))","v":true}]
[1097,530,"n/a","Austin Energy Web App","TX","Web app available to all residential customers who have enrolled on COA Utilities Customer Portal and presents daily and monthly usage in collars and cents, provides information and awareness of tiered rate structure, enables customers to set alerts for notification of approaching tier, and supplies customers with energy saving tips. Launched Oct 1, 2013. Partially funded through Better Buildings program.","COA Utilities",null,"N",null,2013,null,null,"opt-in",null,0,0,null,0,0,0,0,null,null,null,null,1,1,0,0,0,0,1,0,0,1,0,0,0,0,0,1,0,0,1,1,0,0,0,0,0,0,"Non-CA","n/a","Austin Energy","N",530,1,null,"n/a",0,null,0,0,"not found",null,null,null,"http://www.austintexas.gov/edims/document.cfm?id=196629",null,null,null,"Indirect",{"$f":"NOT(ISERROR(MATCH(ProgTable[[#This Row],[ODCID]],DD.Filter,0)))","v":true}]
[1099,532,"n/a","Behavioral Demand Response","VT","Will provide selected customers with a customized report about their monthly power use compared with the EE among a sample of their neighbors","Opower",null,"Y",null,2014,2014,1,null,null,0,0,null,0,0,0,100000,null,null,null,null,0,1,0,0,0,0,1,0,0,0,0,0,0,0,0,0,1,0,1,1,0,0,0,0,0,0,"Non-CA","n/a","Efficiency Vermont, Green Mountain Power","Y",532,1,null,"n/a",0,null,0,0,"not found",null,null,"Could not find evaluation on this. Pilot started summer 2014.","http://www.metering.com/efficiency-vermonts-new-online-energy-tool-for-utility-customers/","http://opower.com/company/news-press/press_releases/110",null,"GMP customers with AMI","Direct",{"$f":"NOT(ISERROR(MATCH(ProgTable[[#This Row],[ODCID]],DD.Filter,0)))","v":true}]
[1100,533,"n/a","Smart Energy Manager","MD",null,null,null,"N",null,2013,2013,null,null,null,null,null,null,89000000,25000,null,null,null,null,null,null,1,0,0,0,0,0,0,0,0,1,0,0,null,null,null,null,null,null,null,null,null,null,null,null,null,1,"Non-CA","n/a","Baltimore Gas and Electric","N",533,1,null,"n/a",0,null,null,null,null,null,null,null,"http://www.bge.com/smartenergy/smartenergymanager/Pages/default.aspx",null,null,null,null,{"$f":"NOT(ISERROR(MATCH(ProgTable[[#This Row],[ODCID]],DD.Filter,0)))","v":true}]
[1067,534,"n/a","Power Partner SM","TX","Customers with smart meters can receive an $85 rebate on select models of smart thermostats. By accepting the rebate, customers have to allow Austin Energy to remotely access and control their thermostats on 10-15 peak summer days between the hours of 4 and 6 pm.","Austin Energy",1,"N",null,2014,2013,1,null,"Smart Thermostat",1067684,null,null,49000,6800,null,5819,null,null,null,null,0,1,0,0,0,0,0,0,1,0,0,0,1,0,0,0,0,0,0,0,0,0,1,0,0,0,"Non-CA","n/a","Austin Energy","N",534,1,null,"n/a",0,null,null,null,null,null,null,null,"Q:\\8120-CPUC DNV Residential\\Behavior Study\\Evaluation Activities\\Task1d-Market Characterization\\Secondary Program Information\\Austin Energy 2013 Annual Report.pdf","http://powersaver.austinenergy.com/wps/portal/psp/about/press-releases/new-austin-energy-smart-thermostat-program-enables-customers-to-adjust-temperatures-anytime-anyplace/!ut/p/a1/jZFPa8JAEMU_iweP666R2tBbEMGUWGtFGnMpYzomKdk_zI4G--m7oZcKSt3L8pjf23m8lYXMZWHg1FTAjTXQ9rqYfqgojhYzFaVxMo9U-qLmk2y-Vqt0GoDdX2C1en1Q6eNblK03k3G8Hd_pv3ES9Z__-Y4FES1ny0oWDrgWjTlYmTtC7wVhi-DRy9xgJ-DouTECDVJ1Fl4DseAaSVvPwMKRrQh0mMO-RS_KgFuN5AVbAZ9fQQpG7ZCAj-F5AebMjcb-di2U2EdJzH4ShyiEBySk0ZFCxzWz809DNVRd140qa6sWR6XVQ3XNUoc4Mr8k5bssLou48hG_wO2mnd7m39miPWWHTZoMBj_-3wNJ/dl5/d5/L2dBISEvZ0FBIS9nQSEh/","http://powersaver.austinenergy.com/wps/portal/psp/residential/learn/save-on-air-conditioning-and-heating/power-partner-thermostats-provide-remote-control/!ut/p/a1/jZFdT8IwFIZ_Cxe7LD10Cot3C1mkZoiI6NiNqVC2JqxtTsuI_no79EINRHpz0pP3PO_5oCUtaKlFqyrhldFi1_3L4SuwhE3GwDhMpiPgz8PFE-NZDHwQBKufgtns4Rr46JHl80U8SJaDC-vPvBT-q7-7wIDhdDytaGmFr4nSW0MLJ1pJjCZCIVkbvVHdvEpXROgNqWUYX1e0sOYgkViBXofoa4mNcV54RyyaVm0kQdkYLzuER9Ota5XqtzgJZii3EiX29xjStff2JoIIjsTOHPti74KLDOTqvb82TQQH6zoFerEL0dkIULrgor0SJ9l16Oa7y9NM-kLL3wtK0owBv4cszrM53F7BX8GJC34Jzp_INsviI5_s2ny74FWv9wmtEyUh/dl5/d5/L2dBISEvZ0FBIS9nQSEh/","AMI Customers",null,{"$f":"NOT(ISERROR(MATCH(ProgTable[[#This Row],[ODCID]],DD.Filter,0)))","v":true}]
[1068,535,"n/a","Nest Thermostat Heat Pump Control Pilot","OR","The program, implemented by the Energy Trust's Existing Homes program, was managed by a third-party contractor CLEAResult. The program used a \"direct-install\" approach where a trained technician actually installed and set up the Nest thermostat in each participating home. Customers for the treatment group had to meet a number of criteria--including having taken part in a Home Energy Review, having a heat pump as the home's primary heat source, and not having participated in an Energy Trust program over the last 12 months--and were randomly selected. Participants also had to have an existing wireless connection and a willingness to allow Nest to share thermostat settings and data with the Energy Trust.","CLEAResult",1,"Y",null,2013,2013,1,null,"smart thermostat (Nest)",null,null,null,781,null,null,177,4.7E-2,null,null,null,0,1,0,0,0,0,0,0,1,0,0,0,1,0,0,0,0,0,0,0,0,0,1,0,0,0,"Non-CA","n/a","Energy Trust of Oregon","N",535,1,null,"n/a",0,null,0,null,null,null,null,"only 113 treatment participants and 211 (out of 299) control participants were used for savings analysis. These represented customers that had available and comparable utility data from 2012. kWh savings estimates may be per participant?","Q:\\8120-CPUC DNV Residential\\Behavior Study\\Evaluation Activities\\Task1d-Market Characterization\\Secondary Program Information\\Programs in Sheet\\Nest_Pilot_Study_Evaluation_wSR.pdf",null,null,null,null,{"$f":"NOT(ISERROR(MATCH(ProgTable[[#This Row],[ODCID]],DD.Filter,0)))","v":true}]
[1101,536,"n/a","EnergySense","MA","Two-year pilot program focused on evaluating CPP in Marblehead. Rate included a 35% rate discount ($0.05 per kWh) during non-CPP summer hours and a 750% increase in rate cuing peak periods. Participants were notified a day ahead of event days. 3 events were called in 2011 and 5 in 2012.","GDS Associates",null,"Y",1,2012,2011,2,"opt-in","web-portal",2692350,null,null,null,null,null,532,0.21299999999999999,null,null,null,0,1,0,0,0,0,0,0,0,1,0,0,0,0,0,1,0,0,0,1,0,0,0,0,0,0,"Non-CA","n/a","Marblehead Municipal Light Department","Y",536,1,null,"n/a",0,null,0,null,"Y","M",null,"Budget includes total amount for smart grid investment (including deployment of AMI) but the pilot program was much smaller","Q:\\8120-CPUC DNV Residential\\Behavior Study\\Evaluation Activities\\Task1d-Market Characterization\\Secondary Program Information\\Marblehead Final Evaluation Report with Appendices 2013-07-01-1_0.pdf","https://www.smartgrid.gov/sites/default/files/pdfs/project_desc/09-0042-mmld-project-description-04-02-12.pdf",null,null,null,{"$f":"NOT(ISERROR(MATCH(ProgTable[[#This Row],[ODCID]],DD.Filter,0)))","v":true}]
[1102,537,"n/a","eEnergy Vermont","VT","Two-year pilot program began with a SGIG, measures the effect TOU rates, enhanced feedback, and various different types of technology have on winter peak demand.","VEIC",null,"Y",null,2013,2012,1,null,"web-portal, end-use controls",null,null,null,null,null,null,478,null,null,null,null,0,1,0,0,1,0,0,0,0,1,0,0,0,0,0,1,0,0,0,0,0,0,0,0,0,0,"Non-CA","n/a","Vermont Electric Cooperative","Y",537,1,null,"n/a",null,null,null,null,null,null,null,"impact evauation not yet released. Participation numbers are for treatment groups.","Q:\\8120-CPUC DNV Residential\\Behavior Study\\Evaluation Activities\\Task1d-Market Characterization\\Secondary Program Information\\Programs in Sheet\\VEC_CBS_Process_Evaluation_121213.pdf","Q:\\8120-CPUC DNV Residential\\Behavior Study\\Evaluation Activities\\Task1d-Market Characterization\\Secondary Program Information\\Programs in Sheet\\VEC CBS Description 09 12 13.pdf",null,"all residential customers",null,{"$f":"NOT(ISERROR(MATCH(ProgTable[[#This Row],[ODCID]],DD.Filter,0)))","v":true}]
[1103,538,"n/a","SmartGrid Modernization Initiative","NJ, OH, PA","Deployment of advanced metering infrastructure (AMI), distribution automation (DA), volt/VAR optimization (VVO), time-based rate programs, direct load control (DLC) devices, and customer systems in parts of New Jersey, Ohio, and Pennsylvania.  Evaluated customer acceptance of and response to different levels of enabling technologies combined with various time-based rate programs.","Cleveland Electric Illuminating Company (CEI)",null,"Y",null,2013,2012,1,"opt-in","direct load control devices",null,null,114940274,null,null,null,522,null,null,null,null,0,1,0,0,1,0,0,0,0,0,0,0,0,0,0,1,0,0,0,0,0,0,0,0,0,0,"Non-CA","n/a","FirstEnergy","Y",538,1,null,"n/a",null,null,null,null,null,null,null,null,"https://www.smartgrid.gov/sites/default/files/FirstEnergy%20Consumer%20Behavior%20Study%20Preliminary%20Evaluation%20of%20the%20Summer%202012%20Final%20PDF%20R%20May%2013%20copy_0.pdf","https://www.smartgrid.gov/sites/default/files/CEIC%20CBS%20Description%2009%2012%2013_1.pdf",null,null,null,{"$f":"NOT(ISERROR(MATCH(ProgTable[[#This Row],[ODCID]],DD.Filter,0)))","v":true}]
[1104,539,"n/a","Integrated AMI System with Real-Time Pricing Pilot Program","FL","Implements two-way communications and metering expected to: (1) enable customers to view their energy consumption at their convenience through in-home displays and a Web portal, (2) provide time-based rate programs to customers, (3) provide information and tools to improve outage management, and (4) reduce distribution operations and maintenance costs. Evaluates customer acceptance of and response to a  seasonal three-period TOU rate with opt-in and opt-out enrollment approaches.","Lakeland Electric",null,"N",null,2014,2012,2,"both",null,null,null,35078152,null,null,null,2400,null,null,null,null,0,1,0,0,1,0,0,0,0,0,0,0,0,0,0,1,0,0,0,0,0,0,0,0,0,0,"Non-CA","n/a","Lankeland Electric","Y",539,1,null,"n/a",null,null,null,null,null,null,null,null,"https://www.smartgrid.gov/sites/default/files/pdfs/project_desc/Lakeland%20Electric%20Project%20Descriptionf_20131209.pdf","https://www.smartgrid.gov/sites/default/files/pdfs/cbs/lakeland-cbs-project-description-1-19-2012.pdf",null,null,null,{"$f":"NOT(ISERROR(MATCH(ProgTable[[#This Row],[ODCID]],DD.Filter,0)))","v":true}]
[1105,540,"n/a","Advanced Metering Infrastructure Project","MN","The first (Phase One) evaluates customer acceptance to various forms and timing of information feedback about electricity consumption, while the second (Phase Two) evaluates customer response to a TOU rate with a CPP overlay. Evaluation compared monthly feedback (control) to daily (treatment 1) and hourly (treatment 2) feedback.","Energy Center of Wisconsin",null,"Y",null,2014,2012,2,"both",null,null,null,3088008,null,null,null,2303,null,null,null,null,0,1,0,0,0,0,0,0,0,0,0,0,0,0,0,1,0,0,0,0,0,0,0,0,0,0,"Non-CA","n/a","Minnesota Power","Y",540,1,null,"n/a",null,null,null,null,null,null,null,null,"https://www.smartgrid.gov/sites/default/files/MN%20Power%20CBS%20Description%2008%2020%2013.pdf","https://www.smartgrid.gov/sites/default/files/MN%20Power%20CBP%20Interim%20Report.pdf",null,null,null,{"$f":"NOT(ISERROR(MATCH(ProgTable[[#This Row],[ODCID]],DD.Filter,0)))","v":true}]
[1106,541,"n/a","Dynamic Pricing Trial of Advanced Services Delivery Project","NV","Deployment of smart meters, communications infrastructure, meter data management system (MDMS), and advanced demand response management system (DRMS). Enables customer portal, customer-facing demand response program, and dynamic pricing trial with time-based rates.  Evaluating customer acceptance and response to different combinations of enabling technologies, seasonal multi-period TOU rate with CPP overlay, and energy education efforts","NV Energy",null,"Y","nearly 44MW",2015,2013,2,null,null,null,null,277755812,null,null,null,null,null,null,null,null,0,1,0,0,0,0,0,0,0,0,0,0,0,0,0,1,0,0,0,0,0,0,0,0,0,0,"Non-CA","n/a","Nevada Energy","Y",541,1,null,"n/a",null,null,null,null,null,null,null,null,"https://www.smartgrid.gov/project/nv_energy_inc_nv_energize","https://www.smartgrid.gov/sites/default/files/pdfs/project_desc/NV%20Energy%20Final%20Project%20Description%2020140311.pdf",null,null,null,{"$f":"NOT(ISERROR(MATCH(ProgTable[[#This Row],[ODCID]],DD.Filter,0)))","v":true}]
[1107,542,"n/a","Smart Study TOGETHER",null,"Deployed AMIs enabling customers to track data through a personalized website and allowing OG&E to manage, measure, and verify targeted demand reductions during peak periods. Consumer behavior study evaluated response to different forms of dynamic pricing and home area network smart technology on an opt-in basis.",null,null,"Y",null,2012,2009,3,"opt-in",null,null,null,293201332,null,null,null,6000,null,null,null,null,1,1,0,0,0,0,0,0,0,0,0,0,0,0,0,1,0,0,0,0,0,0,0,0,0,0,"Non-CA","n/a","Oklahoma Gas and Electric","Y",542,1,null,"n/a",null,null,null,null,null,null,null,null,"https://www.smartgrid.gov/sites/default/files/pdfs/project_desc/09-0111-oge-project-description-06-08-12.pdf",null,null,null,null,{"$f":"NOT(ISERROR(MATCH(ProgTable[[#This Row],[ODCID]],DD.Filter,0)))","v":true}]
[1108,543,"n/a","eEnergy Vermont","VT","Pilot transitions customers from a peak time rebate (PTR) in year one to a critical peak pricing (CPP) rate in year two, while the remaining customers are exposed to their treatments for 2 full years.","Vermont Electric Cooperative",null,"Y",null,2014,2012,2,"opt-in",null,null,null,137857302,null,null,null,3700,null,null,null,null,0,1,0,0,0,0,0,0,0,0,0,0,0,0,0,1,0,0,0,0,0,0,0,0,0,0,"Non-CA","n/a","Vermont Transco, LLC","Y",543,1,null,"n/a",null,null,null,null,null,null,null,null,"https://www.smartgrid.gov/sites/default/files/pdfs/cbs/eenergycvps-and-vec-cbs-1-19-11.pdf","https://www.smartgrid.gov/sites/default/files/pdfs/project_desc/09-0374-vermont-transco-project-description-04-05-12.pdf","https://www.smartgrid.gov/sites/default/files/VEC_CBS_Process_Evaluation_121213-Clean-20140210%20copy_1.pdf",null,null,{"$f":"NOT(ISERROR(MATCH(ProgTable[[#This Row],[ODCID]],DD.Filter,0)))","v":true}]

{"sheet":"Data Dictionary","index":2,"n_rows":21,"n_cols":3,"rows_kept":21,"cut":false,"hidden":false,"merged":[[2,0,2,1]]}
[]
[]
["Variable Assumptions"]
[null,"ODC ID","ID unique to each row captured in the database created by Opinion Dynamics"]
[null,"Program ID","ID that is specific to each overarching program (where applicable) created by Opinion Dynamics. This ID is not unique in cases where we have separated different offerings for a single pilot or program. For example, we identified several sub-activities of PG&E’s Residential Energy Advisor Program. All sub-activities have the same Program ID, but unique ODCIDs. "]
[null,"IOU ID","Where applicable, program identifier created by CA IOUs"]
[null,"AMI Enabled (Y/N)","A \"Y\" means program documentation explicitly mentioned that the program was made possible through the installation of a smart meter or leverages smart meter data. "]
[null,"Funding Source","Combination of funding information from Smart Grid Annual reports and other sources. Entries for projects within the Smart grid Annual Reports typically identified the funding source. When information was found on EE stats website, it was considered EE funding. When program was found in DR monthly reports it was considered DR funded. Programs with an ETP ID, found in the ETP database, were considered funded through ETP. Non-IOU funded programs are either municipal programs or REN.  For programs marked as funding source \"other,\" we were either unable to find funding source information or we found less common funding sources (i.e. GRC or shareholder funds)"]
[null,"Program Administrator","This refers to either the IOU, the municipal utility, or other entity responsible for the program's design and administration, not necessarily its implementation."]
[null,"Program Name","This is the program name as defined by the administrator, and is not always the customer facing name."]
[null,"Description","Descriptions were generally taken verbatim from PIP, DR funding decisions, the ETP database, Smart Grid Annual Reports, or another secondary source. In some cases, Opinion Dynamics paraphrased to include relevant and important information about the specific program."]
[null,"Implementer","This generally refers to the organization responsible for delivering service. Where blank, the implementer is the program administrator."]
[null,"Case Study","Indicates if the program is referred to in the report in the case study section."]
[null,"Pilot?","Similar to AMI enabled, if there was explicit evidence in the source that it was a pilot program it is marked as \"Y\"."]
[null,"Savings Reported as DR","This variable notes when energy impact information is reported as a percent of consumption reduced over a specific period of time (i.e. use reduced over a peak period)"]
[null,"Program Year","The year to which the information captured in this sheet refers"]
[null,"Beginning Year","The year of the offering's inception"]
[null,"Opt-in/Opt-out Model","We made our best estimate based on offering design/materials reviewed. In some cases we looked at website enrollment information to determine whether customers were required to sign-up (suggesting the offering was opt-in). If the materials we reviewed did not make it explicitly clear that an offering was opt-out, we assumed it was opt-in. In some cases, such as research studies, this categorization is not applicable (marked as “n/a”)."]
[null,"Impact Data","Impact information was pulled from a variety of sources--such as, evaluation reports, annual reports, monthly reports, IOU data requests, case studies, websites, and third-party studies of specific types of behavioral programs. Information was reported in a variety of forms and our team reported information as it was presented. As such, columns were added throughout the project to capture all of the different ways that impacts were reported. Information listed as \"part of...\" meant that data was rolled up in another overarching program and our team was unable to separate by individual activity. When information is listed as \"not tracked\" it was not explicitly collected and reported in the sources referenced. Information listed as \"n/a\" typically meant that a certain field was not relevant to that program, and information listed as \"not found\" was not available in any of the sources referenced for this review"]
[null,"Program Type and Technology Offered","We based these variables on secondary information and made reasonable assumptions, when appropriate, about the nature of the program and our staff's knowledge of residential behavior feedback programs. Where a certain technology or other type of offering was explicitly mentioned in the secondary literature, it was flagged as such. "]
[null,"Intervention Strategies","Similar to the program type and technology offered category, we levered secondary literature and in-house knowledge on feedback-based intervention strategies to make reasonable assumptions about which strategies were leveraged by each program. In addition, our team referenced the program-specific sources, such as PIPs, to inform our understanding of which intervention strategies were employed. See Appendix E for a complete list of secondary sources"]

{"sheet":"ProgPivot","index":3,"n_rows":144,"n_cols":1,"rows_kept":144,"cut":false,"hidden":true,"merged":[]}
[]
[]
["Row Labels"]
[1001]
[1003]
[1004]
[1005]
[1008]
[1009]
[1010]
[1011]
[1012]
[1013]
[1014]
[1015]
[1016]
[1017]
[1018]
[1019]
[1020]
[1021]
[1022]
[1024]
[1025]
[1026]
[1027]
[1028]
[1029]
[1030]
[1031]
[1032]
[1033]
[1034]
[1035]
[1036]
[1037]
[1038]
[1039]
[1040]
[1041]
[1042]
[1043]
[1044]
[1045]
[1046]
[1047]
[1049]
[1050]
[1051]
[1052]
[1053]
[1054]
[1055]
[1056]
[1057]
[1058]
[1060]
[1061]
[1062]
[1063]
[1064]
[1065]
[1066]
[1067]
[1068]
[1072]
[1073]
[1074]
[1075]
[1076]
[1077]
[1078]
[1079]
[1080]
[1081]
[1082]
[1083]
[1084]
[1085]
[1086]
[1087]
[1088]
[1089]
[1091]
[1092]
[1093]
[1094]
[1095]
[1096]
[1097]
[1099]
[1100]
[1101]
[1102]
[1103]
[1104]
[1105]
[1106]
[1107]
[1108]
[1109]
[1110]
[1111]
[1112]
[1113]
[1114]
[1115]
[1116]
[1117]
[1118]
[1119]
[1120]
[1121]
[1122]
[1123]
[1124]
[1125]
[1126]
[1127]
[1128]
[1129]
[1130]
[1131]
[1132]
[1133]
[1134]
[1135]
[1136]
[1137]
[1138]
[1139]
[1140]
[1141]
[1142]
[1143]
[1145]
[1146]
[1149]
[1150]
[1151]
[1152]
[1153]
[1154]
["Grand Total"]

{"sheet":"Not-In-Scope","index":4,"n_rows":15,"n_cols":74,"rows_kept":15,"cut":false,"hidden":true,"merged":[]}
["Orig ID","ODC_ID","Program ID2","Unique Count Flag","Potential Redundancy (with Unique ID Listed)","IOU ID","Program Category","California Vs. Non-California Programs","Funding Source","Program Name","Administrator","State","Description","Implementer","Case","Pilot?","Feedback Type","AMI Enabled (Y/N)","Savings Reported as DR","Opt-in/Opt-out","Program Year","Beginning Year","Years in field","Expenditures (year-to-date)","Annual Budget","Entire Program Cycle Budget","Annual kWh Savings","Annual kW Savings/load reduction","Annual Therms Savings","Participants","Savings as a Percent (high)","Savings as a Percent (low)","kWh/\nParticipant","kW/\nParticipant","DR flag","HAN flag","Pay as You Go flag","In-home display flag","Green Button flag","Reports flag","Gameification flag","Thermostat","Analysis/Self-Audit Tool/Survey","Electric Vehicles","Alerts","Other","Not in Scope","Targeted Participants","Other technology Involved","Commitment","Follow-through","Pledging","Energy Pricing","Framing","In-person Interactions","Social Norms","Activating Personal Norms","Competitions","Legal","Financial Incentives","Leverage Sunk Cost","Rewards or Gifts","Feedback Only","Other2","Count of Intervention Strategies (does not include \"feedback only\"","Potential Case Study flag","More info available? ","Evaluation Found? (Y/N)","Evaluation Quality (H/M/L)","Confidence of Eval","Impact notes","Source_1","Source_2","Source_3"]
[64,1048,64,0,389,"n/a","SGDP","CA Program","AMI","Time Varying Rates (TVR), specifically Peak Time Rebate/Smart Rate","PG&E","CA","Time varying pricing products, such as Peak Day Pricing (PDP) and Time-of-Use (TOU), take advantage of SmartMeter™ capabilities that are now largely available across PG&E’s service territory. Charging customers different rates based on varying system conditions is intended to more closely align retail and wholesale electric prices for generation, as well as create economic incentives for customers to actively manage their energy costs by shifting electricity use from when it costs more to when it costs less. There are a number of pricing programs implemented today and others envisioned for the future. The SmartMeter™ has enabled PG&E to cost-effectively offer all customers these types of rate programs which provide significant customer and societal benefits.","IOU",null,"N","Indirect","Y",null,"opt-in",2013,2010,4,18500000,"Not found","n/a","see SmartRate entry below","see SmartRate entry below","see SmartRate entry below","see SmartRate entry below","not found","not found","not found","not found",1,0,0,0,0,0,0,0,0,0,1,0,1,"Residential Customers","none",0,0,0,1,0,0,0,0,0,0,1,0,0,null,0,{"$f":"SUM(AX2:BL2)-BK2","v":2},0,0,"not found","n/a","n/a","see SmartRate entry below","Smart Grid Annual Report","PG&E data request response"," "]
[31,1144,31,1,null,"n/a","SGDP","CA Program","AMI & DR","HAN Phase IV‐Advanced Load Control System and Enhancements","SCE","CA","HAN Phase IV will enable customers (residential and business) to register SEP 2.0 Wi-Fi enabled HAN devices to communicate with SCE back office systems so they may enroll in SCE demand response and energy efficiencies programs. This project will require enhancements to the infrastructure that supports registration of SEP 1.x ZigBee enabled HAN devices and the enrollment in demand response programs, as well as, system updates to support HAN operations. This additional HAN communication channel will enable SCE to support customers who prefer to leverage internet-based devices (e.g., their mobile devices) verses ZigBee-enabled HAN devices and enable SCE to offer new HAN programs (e.g., TOU price signals) to help customers manage their energy usage and costs.","IOU",null,"N","None","Y",null,"n/a",2013,2013,1,1036200,1036200,"n/a","n/a","n/a","n/a","n/a","n/a","n/a","n/a","n/a",0,1,0,1,0,0,0,0,0,0,0,0,1,"Residential and Commercial Customers","load control tech, mobile app",0,0,0,0,0,0,0,0,0,0,0,0,0,null,0,0,0,0,"not found","n/a","n/a","none","Smart Grid Annual Report","SCE data request response"," "]
[4,1006,4,1,null,"n/a","DR","CA Program","DR","DR-HAN Integration (excl. HAN-EV)","PG&E","CA","PG&E’s Smart Meter Upgrade Decision funded implementation of foundational HAN infrastructure to enable standards-certified devices to register and communicate securely over PG&E’s SmartMeter™ network. With critical technology standards nearing completion and industry positioned to innovate on the HAN platform, PG&E proposes to take on the next phase of HAN enablement by starting to leverage HAN for key DR applications.","IOU",null,"N","None","Y",null,"n/a",2013,2012,2,2975020,"see next column",20020000,"n/a","not found","n/a","not found","not found","not found","n/a","not found",1,1,0,0,0,0,0,0,0,0,0,0,1,"Residential Customers","none",0,0,0,0,0,0,0,0,0,0,0,0,0,null,0,0,0,0,"not found","n/a","n/a","none","DR Progress Reports","DR Decision D.12-04-045","PG&E data request response"]
[38,1007,38,1,null,"n/a","DR","CA Program","DR","InterAct/DR Forecasting Tool","PG&E","CA","InterAct is PG&E’s energy management and DR event notification application. PG&E requests funds for InterAct system updates, licensing fees, labor costs, and operational costs. (D.12-04-045)","IOU",null,"N","None","N",null,"n/a",2013,2011,3,3302976.5900000003,"see next column",14407887,"n/a","n/a","n/a","n/a","not found","not found","n/a","not found",1,0,0,0,0,0,0,0,1,0,0,0,1,"Residential Customers","none",0,0,0,0,0,0,0,0,0,0,0,0,0,null,0,0,0,0,"not found","n/a","n/a","none","DR Progress Reports","DR Decision D.12-04-045","PG&E data request response"]
[53,1147,53,0,44,"n/a","SGDP","CA Program","DR","Smart Grid Demand Response Programs, specifically Reduce Your Use","SDG&E","CA","Smart Grid related demand response programs are a subset of the programs included in SDG&E’s demand response application (A.11-03-002) filed on March 1, 2011. Specifically, these include SDG&E’s Reduce Your Use program (referred to as ‘Peak Time Rebate’ [PTR] in A.11-03-002) and new construction programs (NCDRP).","IOU",null,"N","Indirect","Y","not found","opt-in",2013,2012,2,649000,"Not found","n/a","not found","not found","not found","not found",8.5000000000000006E-2,0.05,"not found","not found",1,0,0,0,0,0,0,0,0,0,0,0,1,"Residential Customers","none",0,0,0,0,0,0,0,0,0,0,1,0,0,null,0,1,0,0,"exists but not found","n/a","n/a","\"savings as percent\" is load reduction (% of reference load)","Smart Grid Annual Report"," "," "]
[57,1002,57,1,null,"n/a","DR","CA Program","DR","SmartAC","PG&E","CA","A SmartAC device is installed, at no cost to you, on or near your air conditioner. If a local or state energy emergency is  anticipated — also referred to as “a SmartAC Event Day” — your device will be remotely activated and your air conditioner compressor will cycle on and off in short increments totaling no more than 15 minutes of every half hour.; includes programmable thermostats","IOU",null,"N","None","N",null,"opt-in",2013,2007,7,3787611,"see next column",19353335,"n/a",1049000,"n/a",154520,"not found","not found","n/a",0.56999999999999995,1,0,0,0,0,0,0,1,0,0,0,0,1,"Residential Customers","load control tech",0,0,0,0,0,0,0,0,0,0,1,0,0,null,0,1,0,0,"not found","n/a","n/a","kW savings is sum of monthly ex-post load reduction; participants=enrolled service accounts as of Dec. 2013","DR Progress Reports","DR Decision D.12-04-045","PG&E data request response"]
[280.01,1023,280,1,null,"n/a","EE","CA Program","EE","PLA Set Top Box Pilot","SCE","CA","Measure the SCE program impact of accelerating the replacement of inefficient STB’s (pre-ENERGY STAR® 3.0 STB’s). Measure the SCE program impact of accelerating the adoption of new whole-home DVRs as replacements for multiple stand-alone High Definition-Digital Video Recorders (DVRs) to reduce overall household electricity consumption. Achieve a goal of collecting initial data on the energy savings potential for a more mainstream program design for the 2015-2017 program cycle. Characterize the STB Service Provider market and consumer market and build collaborative working relationships with service providers and industry market actors (e.g., set-top box manufacturers, industry groups, etc.) to develop an effective Market Transformation (MT) incentive program to reduce the standby-duty cycle (e.g., achieve “deep sleep”) of STB’s.  \n• Identify incentive and Market Transformation implementation strategies that will be used in the next energy efficiency program cycle to engage the SW CA IOU’s (and other utilities) to drive Market Transformational Energy Efficiency Standards with all Cable, Satellite, and telecom STB Service Providers.  \n\nThe Pilot plans to implement a co-branded marketing outreach campaign to two select groups (Treatment Group and Control Group)\n\nTreatment Group:\n• This group of participants will be identified by the M&E team as program participants who receives marketing material with informative facts on the energy consumption of their current in-efficient STB’s in addition to discussing the benefits of upgrading to ENERGY STAR® 3.0 STB’s.  An Instant Rebate WILL BE OFFERED to Treatment Group participants.  \n\nControl Group: \n• This group of participants will be identified by the M&E team as a control group who does not receive any marketing material. An Instant Rebate WILL NOT BE OFFERED to Control Group participants.\n\nNO SMART METER INFORMATION WAS GATHERED FOR THIS PILOT.\n\nAdditional information is provided in the M&E Study Plan","IOU",null,"Y","None","N",null,"opt-in",2013,"Not found","not found","not found","see next column","part of PLA","not found","not found","not found","7,400 reached, 376 upgraded","not found","not found","not found","not found",0,0,0,0,0,0,0,0,0,0,0,0,1,"Residential Customers","set top boxes (i.e. DVRs)",0,0,0,0,0,0,0,0,0,0,1,0,0,null,0,1,0,1,"not found","n/a","n/a","Experimental Group: 3,700\nControl Group: 3,700\nExperimental Group Upgraders: 351\nControl Group Upgraders: 25","SCE data request response","SCE M&E study plan"," "]
[393.06,1059,393,1,null,"ET13SCE7190","ETP","CA Program","ETP","Monetization Modeling of Connected Homes","SCE","CA","This project will conduct market and industry survey to understand current market monetization models for benchmarking and assess the current end-user wants and needs – leading to development of successful monetization models; assess feasibility of industry participants to implement new monetization models in terms of identified end-user needs. In addition, study will also identify the key market growth enablers and obstacles in optimizing monetization models in North America. \n \nTwo main primary research processes were conducted for this report: extensive interviews with industry participants and an online end-user survey of North American consumers. \n \nDELIVERABLE: The final deliverable will be a report with the findings \n","IOU",null,"N/A","None","Y",null,"opt-in",2013,2013,1,"not found",5000,"n/a","not found","not found","not found",0,"not found","not found","n/a","n/a",0,1,0,0,0,0,0,0,0,0,0,0,1,"Residential Customers","none",0,0,0,0,0,0,0,0,0,0,0,0,0,null,0,0,0,0,"not found","n/a","n/a","none","ETP Sheet"," "," "]
[2,1148,2,1,null,"n/a","SGDP","CA Program","Other","Digital Roadmap\n     ","SDG&E","CA","The digital roadmap provides for six initiatives that supply customers with greater accessibility to information and easier navigation for more effective communications and time savings in addressing customer energy-related information needs: (a) Re-architecting My Account website; (b) eServices; (c) digital research; (d) including social media into two-way communications; (e) digital advertising; and (f) mobile applications.\nSDGE.com Website: The project team focused on a content strategy, which allows users to easily find content they are looking for. Additionally, customers will be able to self-serve on the website, including start/stop service, payment arrangements, and more. It also includes a feature called Live Chat, which allows customers to chat via text/computer instead of calling, and the Contact Us form, which gives customers a number of options, including online chat, phone, and web.\n\nSocial Media: Engagement on social media was high during the Reporting Period with more than 90 mentions a day across Twitter, Facebook, and Pinterest in the first quarter. Twitter has been the most active channel with 70% of SDG&E’s online interactions. SDG&E has more than\n18,000 Twitter followers and recently won an award from PRNews for the Social Media Icon\nAward for response to the Sept. 8, 2011 outage.\n\nMobile Application (iPhone/iPad/Android): A new update will allow customers to proactively notify SDG&E of service outages at their location. Future enhancements for mobile development could include: access to energy usage information, energy conservation tools, alerts/notifications, and posts of SDG&E employment opportunities.\n\neServices/My Account: A planned project to redesign My Account to ensure compliance with web accessibility standards and introduce a framework for personalization conceived as tailored treatments. Through this redesign, the goal is to align My Account with SDG&E’s brand, implement responsive design, and find opportunities for improving content management.\n","IOU",null,"N","None","Y","not found","n/a",2013,2012,2,"not found","Not found","n/a","n/a","n/a","n/a","n/a","n/a","n/a","n/a","n/a",0,0,0,0,0,0,0,0,0,0,0,0,1,"Residential Customers","none",0,0,0,0,0,0,0,0,0,0,0,0,0,null,0,0,0,0,"not found","n/a","n/a","none","Smart Grid Annual Report","SDG&E Smart Grid Roadmap"," "]
[501,1070,501,1,null,"n/a","n/a","Non-CA Program","n/a","Behavior R&D: Syracuse Energy Challenge","NYSERDA","NY","The Energy Team Challenge behavior pilot used goal setting, priming, prompts and public commitment to build commitment to work through a series of energy-efficiency exercises independently and then report back at the group meetings scheduled every other week. As Teams work through the curriculum workbook, members built self-efficacy and knowledge about how to reduce energy usage the household level.  Priming is activated by group discussion and publicly expressed intentions to follow through with the \"assignment\" for the next two weeks.  Prompts are employed by providing a three ring binder workbook to all participants with detailed descriptions and checklists of how to carry out the \"assignment.\"  Public commitment is used in staging the Energy Team Challenge as meeting among friends and neighbors.",null,null,"Y","indirect","N",null,"opt-in",2013,2012,1,0,0,null,0,0,0,51,null,"","NA",null,0,0,0,0,0,0,0,0,0,0,0,0,1,"N",null,1,0,1,0,1,1,1,0,1,0,0,0,0,null,0,null,0,0,null,null,"L","24 week pilot program, participation by household","Q:\\8120-CPUC DNV Residential\\Behavior Study\\Evaluation Activities\\IOU behavioral programs\\Secondary Data on Behavior Programs\\Programs from Literature Reviews\\2014_CEE_Behavior_Program_Summary_-_Public.xlsx"]
[508,1069,508,1,null,"n/a","n/a","Non-CA Program","n/a","Behavior R&D: Ithaca College Computer Shutdown","NYSERDA","NY","This is a pilot program that is designed to get students and faculty to turn off computers in public areas and offices when computers are not in use and before going home for the day. An experimental design is used with random assignment to descriptive norm treatment(s) and control groups.",null,null,"Y","indirect","N",null,"opt-in",2012,2011,1,0,0,null,0,0,0,50307,null,"","NA",null,0,0,0,0,0,0,0,0,0,0,0,0,1,"students",null,0,1,1,0,1,1,1,1,0,0,0,0,0,null,0,null,0,0,null,null,"L","participation: 308 students at SUNY Plattsburgh and 49,999 students at Ithaca College","Q:\\8120-CPUC DNV Residential\\Behavior Study\\Evaluation Activities\\IOU behavioral programs\\Secondary Data on Behavior Programs\\Programs from Literature Reviews\\2014_CEE_Behavior_Program_Summary_-_Public.xlsx","Q:\\8120-CPUC DNV Residential\\Behavior Study\\Evaluation Activities\\Task1d-Market Characterization\\Secondary Program Information\\college-comp-labs-cs.pdf"]
[510,1090,510,1,null,"n/a","n/a","Non-CA Program","n/a","Team Power Smart","B.C. Hydro","BC","B.C. Hydro’s Team Power Smart is a behavioral based opt-in loyalty program launched in 2008 that applies social marketing principles to engage residential customers and encourage energy efficiency. Members (participants) commit to a 10% electricity reduction goal over a 12 month period; with B.C. Hydro providing tools, feedback, support, motivation and rewards","B.C. Hydro",null,"N","indirect","N",null,"opt-in",2010,2008,5,0,0,null,5150000,1020,0,45441,null,"",113.33377346449242,null,0,0,0,0,0,0,0,0,1,0,0,0,1,"N",null,1,1,1,0,1,1,1,0,1,0,0,0,1,null,0,null,0,0,null,null,"M",0,"Q:\\8120-CPUC DNV Residential\\Behavior Study\\Evaluation Activities\\Task1d-Market Characterization\\Secondary Program Information\\CEE_Eval_Residential Behavioural Report _Sept 2010_29Sep2010.pdf"]
[514,1071,514,1,null,"n/a","n/a","Non-CA Program","n/a","Community Education Pilot Program","WE Energies","WI","In July 2010, We Energies began implementing a community-based energy efficiency program, marketed as Way to Save Burlington, following a commission-level directive encouraging utilities to develop innovative energy efficiency programs complimentary to the statewide Focus on Energy Program. The CEP Program is a marketing and outreach program that relies on community-based social marketing principles. It aims to generate 1% energy savings annually within a defined community: Burlington, Wisconsin. ","ICF",null,"Y","indirect","N",null,"opt-in",2012,2010,2,0,0,null,0,0,0,0,6.5000000000000002E-2,"","NA",null,0,0,0,0,0,0,0,0,0,0,0,0,1,"N",null,1,1,1,0,1,1,1,1,1,0,0,0,0,null,0,null,1,1,null,null,null,"Itron did full process and impact evaluation, but I haven't been able to find it online. Impacts listed are commercial net % change in activity (of treatment) compared to the usage of the control group over a 27 month period. 21.4% reduction in therms, 142.6% for kWh, 6.5% for kW","Q:\\8120-CPUC DNV Residential\\Behavior Study\\Evaluation Activities\\IOU behavioral programs\\Secondary Data on Behavior Programs\\Programs from Literature Reviews\\2014_CEE_Behavior_Program_Summary_-_Public.xlsx","Q:\\8120-CPUC DNV Residential\\Behavior Study\\Evaluation Activities\\Task1d-Market Characterization\\Secondary Program Information\\Way to Save Burlington.pdf"]
[531,1098,531,1,null,"n/a","n/a","Non-CA Program","n/a","Energy Smart-Residential","Boulder County","CO","Provides customers with personalized EnergySmart Advisor that will guide residential customers towards making decisions designed to save energy and money. Advisors guide customers through rebate, and other installation programs that provide them with free or low-cost measures. Advisors also provide personalized recommendations for how an individual home or family can take actions to reduce energy consumption. Funded through US DOE \"Better Buildings Program\"","CLEAResult",null,"N","Indirect","N",null,"opt-in",2014,2010,null,0,0,null,2471413,0,0,12100,null,null,null,null,0,0,0,0,0,0,0,0,0,0,0,1,1,null,null,0,0,0,0,1,1,1,1,0,0,1,0,0,0,0,null,1,1,"not found",null,null,"This program does not fit into one of our \"program type\" buckets, but provides behavioral recommendations to customers in addition to financial support for measure upgrades, participation numbers are \"to-date\" (i.e. since progarm's inception in 2010). Savings are annual based on deemed values.","https://www-static.bouldercolorado.gov/docs/updated_COB_EnergySmart_Report_Q3_2014-1-201410141417.pdf","http://www.bouldercounty.org/env/sustainability/pages/energysmart.aspx","http://www.energysmartyes.com/files/EnergySmart_Navigant_ProgressReport_2012_FINAL.pdf"]

{"sheet":"Non-CA programs","index":5,"n_rows":44,"n_cols":68,"rows_kept":44,"cut":false,"hidden":true,"merged":[]}
["Non-CA","ID (Not Unique)","Unique ID","Unique Count Flag","Program Name","Organization","State","Program Year","Beginning Year","Years in field","Implementer","Description","Case Study?","Pilot?","Feedback Type","AMI Enabled (Y/N)","Expenditures (year-to-date)","Annual Budget","Entire Program Cycle Budget","Annual kWh Savings","Annual kW Savings/load reduction","Annual Therms Savings","Participants","Savings Reported as DR","Opt-in/Opt-out","Savings as a Percent (high)","Savings as a Percent (low)","kWh/Participant","kW/Participant","DR flag","HAN flag","Pay as You Go flag","In-home display flag","Green Button flag","Reports flag","Gameification flag","Thermostat","Analysis/Self-Audit Tool/Survey","Electric Vehicles","Alerts","Other","Not in Scope","Targeted Participants","Other technology Involved","Commitment","Follow-through","Pledging","Energy Pricing","Framing","In-person Interactions","Social Norms","Activating Personal Norms","Competitions","Legal","Financial Incentives","Leverage Sunk Cost","Rewards or Gifts","Feedback Only","Other","Potential Case Study flag","More info available? ","Evaluation Found? (Y/N)","Evaluation Quality (H/M/L)","Confidence of Eval","Notes","Source_1","Source_2","Source_3"]
["NO",20,4018,1,"Peaksaver Plus","Ontario Power Authority","ON",2012,null,null,"LDCs","participants are eligible to receive a free programmable thermostat or switch, including installation. Participants also receive access to price and real-time consumption information on an In Home Display (“IHD”). LDCs were given the choice to continue to offer the standard load control program (programmable communicating thermostat or switch with a $25 bill credit) for the first 8 months of 2011 (referred to as peaksaver®Extension). After August 2011, the Extension ended and the program (including marketing) ceased until new IHD product were available",0,"N","direct","Y",0,0,null,0,77000,0,174490,1,"in",0.17,"","NA",null,1,0,0,1,0,0,0,1,0,0,0,0,0,"residential and small commercial",null,0,0,0,0,0,0,0,1,0,0,0,0,0,0,0,1,1,null,null,null,"Participation number is total number of activated devices in 2012 for residential only. % impacts are for 7 event days in the summer of 2012.","Q:\\8120-CPUC DNV Residential\\Behavior Study\\Evaluation Activities\\Task1d-Market Characterization\\Secondary Program Information\\2012-peaksaverPLUS-Evaluation.pdf","http://www.miltonhydro.com/peaksaver/","Q:\\8120-CPUC DNV Residential\\Behavior Study\\Evaluation Activities\\Task1d-Market Characterization\\Secondary Program Information\\Milton_2011_Annual_CDM_Report.pdf"]
["NO",420,4035,1,"Power Partner SM","Austin Energy","TX",2014,2013,1,"Austin Energy","Customers with smart meters can receive an $85 rebate on select models of smart thermostats. By accepting the rebate, customers have to allow Austin Energy to remotely access and control their thermostats on 10-15 peak summer days between the hours of 4 and 6 pm.",0,"N",null,"N",1067684,null,null,49000,6800,null,5819,null,null,null,null,null,null,1,0,0,0,0,0,0,1,0,0,0,0,0,"AMI Customers","Smart Thermostat",1,0,0,0,0,0,0,0,0,0,1,0,0,0,0,null,null,null,null,null,null,"Q:\\8120-CPUC DNV Residential\\Behavior Study\\Evaluation Activities\\Task1d-Market Characterization\\Secondary Program Information\\Austin Energy 2013 Annual Report.pdf","http://powersaver.austinenergy.com/wps/portal/psp/about/press-releases/new-austin-energy-smart-thermostat-program-enables-customers-to-adjust-temperatures-anytime-anyplace/!ut/p/a1/jZFPa8JAEMU_iweP666R2tBbEMGUWGtFGnMpYzomKdk_zI4G--m7oZcKSt3L8pjf23m8lYXMZWHg1FTAjTXQ9rqYfqgojhYzFaVxMo9U-qLmk2y-Vqt0GoDdX2C1en1Q6eNblK03k3G8Hd_pv3ES9Z__-Y4FES1ny0oWDrgWjTlYmTtC7wVhi-DRy9xgJ-DouTECDVJ1Fl4DseAaSVvPwMKRrQh0mMO-RS_KgFuN5AVbAZ9fQQpG7ZCAj-F5AebMjcb-di2U2EdJzH4ShyiEBySk0ZFCxzWz809DNVRd140qa6sWR6XVQ3XNUoc4Mr8k5bssLou48hG_wO2mnd7m39miPWWHTZoMBj_-3wNJ/dl5/d5/L2dBISEvZ0FBIS9nQSEh/","http://powersaver.austinenergy.com/wps/portal/psp/residential/learn/save-on-air-conditioning-and-heating/power-partner-thermostats-provide-remote-control/!ut/p/a1/jZFdT8IwFIZ_Cxe7LD10Cot3C1mkZoiI6NiNqVC2JqxtTsuI_no79EINRHpz0pP3PO_5oCUtaKlFqyrhldFi1_3L4SuwhE3GwDhMpiPgz8PFE-NZDHwQBKufgtns4Rr46JHl80U8SJaDC-vPvBT-q7-7wIDhdDytaGmFr4nSW0MLJ1pJjCZCIVkbvVHdvEpXROgNqWUYX1e0sOYgkViBXofoa4mNcV54RyyaVm0kQdkYLzuER9Ota5XqtzgJZii3EiX29xjStff2JoIIjsTOHPti74KLDOTqvb82TQQH6zoFerEL0dkIULrgor0SJ9l16Oa7y9NM-kLL3wtK0owBv4cszrM53F7BX8GJC34Jzp_INsviI5_s2ny74FWv9wmtEyUh/dl5/d5/L2dBISEvZ0FBIS9nQSEh/"]
["NO",421,4036,1,"Nest Thermostat Heat Pump Control Pilot","Energy Trust of Oregon","OR",2013,2013,1,"CLEAResult","The program, implemented by the Energy Trust's Existing Homes program, was managed by a third-party contractor CLEAResult. The program used a \"direct-install\" approach where a trained technician actually installed and set up the Nest thermostat in each participating home. Customers for the treatment group had to meet a number of crateria--including having taken part in a Home Energy Review, having a heat pump as the home's primary heat source, and not having participated in an Energy Trust program over the last 12 months--and were randomly selected. Participants also had to have an existing wireless connection and a willingness to allow Nest to share thermostat settings and data with the Energy Trust.",0,"Y",null,"N",null,null,null,781,null,null,177,null,null,4.7E-2,null,null,null,1,0,0,0,0,0,0,1,0,0,0,0,0,null,"smart thermostat (Nest)",1,0,0,0,0,0,0,0,0,0,1,0,0,0,0,0,null,null,null,null,"only 113 treatment participants and 211 (out of 299) control participants were used for savings analysis. These represented customers that had available and comparable utility data from 2012. kWh savings estimates may be per participant?","Q:\\8120-CPUC DNV Residential\\Behavior Study\\Evaluation Activities\\Task1d-Market Characterization\\Secondary Program Information\\Programs in Sheet\\Nest_Pilot_Study_Evaluation_wSR.pdf"]
["NO",8,4001,1,"Behavior R&D: Ithaca College Computer Shutdown","NYSERDA","NY",2012,2011,1,null,"This is a pilot program that is designed to get students and faculty to turn off computers in public areas and offices when computers are not in use and before going home for the day. An experimental design is used with random assignment to descriptive norm treatment(s) and control groups.",0,"Y","indirect","N",0,0,null,0,0,0,50307,null,"in",null,"","NA",null,0,0,0,0,0,0,0,0,0,0,0,0,1,"students",null,0,1,1,0,1,1,1,1,0,0,0,0,0,null,0,0,0,null,null,"L","participation: 308 students at SUNY Plattsburgh and 49,999 students at Ithaca College","Q:\\8120-CPUC DNV Residential\\Behavior Study\\Evaluation Activities\\IOU behavioral programs\\Secondary Data on Behavior Programs\\Programs from Literature Reviews\\2014_CEE_Behavior_Program_Summary_-_Public.xlsx","Q:\\8120-CPUC DNV Residential\\Behavior Study\\Evaluation Activities\\Task1d-Market Characterization\\Secondary Program Information\\college-comp-labs-cs.pdf"]
["NO",1,4002,1,"Behavior R&D: Syracuse Energy Challenge","NYSERDA","NY",2013,2012,1,null,"The Energy Team Challenge behavior pilot used goal setting, priming, prompts and public commitment to build commitment to work through a series of energy-efficiency exercises independently and then report back at the group meetings scheduled every other week. As Teams work through the curriculum workbook, members built self-efficacy and knowledge about how to reduce energy usage the household level.  Priming is activated by group discussion and publicly expressed intentions to follow through with the \"assignment\" for the next two weeks.  Prompts are employed by providing a three ring binder workbook to all participants with detailed descriptions and checklists of how to carry out the \"assignment.\"  Public commitment is used in staging the Energy Team Challenge as meeting among friends and neighbors.",0,"Y","indirect","N",0,0,null,0,0,0,51,null,"in",null,"","NA",null,0,0,0,0,0,0,0,0,0,0,0,0,1,"N",null,1,0,1,0,1,1,1,0,1,0,0,0,0,null,0,0,0,null,null,"L","24 week pilot program, participation by household","Q:\\8120-CPUC DNV Residential\\Behavior Study\\Evaluation Activities\\IOU behavioral programs\\Secondary Data on Behavior Programs\\Programs from Literature Reviews\\2014_CEE_Behavior_Program_Summary_-_Public.xlsx"]
["NO",15,4003,1,"Community Education Pilot Program","WE Energies","WI",2012,2010,2,"ICF","In July 2010, We Energies began implementing a community-based energy efficiency program, marketed as Way to Save Burlington, following a commission-level directive encouraging utilities to develop innovative energy efficiency programs complimentary to the statewide Focus on Energy Program. The CEP Program is a marketing and outreach program that relies on community-based social marketing principles. It aims to generate 1% energy savings annually within a defined community: Burlington, Wisconsin. ",0,"Y","indirect","N",0,0,null,0,0,0,0,null,"in",6.5000000000000002E-2,"","NA",null,0,0,0,0,0,0,0,0,0,0,0,0,1,"N",null,1,1,1,0,1,1,1,1,1,0,0,0,0,null,0,1,1,null,null,null,"Itron did full process and impact evaluation, but I haven't been able to find it online. Impacts listed are commercial net % change in activity (of treatment) compared to the usage of the control group over a 27 month period. 21.4% reduction in therms, 142.6% for kWh, 6.5% for kW","Q:\\8120-CPUC DNV Residential\\Behavior Study\\Evaluation Activities\\IOU behavioral programs\\Secondary Data on Behavior Programs\\Programs from Literature Reviews\\2014_CEE_Behavior_Program_Summary_-_Public.xlsx","Q:\\8120-CPUC DNV Residential\\Behavior Study\\Evaluation Activities\\Task1d-Market Characterization\\Secondary Program Information\\Way to Save Burlington.pdf"]
["NO",23,4004,1,"iChoose","Cool Choices","WI",2012,2012,1,"Cool Choices and Miron Construction","In April 2011, Cool Choices and Miron Construction launched iChoose, an environmental sustainability  game for Miron employees. Two hundred and twenty of about 330 Miron employees played the iChoose  game between May and November 2011. Players competed both individually and as members of teams  by earning points for sustainable actions they took in their personal lives and reported to Cool Choices.  Participants had 58 pre-determined sustainable actions available to them, as well as an opportunity to  create their own sustainable activities, educate themselves about sustainable issues, or earn bonuses for  documenting their activities. The actions spanned the broad themes of household energy (encompassing  both electricity and natural gas), transportation, water, waste, and indoor environmental quality. ",0,"N","indirect","N",0,0,null,88000,0,0,220,null,"in",0.01,"",400,null,1,0,0,0,0,0,1,0,0,0,0,0,0,"employees of Miron Construction",null,0,0,0,0,0,0,0,0,1,0,0,0,0,0,0,0,0,null,null,null,"kWh impacts come from a billing analysis that found, on average, a per participant reduction of 400 kWh. Based on post-game interviews, evaluators estimated between 700 and 900 kWh reduction per person.","Q:\\8120-CPUC DNV Residential\\Behavior Study\\Evaluation Activities\\Task1d-Market Characterization\\Secondary Program Information\\ECW_Cool Choices Impacts_2013.pdf"]
["NO",18,4005,1,"PeakRewards: DPP only","Baltimore Gas and Electric","MD",2008,2007,7,"Opower","The PeakRewardsSM program is designed by BGE to help ease the \"peak\" demand for electricity in the Mid-Atlantic region. It is part of the BGE Smart Energy Savers Program®, which helps you conserve energy, save money and protect the environment. When you participate in the program, you will help offset air conditioner demand during periods of \"peak\" electricity usage, thus helping to reduce the likelihood of power outages. As a reward for joining, you can save with bill credits this summer and every summer during which you remain enrolled. By participating in the program, customers give permission for BGE to temporarily modify the settings on their air conidtioner or water heater.",1,"Y","indirect","N",0,0,null,0,null,0,148,1,"in",0.20100000000000001,1.7999999999999999E-2,"NA",null,1,0,0,0,0,0,0,0,0,0,1,0,0,"residnetial customers with central AC or electric heat pumps","BGE installs a switch or a specific programmable thermostat that enables control of household AC.",1,1,0,1,0,0,0,1,0,0,0,0,0,0,0,1,1,null,null,null,"1375 total participants in pilot (354 customers were control group and 531 with an in-home display or no technology and no DPP rate). 148 in this group were those with only dynamic peak pricing (no additional technology)","Q:\\8120-CPUC DNV Residential\\Behavior Study\\Evaluation Activities\\Task1d-Market Characterization\\Secondary Program Information\\BGE_SmartEnergyPricingPilot_ImpactEvaluation_28Apr2009.pdf","http://peakrewards.bgesmartenergy.com/"]
["NO",9,4006,1,"C3 Western Mass Saves! Program (2010-2011)","Western Massachusetts Electric Company","MA",2011,2010,1,null,"The C3 WMS program is comprised of two primary elements: (1) an online web platform available to all WMECo customers; and (2) Energy Savings Reports (ESRs) distributed by mail to randomly assigned treatment customers. In addition, the program uses community-based outreach to help further drive participation, though this represents a minor portion of its work. Program participants fall into two classes: (1) “passive” participants that receive the ESR but do not use the web portal; and (2) “activated” participants that actively opt-in to the web portal (either through the ESR or other marketing and outreach activities).",0,"N","indirect","N",0,150000,null,1740000,0,0,24617,null,"out",2.5000000000000001E-2,"",70.682861437218179,null,1,0,0,1,0,0,0,0,1,0,0,0,0,"N",null,0,0,0,0,0,1,0,0,1,0,0,0,0,0,0,0,1,null,null,null,0,"Q:\\8120-CPUC DNV Residential\\Behavior Study\\Evaluation Activities\\IOU behavioral programs\\Secondary Data on Behavior Programs\\Programs from Literature Reviews\\2013 June Cross-Cutting Behavioral Program Evaluation Final Integrated Report June 2013.pdf","Q:\\8120-CPUC DNV Residential\\Behavior Study\\Evaluation Activities\\IOU behavioral programs\\Secondary Data on Behavior Programs\\Programs from Literature Reviews\\BBEE_Res_Profiles_Dec_2011 - BPA.pdf"]
["NO",415,4007,1,"Conservation Behavior","Arizona Public Service Company","AZ",2012,2010,3,"Opower","Direct mail normative messaging program to ~100,000 customers designed to modify residential customer behavior.",0,"N","indirect","N",0,871396,null,23543000,3900,0,77900,null,"in",null,"",302.22079589216946,null,0,0,0,0,0,1,0,0,0,0,0,0,0,"low-income/multi-family",null,0,0,0,0,1,0,1,1,0,0,0,0,0,0,0,0,0,null,null,null,"targets LI and multi-family residential customers","Q:\\8120-CPUC DNV Residential\\Behavior Study\\Evaluation Activities\\IOU behavioral programs\\Secondary Data on Behavior Programs\\Programs from Literature Reviews\\2014_CEE_Behavior_Program_Summary_-_Public.xlsx","Q:\\8120-CPUC DNV Residential\\Behavior Study\\Evaluation Activities\\Task1d-Market Characterization\\Secondary Program Information\\APS_DSM_Report_2012.pdf"]
["NO",3,4008,1,"Energy Efficiency Reports","Payson City Power","UT",2011,2010,1,null,"Since 2010 Payson City Power (Utah) has been partnering with Enerlyte to provide energy use and efficiency information on its residential customer energy bills. The information provided on the customer’s bill can be customized; and typically includes a graphic display of current energy use with comparisons to previous usage, neighbor’s usage, and efficient use. Customers are directed to an interactive web portal dedicated to further educating and motivating customers to take action to save energy, including setting goals and creating challenge groups, with progress updates included on the customer’s bill.",0,"N","indirect","N",0,0,null,726000,0,0,5000,null,"out",2.4E-2,"",145.19999999999999,null,1,0,0,0,0,1,0,0,1,0,1,0,0,"Y","cell phone app that sends info about peak usage periods",1,0,0,0,0,0,1,1,1,0,0,0,0,0,0,0,0,null,null,null,"Participants receive home energy reports that are opt-out; they may also use the program online interface, which is opt-in.","Q:\\8120-CPUC DNV Residential\\Behavior Study\\Evaluation Activities\\IOU behavioral programs\\Secondary Data on Behavior Programs\\Programs from Literature Reviews\\2013 June Cross-Cutting Behavioral Program Evaluation Final Integrated Report June 2013.pdf","Q:\\8120-CPUC DNV Residential\\Behavior Study\\Evaluation Activities\\IOU behavioral programs\\Secondary Data on Behavior Programs\\Programs from Literature Reviews\\BBEE_Res_Profiles_Dec_2011 - BPA.pdf"]
["NO",4,4009,1,"Energy Saver Program","Illinois Citizens Utility Board","IL",2011,2010,1,"Efficiency 2.0","The Illinois Citizens Utility Board (CUB) has been offering the Energy Saver program to customers of Commonwealth Edison and People’s Gas since June of 2010. The CUB Energy Saver program provides participants with tools and information developed and administered by Efficiency 2.0 to encourage energy efficiency related behavior change. Through Recyclebank participants can redeem points earned by saving energy for discounts on purchases from national and local merchants. CUB recently initiated a related 100 home direct response (DR) pilot with Efficiency 2.0 using Greenlet Technologies’ plug-in appliance DR product to dispatch washers, dryers and air conditioning units.  Paper reports are sent out to the entire program population and online reports and rewards are opt-in.",0,"Y","indirect","N",0,400000,null,1890000,0,0,2925,null,"in",5.2999999999999999E-2,"",646.15384615384619,null,0,1,0,0,0,1,1,0,0,0,0,0,0,"Y",null,0,0,0,0,0,0,0,0,1,0,0,0,1,0,0,0,0,null,null,null,"Participants receive home energy reports that are opt-out; the bulk of the program (on-line reports and rewards) is opt-in, represents inception-to-date, budget listsed is for 2014","Q:\\8120-CPUC DNV Residential\\Behavior Study\\Evaluation Activities\\IOU behavioral programs\\Secondary Data on Behavior Programs\\Programs from Literature Reviews\\2013 June Cross-Cutting Behavioral Program Evaluation Final Integrated Report June 2013.pdf","Q:\\8120-CPUC DNV Residential\\Behavior Study\\Evaluation Activities\\IOU behavioral programs\\Secondary Data on Behavior Programs\\Programs from Literature Reviews\\BBEE_Res_Profiles_Dec_2011 - BPA.pdf","https://www2.illinois.gov/ipa/Documents/Appendix%20C-4%20-%20IPA%20Program%20Detail.pdf"]
["NO",5,4010,1,"Home Electricity Reports","Seattle City Light","WA",2013,2009,5,"Opower","Bi-monthly personalized home electricity reports mailed to 40,000 residential customers with normative messaging. Participants are given the option of setting a savings goal on the associated web platform.  This goal and their progress toward it then shows up on their paper report.  Again on the web platform participants are given a series of tips that they can click to show that they are doing them or plan to do them.  Each report acts as a prompt to remind participants to continue their efficient behavior.",0,"N","indirect","N",0,0,null,16747814,0,0,50000,null,"out",null,"",334.95627999999999,null,0,0,0,0,0,1,0,0,0,0,0,0,0,"Y","two-way feedback technology",1,1,1,0,1,0,1,1,0,0,0,0,0,0,0,0,0,null,null,null,"Evaluated by DNV GL, savings are just for 2013 (32,170,323 kWh for 2012 and 2013)","Q:\\8120-CPUC DNV Residential\\Behavior Study\\Evaluation Activities\\IOU behavioral programs\\Secondary Data on Behavior Programs\\Programs from Literature Reviews\\2014_CEE_Behavior_Program_Summary_-_Public.xlsx","Q:\\8120-CPUC DNV Residential\\Behavior Study\\Evaluation Activities\\Task1d-Market Characterization\\Secondary Program Information\\SLC_HER_Report_July2014.pdf"]
["NO",22,4011,1,"Home Energy Reports-AEP Ohio","AEP Ohio","OH",2012,null,null,"Opower","The purpose of the Home Energy Reports (HER) Program is to provide feedback to residential participants that will help them change energy use habits to save energy. This occurs through the use of a personalized report delivered to participating households either bi-monthly or quarterly. The information included in the report shows the energy use pattern of the household relative to their peers and offers particular actions a participant can take to reduce their household’s metered electricity usage. To implement this program, AEP Ohio contracted with Opower, Inc. to develop and distribute the program.",0,"N","indirect","N",0,0,null,71344000,9275,0,197646,null,"out",null,"",360.9686004270261,null,0,0,0,0,0,1,0,0,0,0,0,0,0,null,null,0,0,0,0,0,0,1,0,1,0,0,0,0,0,0,1,1,null,null,null,"these are ex-post impacts combined for high-use customers, low-income customers, and customers with AMI. ","Q:\\8120-CPUC DNV Residential\\Behavior Study\\Evaluation Activities\\Task1d-Market Characterization\\Secondary Program Information\\AEP Ohio HER_2012.pdf"]
["NO",47,4012,1,"Home Energy Reports-CL&P","Connecticut Light and Power","CT",2012,2011,1,"Opower","The purpose of the Home Energy Reports (HER) Program is to provide feedback to residential participants that will help them change energy use habits to save energy. This occurs through the use of a personalized report delivered to participating households either bi-monthly or quarterly. The information included in the report shows the energy use pattern of the household relative to their peers and offers particular actions a participant can take to reduce their household’s metered electricity usage. To implement this program, CL&P contracted with Opower, Inc. to develop and distribute the program.",0,"Y","indirect","N",0,0,null,34668,0,0,107,null,"out",1.7000000000000001E-2,"",324,null,0,0,0,0,0,1,0,0,0,0,0,0,0,null,null,0,0,0,0,0,0,1,0,1,0,0,0,0,0,0,1,1,null,null,null,"Participation are only those in the treatment group. Savings values are presented as \"average daily energy of treatment group as compared to control.\" This was estimated to be 0.85 kWh per customer per day. This is about 1.7% less energy than the control group. kWh impacts calculated based on 1,005,280,502 kWh usage (over 27 months) for 23,717 customers in the control group. This comes to 1,570 per HH per month, less 1.7% is 1,543 kWh (or 27 kWh per HH per month in savings).","Q:\\8120-CPUC DNV Residential\\Behavior Study\\Evaluation Activities\\Task1d-Market Characterization\\Secondary Program Information\\CL&P HER Program Pilot Eval_2012.pdf"]
["NO",16,4013,1,"Home Energy Reports-DTE Energy","DTE Energy","MI",2012,2011,1,"Navigant","The Opt-Out Program will mail Home Energy Reports to 50,000 residential customers with both gas and electic service.  The target customers are selected to equally represent multiple customer segments along with DTE Energy's combo geographic territory.",0,"N","indirect","N",0,0,null,23106000,0,0,258000,null,"out",null,"",89.558139534883722,null,0,0,0,0,0,1,0,0,0,0,0,0,0,"Y, to be representative of population",null,0,0,0,0,0,0,1,1,0,0,0,0,0,0,0,0,0,null,null,null,"kWh from CEE Study represents savings goals (not actual program savings)","Q:\\8120-CPUC DNV Residential\\Behavior Study\\Evaluation Activities\\IOU behavioral programs\\Secondary Data on Behavior Programs\\Programs from Literature Reviews\\2014_CEE_Behavior_Program_Summary_-_Public.xlsx"]
["NO",6,4014,1,"Home Energy Reports-Puget Sound","Puget Sound Energy","WA",2013,2007,5,"Opower","Puget Sound Energy (PSE) implemented the Home Energy Reports (HER) Program in 2008. The HER Program delivers customized information on energy consumption to participating households and compares the household’s energy consumption to that of similar neighbouring homes.The program was structured as a randomized controlled trial wherein the initial eligible population was randomly assigned to the treatment and control groups. All households in the treatment group received the report either monthly or quarterly for two years.",0,"N","indirect","N",0,0,null,7114917.4000000004,0,346126.80000000005,25018,null,"in",0.03,"",284.39193380765852,null,0,0,0,0,0,1,0,0,0,0,0,0,0,"N",null,0,0,0,0,0,0,1,1,0,0,0,0,0,0,0,0,0,null,null,null," used diff-in-diff model to estimate. including 8,324 suspended participants. Per person electric savings estimated at 334.3 kWh (+/-53.4) for current participants and 184.3(+/-70.9) for suspended participants. Therms savings estimated at 14.8(+/-3.2) and 11.9(+/-4.0) respectively","Q:\\8120-CPUC DNV Residential\\Behavior Study\\Evaluation Activities\\Task1d-Market Characterization\\Secondary Program Information\\PSE_HER_Report_April2014.pdf"]
["NO",12,4015,1,"In Home Displays","NV Energy","NV",2010,2008,4,null,"The objective of the IHD program is to enable customers to monitor real-time electricity usage in their home to encourage them to use the information to reduce their energy consumption.",0,"N","direct","Y",109712,1000000,null,304263,0,0,1697,null,"in",null,"",179.29463759575722,null,1,0,0,1,0,0,0,0,0,0,0,0,0,"N",null,0,0,0,1,0,0,0,0,0,0,0,0,0,0,0,0,0,null,null,null,"all impact numbers from 2010 evaluation. Majority of IHDs installed in 4th quarter of 2009/1st quarter of 2010","Q:\\8120-CPUC DNV Residential\\Behavior Study\\Evaluation Activities\\IOU behavioral programs\\Secondary Data on Behavior Programs\\Programs from Literature Reviews\\2014_CEE_Behavior_Program_Summary_-_Public.xlsx","Q:\\8120-CPUC DNV Residential\\Behavior Study\\Evaluation Activities\\Task1d-Market Characterization\\Secondary Program Information\\NV PUC_2010_annual_dsm_report.pdf"]
["NO",7,4016,1,"In-Home Display Pilot: SHEMP phase 1","Cape Light Compact","MA",2012,2009,3,"Tendril","The Smart Home Energy Monitoring Pilot (SHEMP) is implemented by Cape Light Compact (CLC). CLC’s SHEMP is an opt-in pilot that offers an integrated in-home monitoring and feedback system for customers on their household energy usage. Through this pilot, customers have access to near-real-time data on their electric energy use based on the theory that, in response to this information, they will reduce their consumption. Customers receive the information through a website where they can set goals and update their profile based on their home characteristics and any relevant household changes. SHEMP is made up of two primary cohorts: (1) “Legacy” households that are using the iCES platform, originally developed by Grounded Power; and (2) “Energize” households that are treated with the Energize platform developed by Tendril (who acquired Grounded Power).",0,"Y","direct","Y",0,0,null,0,0,0,80,null,"in",0.11700000000000001,"","NA",null,1,0,0,1,0,0,0,0,0,0,0,0,0,"\"Legacy\" customers must be year-round cape or Martha's Vineyard residents, lived in their home for a year or more, have high-speed internet that is always on, free ethernet port on their router, and a power outletimmediately adjacent to meter.",null,0,0,0,0,0,0,1,0,0,0,0,0,0,0,0,1,1,null,null,"H","savings estimated to be 11.7% per household","Q:\\8120-CPUC DNV Residential\\Behavior Study\\Evaluation Activities\\IOU behavioral programs\\Secondary Data on Behavior Programs\\Programs from Literature Reviews\\2013 June Cross-Cutting Behavioral Program Evaluation Final Integrated Report June 2013.pdf","Q:\\8120-CPUC DNV Residential\\Behavior Study\\Evaluation Activities\\Task1d-Market Characterization\\Secondary Program Information\\CLC-SHEMP_Evaluation_Final-2013.pdf","Q:\\8120-CPUC DNV Residential\\Behavior Study\\Evaluation Activities\\IOU behavioral programs\\Secondary Data on Behavior Programs\\Programs from Literature Reviews\\BBEE_Res_Profiles_Dec_2011 - BPA.pdf"]
["NO",13,4017,1,"M-Power","Salt River Project","AZ",2009,2000,10,null,"This AMI enabled program allows customers pre-pay for their electricity. SRP set up an ATM-like system with 70 locations where customers can add credits to \"smart cards.\"  These cards fundtion like debit cards. Customers can view their balance--in terms of dollars and time, but not energy units--on a simple in-home display. If a customer runs out of credit during the night or on a weekend, a \"Friendly Credit\" system give them a loan--enough credit to last until the morning of the next business day. SRP then subtracts the cost of the energy used during this lag time the next time the customer adds value to the card.",0,"N","direct","Y",0,0,null,109800000,0,0,77909,null,"in",0.12,"",1409.3365336482307,null,0,0,1,1,0,0,0,0,0,0,0,0,0,"pre-paid billing customers",null,1,0,0,0,0,0,0,0,0,0,0,0,0,0,0,1,1,null,null,"H","Targeted general population of customers; participants need an AMI meter, which can be installed during program participation. Note that this program included a larger number of lower-income participants compared with other programs, as many participants signed up for the M-Power program due to being in arrears on the SRP bills.","Q:\\8120-CPUC DNV Residential\\Behavior Study\\Evaluation Activities\\IOU behavioral programs\\Secondary Data on Behavior Programs\\Programs from Literature Reviews\\ACEEE Case Studies of Behavioral Programs 2010e108.pdf","Q:\\8120-CPUC DNV Residential\\Behavior Study\\Evaluation Activities\\IOU behavioral programs\\Secondary Data on Behavior Programs\\Programs from Literature Reviews\\2013 June Cross-Cutting Behavioral Program Evaluation Final Integrated Report June 2013.pdf","Q:\\8120-CPUC DNV Residential\\Behavior Study\\Evaluation Activities\\Task1d-Market Characterization\\Secondary Program Information\\MPower_Program Review_2010.pdf"]
["NO",14,4019,1,"Real Time Monitoring Pilot","Hyrdo One","ON",2005,2004,1,null,"Pilot project launched in 2004, which provided IHDs to customers. The objective of the pilot was to assess whether real-time feedback is effective and to determine, from change in usage data, if behavior of the participants could be quantified as energy savings.",0,"Y","direct","Y",0,0,null,0,0,0,500,null,"in",6.5000000000000002E-2,"","NA",null,0,0,0,1,0,0,0,0,0,0,0,0,0,"N",null,0,0,0,0,0,0,0,0,0,0,0,0,0,1,0,1,1,null,null,null,"Pilot program found an average of 6.5% kWh reduction per participating household","Q:\\8120-CPUC DNV Residential\\Behavior Study\\Evaluation Activities\\IOU behavioral programs\\Secondary Data on Behavior Programs\\Programs from Literature Reviews\\ACEEE Case Studies of Behavioral Programs 2010e108.pdf"]
["NO",17,4020,1,"Smart Currents","DTE Energy","MI",2013,2012,1,null,"Smart Currents is a Dynamic Peak Pricing (DPP) pilot program  involved deployment of distribution automation (DA) assets on 55 circuits, an advanced metering infrastructure (AMI) system to support 725,000 meters, a meter data management system (MDMS), a distribution management system (DMS), and various customer systems, including a new web portal, in-home displays, and programmable communicating thermostats. It also consists of a three-tiered Time of Use (TOU) rate for weekdays overlaid by a Critical Peak Pricing (CPP) rate ($1/kWh) on a maximum of 20 event days per year. The event days are announced to customer s a day in advance via various communicateion means. ",1,"Y","direct","Y",135118211,167657756,null,0,0,0,688717,1,"in",0.126,0.11799999999999999,"NA",null,1,1,0,1,0,0,0,1,0,0,1,0,0,null,null,0,0,0,1,0,0,0,0,0,0,0,0,0,0,0,1,1,null,null,null,"This is a pilot program set up as an experiment with 4 different treatment groups receiving differenet combinations of technology and education. As a result, treatment effects (savings) vary widely depeneding on treatment group, peak vs. non-peak, and hot vs. cold weather days. Expenditures represent residential and commerical and include AMI, IHD, smart appliances, and communication networks. Participant number listed is the total number of smart meters provided to DTE customers (636,571 are residential customers and 52,146 are commercial).","Q:\\8120-CPUC DNV Residential\\Behavior Study\\Evaluation Activities\\Task1d-Market Characterization\\Secondary Program Information\\DTE-SmartCurrents_FINAL_Report_08152014.pdf","Q:\\8120-CPUC DNV Residential\\Behavior Study\\Evaluation Activities\\Task1d-Market Characterization\\Secondary Program Information\\Detroit-Edison-Project-Description_20140311.pdf","https://www.smartgrid.gov/project/detroit_edison_company_smartcurrents/latest_data"]
["NO",18,4021,1,"Smart Energy Rewards","Baltimore Gas and Electric","MD",2013,2011,3,"Opower","As part of the Smart Energy Rewards program, customers received personalized analysis and information about their energy usage during peak times. By taking simple steps to save energy — such as delaying the use of energy-intensive appliances like the dishwasher, washer, and dryer until after 7 PM, and raising the thermostat by 3-4 degrees — on designated “Energy Savings Days,” customers could trim their peak demand and earn rebates from their utility. For every kilowatt-hour of energy (about equivalent to running a dishwasher load) saved during a peak event, a BGE customer could earn a $1.25 rebate.",1,"Y","direct","Y",7590157,0,null,16000000,284000,0,315000,1,"out",0.23,0.05,"NA",null,1,0,0,0,0,1,0,0,0,0,1,0,0,"AMI customers and PeakRewards customers",null,0,0,0,1,1,0,1,1,0,0,1,0,1,0,0,1,1,null,null,null,"According to Opower, (on average) 5% reduction in consumption for those without a direct load control device and 23% for those that did","Q:\\8120-CPUC DNV Residential\\Behavior Study\\Evaluation Activities\\Task1d-Market Characterization\\Secondary Program Information\\BGE Quarterly Report.pdf","Q:\\8120-CPUC DNV Residential\\Behavior Study\\Evaluation Activities\\Task1d-Market Characterization\\Secondary Program Information\\BGE_Phase4CommunicationsPlan-Noappendix.pdf","Q:\\8120-CPUC DNV Residential\\Behavior Study\\Evaluation Activities\\Task1d-Market Characterization\\Secondary Program Information\\Smart Energy Savers Program_BGE2014.pdf"]
["NO",7,4022,1,"Smart Home Energy Monitoring Pilot: SHEMP phase 2","Cape Light Compact","MA",2012,2011,1,null,"Phase 2 of the Smart Home Energy Monitoring Pilot (SHEMP) is implemented by Cape Light Compact (CLC) and includes only \"Legacy\" customers. CLC’s SHEMP is an opt-in pilot that offers an integrated in-home monitoring and feedback system for customers on their household energy usage. Through this pilot, customers have access to near-real-time data on their electric energy use based on the theory that, in response to this information, they will reduce their consumption. Customers receive the information through a website where they can set goals and update their profile based on their home characteristics and any relevant household changes. SHEMP is made up of two primary cohorts: (1) “Legacy” households that are using the iCES platform, originally developed by Grounded Power; and (2) “Energize” households that are treated with the Energize platform developed by Tendril (who acquired Grounded Power).",0,"Y","direct","Y",0,0,null,0,0,0,277,null,"in",2.3E-2,"","NA",null,1,0,0,1,0,0,0,0,0,0,0,0,0,"\"Energize\" customers must be year-round cape or Martha's Vineyard residents, lived in their home for a year or more, have high-speed internet that is always on, free ethernet port on their router, and a power outlet 6 ft from meter.",null,0,0,0,0,0,0,1,0,0,0,0,0,0,0,0,1,1,null,null,"H","savings estimated to be 2.3% per household","Q:\\8120-CPUC DNV Residential\\Behavior Study\\Evaluation Activities\\IOU behavioral programs\\Secondary Data on Behavior Programs\\Programs from Literature Reviews\\2013 June Cross-Cutting Behavioral Program Evaluation Final Integrated Report June 2013.pdf"]
["NO",11,4023,1,"Team Power Smart","B.C. Hydro","BC",2010,2008,5,"B.C. Hydro","B.C. Hydro’s Team Power Smart is a behavioral based opt-in loyalty program launched in 2008 that applies social marketing principles to engage residential customers and encourage energy efficiency. Members (participants) commit to a 10% electricity reduction goal over a 12 month period; with B.C. Hydro providing tools, feedback, support, motivation and rewards",0,"N","indirect","N",0,0,null,5150000,1020,0,45441,null,"in",null,"",113.33377346449242,null,0,0,0,0,0,0,0,0,1,0,0,0,1,"N",null,1,1,1,0,1,1,1,0,1,0,0,0,1,null,0,0,0,null,null,"M",0,"Q:\\8120-CPUC DNV Residential\\Behavior Study\\Evaluation Activities\\Task1d-Market Characterization\\Secondary Program Information\\CEE_Eval_Residential Behavioural Report _Sept 2010_29Sep2010.pdf"]
["NO",48,4024,1,"Prepaid Account Management System","Oklahoma Electric Cooperative","OK",2011,2006,6,"Exceleron Software","Pay-as-you go option for customers to prepay their electricity costs. Employs TOU rates at $0.15 on peak days and $0.073 on off-peak days.",0,"N","direct","Y",0,0,null,0,0,0,5000,null,"in",0.11,"",null,null,0,0,1,1,0,0,0,0,0,0,0,0,0,"low-income/multi-family","meter data management system and customer information system platform",1,0,0,1,0,0,0,0,0,0,0,0,0,0,0,1,1,null,null,"M","The \"participation\" number is simply those included in the study. Not sure how many OEC customers choose pre-pay option, as this is not a \"program\" in the same way others on this list are, but a payment option for electrical service.","Q:\\8120-CPUC DNV Residential\\Behavior Study\\Evaluation Activities\\Task1d-Market Characterization\\Secondary Program Information\\The-Effect-of-Prepayment-on-Energy-Use_OEC_2013.pdf","Q:\\8120-CPUC DNV Residential\\Behavior Study\\Evaluation Activities\\Task1d-Market Characterization\\Secondary Program Information\\OEC_case study_2009.pdf"]
["NO",49,4025,1,"Time of Use Rate Program_#1","LDC#1","ON",2012,2011,1,null,"Standard TOU program with low-, mid-, and high-peak rates based on hourly smart meter data. For LDCs to participate, they needed to deploy AMI to all of their residential and general-service customers.",0,"N","direct","Y",0,0,null,0,0,0,0,1,"in",3.3000000000000002E-2,"",null,null,1,0,0,0,0,0,0,0,0,0,0,0,0,null,null,0,0,0,1,0,0,0,0,0,0,0,0,0,0,0,0,0,null,null,null,"percent based on peak load reduction for OPA Peak Demand Period (June, July, August 1-7pm)","Q:\\8120-CPUC DNV Residential\\Behavior Study\\Evaluation Activities\\Task1d-Market Characterization\\Secondary Program Information\\Impact_Evaluation_of_Ontario's_Time-of-Use_Rates-First_Year_Analysis_Faruqui_et_al_Nov_26_2013.pdf"]
["NO",49,4026,1,"Time of Use Rate Program_#2","LDC#2","ON",2012,2011,1,null,"Standard TOU program with low-, mid-, and high-peak rates based on hourly smart meter data. For LDCs to participate, they needed to deploy AMI to all of their residential and general-service customers.",0,"N","direct","Y",0,0,null,0,0,0,0,1,"in",2.3E-2,"",null,null,1,0,0,0,0,0,0,0,0,0,0,0,0,null,null,0,0,0,1,0,0,0,0,0,0,0,0,0,0,0,0,0,null,null,null,"percent based on peak load reduction for OPA Peak Demand Period (June, July, August 1-7pm)","Q:\\8120-CPUC DNV Residential\\Behavior Study\\Evaluation Activities\\Task1d-Market Characterization\\Secondary Program Information\\Impact_Evaluation_of_Ontario's_Time-of-Use_Rates-First_Year_Analysis_Faruqui_et_al_Nov_26_2013.pdf"]
["NO",49,4027,1,"Time of Use Rate Program_#3","LDC#3","ON",2012,2011,1,null,"Standard TOU program with low-, mid-, and high-peak rates based on hourly smart meter data. For LDCs to participate, they needed to deploy AMI to all of their residential and general-service customers.",0,"N","direct","Y",0,0,null,0,0,0,0,1,"in",1.2999999999999999E-2,"",null,null,1,0,0,0,0,0,0,0,0,0,0,0,0,null,null,0,0,0,1,0,0,0,0,0,0,0,0,0,0,0,0,0,null,null,null,"percent based on peak load reduction for OPA Peak Demand Period (June, July, August 1-7pm)","Q:\\8120-CPUC DNV Residential\\Behavior Study\\Evaluation Activities\\Task1d-Market Characterization\\Secondary Program Information\\Impact_Evaluation_of_Ontario's_Time-of-Use_Rates-First_Year_Analysis_Faruqui_et_al_Nov_26_2013.pdf"]
["NO",49,4028,1,"Time of Use Rate Program_#4","LDC#4","ON",2012,2011,1,null,"Standard TOU program with low-, mid-, and high-peak rates based on hourly smart meter data. For LDCs to participate, they needed to deploy AMI to all of their residential and general-service customers.",0,"N","direct","Y",0,0,null,0,0,0,0,1,"in",5.6000000000000001E-2,"",null,null,1,0,0,0,0,0,0,0,0,0,0,0,0,null,null,0,0,0,1,0,0,0,0,0,0,0,0,0,0,0,0,0,null,null,null,"percent based on peak load reduction for OPA Peak Demand Period (June, July, August 1-7pm)","Q:\\8120-CPUC DNV Residential\\Behavior Study\\Evaluation Activities\\Task1d-Market Characterization\\Secondary Program Information\\Impact_Evaluation_of_Ontario's_Time-of-Use_Rates-First_Year_Analysis_Faruqui_et_al_Nov_26_2013.pdf"]
["NO",17,4029,1,"Smart Currents-Pay As You Go Pilot","DTE Energy","MI",2013,2012,1,0,"As part of the Smart Energy Rewards program, a pre-pay billing option was permited for up to 200 customers (branded as Pay As You Go). This options required enrollment in on-line or electronic billing, and at least two commnication methods. Customers also were required to have standard residential service or the dynamic peak pricing rate. Customers did not necisarily need to have AMI to participate, though many were on the dynamic pricing rate, which is enabled through AMI.",1,"Y","direct","N",0,0,null,0,0,0,123,null,"in",0.11,0.01,0,null,0,0,1,0,0,0,0,0,0,0,0,0,0,0,0,0,0,0,0,0,0,0,0,0,0,0,0,0,1,0,0,0,"Y","M",null,"limited sample size. The savings are overall consumption of 23 customers where year over year comparision was available. The high savings are for low usage customers (<450 kWh per month) and the low savings are for medium usage customers (450 kWh-900 kWh per month)","https://efile.mpsc.state.mi.us/efile/docs/16457/0007.pdf","Q:\\8120-CPUC DNV Residential\\Behavior Study\\Evaluation Activities\\Task1d-Market Characterization\\Secondary Program Information\\DTE-SmartCurrents_FINAL_Report_08152014.pdf",0]
["NO",416,4031,1,"Austin Energy Web App","Austin Energy","TX",2013,null,null,"COA Utilities","Web app available to all residential customers who have enrolled on COA Utilities Customer Portal and presents daily and monthly usage in collars and cents, provides information and awareness of tiered rate structure, enables customers to set alerts for notification of approaching tier, and supplies customers with energy saving tips. Launched Oct 1, 2013. Partially funded through Better Buildings program.",0,"N","Indirect","N",0,0,null,0,0,0,0,null,"in",null,null,null,null,1,0,0,0,0,1,0,0,1,0,0,0,0,null,null,0,0,0,1,0,0,1,1,0,0,0,0,0,0,0,0,0,"not found",null,null,null,"http://www.austintexas.gov/edims/document.cfm?id=196629"]
["NO",417,4032,1,"Energy Smart-Residential","Boulder County","CO",2014,2010,null,"CLEAResult","Provides customers with personalized EnergySmart Advisor that will guide residential customers towards making decisions designed to save energy and money. Advisors guide customers through rebate, and other installation programs that provide them with free or low-cost measures. Advisors also provide personalized recommendations for how an individual home or family can take actions to reduce energy consumption. Funded through US DOE \"Better Buildings Program\"",1,"N","Indirect","N",0,0,null,2471413,0,0,12100,null,"in",null,null,null,null,0,0,0,0,0,0,0,0,0,0,0,1,0,null,null,0,0,0,0,1,1,1,1,0,0,1,0,0,0,0,1,1,"not found",null,null,"This program does not fit into one of our \"program type\" buckets, but provides behavioral recommendations to customers in addition to financial support for measure upgrades, participation numbers are \"to-date\" (i.e. since progarm's inception in 2010). Savings are annual based on deemed values.","https://www-static.bouldercolorado.gov/docs/updated_COB_EnergySmart_Report_Q3_2014-1-201410141417.pdf","http://www.bouldercounty.org/env/sustainability/pages/energysmart.aspx","http://www.energysmartyes.com/files/EnergySmart_Navigant_ProgressReport_2012_FINAL.pdf"]
["NO",418,4033,1,"Behavioral Demand Response","Efficiency Vermont, Green Mountain Power","VT",2014,2014,1,"Opower","Will provide selected customers with a customized report about their monthly power use compared with the EE among a sample of their neighbours",0,"Y","Direct","Y",0,0,null,0,0,0,100000,null,null,null,null,null,null,1,0,0,0,0,1,0,0,0,0,0,0,0,"GMP customers with AMI",null,0,0,0,0,1,0,1,1,0,0,0,0,0,0,0,0,0,"not found",null,null,"Could not find evaluation on this. Pilot started summer 2014.","http://www.metering.com/efficiency-vermonts-new-online-energy-tool-for-utility-customers/","http://opower.com/company/news-press/press_releases/110"]
["NO",419,4034,1,"Smart Energy Manager","Baltimore Gas and Electric","MD",2013,2013,null,null,null,1,"N",null,"N",null,null,null,89000000,25000,null,null,null,null,null,null,null,null,0,0,0,0,0,0,0,0,1,0,0,0,0,null,null,null,null,null,null,null,null,null,null,null,null,null,null,null,1,0]
["NO",422,4037,1,"EnergySense","Marblehead Municipal Light Department","MA",2012,2011,2,"GDS Associates","Two-year pilot program focused on evaluating CPP in Marblehead. Rate included a 35% rate discount ($0.05 per kWh) during non-CPP summer hours and a 750% increase in rate cuing peak periods. Participants were notified a day ahead of event days. 3 events were called in 2011 and 5 in 2012.",0,"Y","direct","Y",2692350,null,null,null,null,null,532,1,"in",0.21299999999999999,null,null,null,1,0,0,0,0,0,0,0,1,0,0,0,0,null,"web-portal",0,0,0,1,0,0,0,1,0,0,0,0,0,0,0,0,null,"Y","M",null,"Budget includes total amount for smart grid investment (including deployment of AMI) but the pilot program was much smaller","Q:\\8120-CPUC DNV Residential\\Behavior Study\\Evaluation Activities\\Task1d-Market Characterization\\Secondary Program Information\\Marblehead Final Evaluation Report with Appendices 2013-07-01-1_0.pdf","https://www.smartgrid.gov/sites/default/files/pdfs/project_desc/09-0042-mmld-project-description-04-02-12.pdf"]
["NO",423,4038,1,"eEnergy Vermont","Vermont Electric Cooperative","VT",2013,2012,1,"VEIC","Two-year pilot program began with a SGIG, measures the effect TOU rates, enhanced feedback, and various different types of tecnology have on winter peak demand.",0,"Y",null,"Y",null,null,null,null,null,null,478,null,null,null,null,null,null,1,0,0,1,0,0,0,0,1,0,0,0,0,"all residential customers","web-portal, end-use controls",null,null,null,1,null,null,null,null,null,null,null,null,null,0,null,null,null,null,null,null,"impact evauation not yet released. Participation numbers are for treatment groups.","Q:\\8120-CPUC DNV Residential\\Behavior Study\\Evaluation Activities\\Task1d-Market Characterization\\Secondary Program Information\\Programs in Sheet\\VEC_CBS_Process_Evaluation_121213.pdf","Q:\\8120-CPUC DNV Residential\\Behavior Study\\Evaluation Activities\\Task1d-Market Characterization\\Secondary Program Information\\Programs in Sheet\\VEC CBS Description 09 12 13.pdf"]
["NO",424,4039,null,"SmartGrid Modernization Initiative","FirstEnergy","NJ, OH, PA",2013,2012,1,"Cleveland Electric Illuminating Company (CEI)","Deployment of advanced metering infrastructure (AMI), distribution automation (DA), volt/VAR optimization (VVO), time-based rate programs, direct load control (DLC) devices, and customer systems in parts of New Jersey, Ohio, and Pennsylvania.  Evaluated customer acceptance of and response to different levels of enabling technologies combined with various time-based rate programs.",0,"Y","direct","Y",null,null,114940274,null,null,null,522,null,"in",null,null,null,null,1,null,null,1,null,null,null,0,null,null,0,0,0,null,"direct load control devices",null,null,null,1,null,null,null,null,null,null,null,null,null,null,null,null,null,null,null,null,null,"https://www.smartgrid.gov/sites/default/files/FirstEnergy%20Consumer%20Behavior%20Study%20Preliminary%20Evaluation%20of%20the%20Summer%202012%20Final%20PDF%20R%20May%2013%20copy_0.pdf","https://www.smartgrid.gov/sites/default/files/CEIC%20CBS%20Description%2009%2012%2013_1.pdf"]
["NO",425,4040,null,"Integrated AMI System with Real-Time Pricing Pilot Program","Lankeland Electric","FL",2014,2012,2,"Lakeland Electric","Implements two-way communications and metering expected to: (1) enable customers to view their energy consumption at their convenience through in-home displays and a Web portal, (2) provide time-based rate programs to customers, (3) provide information and tools to improve outage management, and (4) reduce distribution operations and maintenance costs. Evaluates customer acceptance of and response to a  seasonal three-period TOU rate with opt-in and opt-out enrollment approaches.",0,"N","direct","Y",null,null,35078152,null,null,null,2400,null,"both",null,null,null,null,1,null,null,1,null,null,null,0,null,null,0,0,0,null,null,null,null,null,1,null,null,null,null,null,null,null,null,null,null,null,null,null,null,null,null,null,"https://www.smartgrid.gov/sites/default/files/pdfs/project_desc/Lakeland%20Electric%20Project%20Descriptionf_20131209.pdf","https://www.smartgrid.gov/sites/default/files/pdfs/cbs/lakeland-cbs-project-description-1-19-2012.pdf"]
["NO",426,4041,null,"Advanced Metering Infrastructure Project","Minnesota Power","MN",2014,2012,2,"Energy Center of Wisconsin","The first (Phase One) evaluates customer acceptance to various forms and timing of information feedback about electricity consumption, while the second (Phase Two) evaluates customer response to a TOU rate with a CPP overlay. Evaluation compared monthly feedback (control) to daily (treatment 1) and hourly (treatment 2) feedback.",0,"Y","direct","Y",null,null,3088008,null,null,null,2303,null,"both",null,null,null,null,1,null,null,null,null,null,null,0,null,null,0,0,0,null,null,null,null,null,1,null,null,null,null,null,null,null,null,null,null,null,null,null,null,null,null,null,"https://www.smartgrid.gov/sites/default/files/MN%20Power%20CBS%20Description%2008%2020%2013.pdf","https://www.smartgrid.gov/sites/default/files/MN%20Power%20CBP%20Interim%20Report.pdf"]
["NO",427,4042,null,"Dynamic Pricing Trial of Advanced Services Delivery Project","Nevada Energy","NV",2015,2013,2,"NV Energy","Deployment of smart meters, communications infrastructure, meter data management system (MDMS), and advanced demand response management system (DRMS). Enables customer portal, customer-facing demand response program, and dynamic pricing trial with time-based rates.  Evaluating customer acceptance and response to different combinations of enabling technologies, seasonal multi-period TOU rate with CPP overlay, and energy education efforts",0,"Y","direct","Y",null,null,277755812,null,null,null,null,"nearly 44MW",null,null,null,null,null,1,null,null,null,null,null,null,0,null,null,0,0,0,null,null,null,null,null,1,null,null,null,null,null,null,null,null,null,null,null,null,null,null,null,null,null,"https://www.smartgrid.gov/project/nv_energy_inc_nv_energize","https://www.smartgrid.gov/sites/default/files/pdfs/project_desc/NV%20Energy%20Final%20Project%20Description%2020140311.pdf"]
["NO",428,4043,null,"Smart Study TOGETHER","Oklahoma Gas and Electric",null,2012,2009,3,null,"Deployed AMIs enabling customers to track data through a personalized website and allowing OG&E to manage, measure, and verify targeted demand reductions during peak periods. Consumer behavior study evaluated response to different forms of dynamic pricing and home area network smart technology on an opt-in basis.",0,"Y","direct","Y",null,null,293201332,null,null,null,6000,null,"in",null,null,null,null,1,null,null,null,null,null,null,0,null,null,0,0,0,null,null,null,null,null,1,null,null,null,null,null,null,null,null,null,null,null,null,null,null,null,null,null,"https://www.smartgrid.gov/sites/default/files/pdfs/project_desc/09-0111-oge-project-description-06-08-12.pdf"]
["NO",429,4044,null,"eEnergy Vermont","Vermont Transco, LLC","VT",2014,2012,2,"Vermont Electric Cooperative","Pilot transitions customers from a peak time rebate (PTR) in year one to a critical peak pricing (CPP) rate in year two, while the remaining customers are exposed to their treatments for 2 full years.",1,"Y","direct","Y",null,null,137857302,null,null,null,3700,null,"in",null,null,null,null,1,null,null,null,null,null,null,0,null,null,0,0,0,null,null,null,null,null,1,null,null,null,null,null,null,null,null,null,null,null,null,null,null,null,null,null,"https://www.smartgrid.gov/sites/default/files/pdfs/cbs/eenergycvps-and-vec-cbs-1-19-11.pdf","https://www.smartgrid.gov/sites/default/files/pdfs/project_desc/09-0374-vermont-transco-project-description-04-05-12.pdf","https://www.smartgrid.gov/sites/default/files/VEC_CBS_Process_Evaluation_121213-Clean-20140210%20copy_1.pdf"]